date,department/service,beneficiary,amount,summary of purpose,category,transaction number,SAP vendor number
01.09.2019,CENTRAL FUNCTIONS,KENT COUNTY COUNCIL - LASER,"24,017.13",HEATING ACCOUNT,ELECTRICITY,5902375914,1000012926
01.09.2019,CENTRAL FUNCTIONS,KENT COUNTY COUNCIL - LASER,"52,261.83",HEATING ACCOUNT,ELECTRICITY,5902375914,1000012926
01.09.2019,CENTRAL FUNCTIONS,KENT COUNTY COUNCIL - LASER,"3,013.77",HEATING ACCOUNT,GAS,5902375916,1000012926
01.09.2019,CENTRAL FUNCTIONS,KENT COUNTY COUNCIL - LASER,"173,426.84",HEATING ACCOUNT,GAS,5902375916,1000012926
01.09.2019,CENTRAL FUNCTIONS,KIER FACILITIES SERVICES LTD,"51,148.80",LEDBURY ESTATE,MISCELLANEOUS EXPENSES,5902375751,1000040603
01.09.2019,CHIEF EXECUTIVE'S OFFICE,RENAISI LTD,"20,460.94",CHIEF EXEC'S OFFICE,GRANTS,5902375553,1000022051
01.09.2019,ENVIRONMENT DIRECTORATE,SOUTHWARK NEWSPAPER LTD,300,HIGHWAYS DEVELOPMENT,MARKETING & PUBLICITY SERVICES,5902375753,1556957
01.09.2019,ENVIRONMENT DIRECTORATE,SOUTHWARK NEWSPAPER LTD,360,HIGHWAYS DEVELOPMENT,MARKETING & PUBLICITY SERVICES,5902375752,1556957
01.09.2019,ENVIRONMENT DIRECTORATE,ELLIOT ENVIRONMENTAL LTD,800,STREET CLEANING-GENERAL,OTHER CONTRACTORS,5902375886,1000047392
01.09.2019,ENVIRONMENT DIRECTORATE,SOUTHWARK NEWSPAPER LTD,288,STREET WORKS OVERHEADS,MARKETING & PUBLICITY SERVICES,5902376069,1556957
01.09.2019,ENVIRONMENT DIRECTORATE,SOUTHWARK NEWSPAPER LTD,288,STREET WORKS OVERHEADS,MARKETING & PUBLICITY SERVICES,5902376071,1556957
01.09.2019,ENVIRONMENT DIRECTORATE,SOUTHWARK NEWSPAPER LTD,288,STREET WORKS OVERHEADS,MARKETING & PUBLICITY SERVICES,5902376077,1556957
01.09.2019,ENVIRONMENT DIRECTORATE,SOUTHWARK NEWSPAPER LTD,348,STREET WORKS OVERHEADS,MARKETING & PUBLICITY SERVICES,5902376078,1556957
01.09.2019,ENVIRONMENT DIRECTORATE,SOUTHWARK NEWSPAPER LTD,348,STREET WORKS OVERHEADS,MARKETING & PUBLICITY SERVICES,5902376079,1556957
01.09.2019,ENVIRONMENT DIRECTORATE,SOUTHWARK NEWSPAPER LTD,372,STREET WORKS OVERHEADS,MARKETING & PUBLICITY SERVICES,5902376076,1556957
01.09.2019,ENVIRONMENT DIRECTORATE,SOUTHWARK NEWSPAPER LTD,420,STREET WORKS OVERHEADS,MARKETING & PUBLICITY SERVICES,5902376070,1556957
01.09.2019,MODERNISATION HGF,HAYS RECRUITING EXPERTS WORLDWIDE,"7,282.38",IT MANAGEMENT,RECRUITMENT ADVERTISING,5902375855,11319307
01.09.2019,SOUTHWARK SCHOOL FOR FUTURE,FAITHFUL & GOULD,"13,625.00",CAPITAL PS (REGEN),CONSTRUCTION FEES,5902375440,1000061390
02.09.2019,MODERNISATION HGF,GENERAL DYNAMICS INFORMATION TECHNOLOGY LTD,772.5,APPLICATIONS,TELEPHONES (LAND LINES),5902369039,1000043058
03.09.2019,ADULT SOCIAL CARE,ALLPAY LTD,-400,CLIENT FINANCE TEAM,PAYMENTS FOR FINANCIAL SERVICES,5902376254,1000043001
03.09.2019,ADULT SOCIAL CARE,ALLPAY LTD,658.49,CLIENT FINANCE TEAM,PAYMENTS FOR FINANCIAL SERVICES,5902376246,1000043001
03.09.2019,ADULT SOCIAL CARE,ALLPAY LTD,"1,200.00",CLIENT FINANCE TEAM,PAYMENTS FOR FINANCIAL SERVICES,5902376249,1000043001
03.09.2019,ADULT SOCIAL CARE,KENT COUNTY COUNCIL - LASER,426.75,FRED FRANCIS CENTRE,GAS,5902376208,1000012926
03.09.2019,ADULT SOCIAL CARE,KENT COUNTY COUNCIL - LASER,490.86,FRED FRANCIS CENTRE,GAS,5902376209,1000012926
03.09.2019,CHIEF EXECUTIVE'S OFFICE,BAS CONSULTANCY LTD,"5,400.00",BUSINESS SUPPORT,GRANTS,5902376331,1000082570
03.09.2019,CHILDREN'S SERVICES,REDACTED PERSONAL DATA,480,ADOPTION PLACEMENTS & INTER AGENCY,PAYMENTS TO CARERS,REDACTED,REDACTED
03.09.2019,CHILDREN'S SERVICES,CITYGLEN LTD,770,AIS - MASH,OTHER PAYMENTS FOR CLIENTS,5902376182,1000026239
03.09.2019,CHILDREN'S SERVICES,COMBER GROVE PRIMARY SCHOOL,"79,307.00",COMBER GROVE PRIMARY SCHOOL,SCHOOLS CAPITATION,5902376215,5001000022
03.09.2019,CHILDREN'S SERVICES,CRAMPTON PRIMARY SCHOOL,"64,241.00",CRAMPTON PRIMARY SCHOOL,SCHOOLS CAPITATION,5902376216,5001000023
03.09.2019,CHILDREN'S SERVICES,OPTIMUM FOCUS COMPANY LTD,712.83,FAMILY GROUP CONFERENCES,PROFESSIONAL FEES,5902376291,1000081322
03.09.2019,CHILDREN'S SERVICES,SING AND SIGN SOUTHWARK,300,FREE AND EARLY LEARNING TEAM,TRAINING,5902376086,1000083154
03.09.2019,CHILDREN'S SERVICES,PURPLE PEBBLES(CHILD CARE) SERVICES,"1,882.14",RESOURCE PANEL,OTHER PAYMENTS FOR CLIENTS,2102999333,1000070705
03.09.2019,CHILDREN'S SERVICES,LONDON EARLY YEARS FOUNDATION,872.9,SPECIAL GUARDIANSHIP,EXTERNAL AGENCIES AND BODIES,5902376345,1000074303
03.09.2019,CHILDREN'S SERVICES,LOGICOUS LTD,"1,020.00",SPECIAL GUARDIANSHIP,EXTERNAL AGENCIES AND BODIES,5902376278,1000073852
03.09.2019,CHILDREN'S SERVICES,REDACTED PERSONAL DATA,300,SPECIAL GUARDIANSHIP,EXTERNAL AGENCIES AND BODIES,REDACTED,REDACTED
03.09.2019,CHILDREN'S SERVICES,BEDROCK SOLICITORS,967,SPECIAL GUARDIANSHIP,EXTERNAL AGENCIES AND BODIES,5902375567,1000083122
03.09.2019,CHILDREN'S SERVICES,ST GILES TRUST,"5,833.33",TACKLING TROUBLED FAMILIES,EXTERNAL AGENCIES AND BODIES,5902376173,1013828
03.09.2019,CHILDREN'S SERVICES,ST GILES TRUST,"17,500.00",TACKLING TROUBLED FAMILIES,EXTERNAL AGENCIES AND BODIES,5902376172,1013828
03.09.2019,CHILDREN'S SERVICES,NATIONWIDE ACCOMMODATION,"1,175.00",TEMPORARY ACCOMMODATION,EXTERNAL AGENCIES AND BODIES,5902376347,1000076112
03.09.2019,CHILDREN'S SERVICES,TOWNSEND PRIMARY SCHOOL,"54,864.00",TOWNSEND PRIMARY SCHOOL,SCHOOLS CAPITATION,5902376217,5001000096
03.09.2019,CHILDREN'S SERVICES,TRANSPORT HUB,430,YOS SUPPORT,HIRED VEHICLES,2102999335,1000083181
03.09.2019,CHILDREN'S SERVICES,TRANSPORT HUB,470,YOS SUPPORT,HIRED VEHICLES,2102999334,1000083181
03.09.2019,COMMISSIONING & CENTRAL,ASSOCIATION OF DIRECTORS OF ADULT SOCIAL SERVICES,"2,015.00",STRATEGIC DIRECTOR OF C&AS,SUBSCRIPTIONS,5902376292,1000063399
03.09.2019,COMMUNITIES,SITTARA LTD,360,NO RECOURSE TO PUBLIC FUNDS,ACCOMMODATION CHARGES,5902376286,1000080857
03.09.2019,COMMUNITIES,WILLOW ESTATE AGENTS (LONDON) LTD,"1,116.00",NO RECOURSE TO PUBLIC FUNDS,ACCOMMODATION CHARGES,5902376287,1000060607
03.09.2019,COMMUNITIES,WILLOW ESTATE AGENTS (LONDON) LTD,"1,271.00",NO RECOURSE TO PUBLIC FUNDS,ACCOMMODATION CHARGES,5902376290,1000060607
03.09.2019,CUSTOMER EXPERIENCE HGF,R S P  LTD  WARRANT SERVICE,"1,826.40",HOMELESS & HOUSING OPTIONS MGT,PUBLIC TRANSPORT,5902376294,1000006523
03.09.2019,CUSTOMER EXPERIENCE HGF,REACH-OUT HOUSING LTD,"1,200.00",HOMELESS PROJECTS,GRANTS,5902376210,1000071129
03.09.2019,CUSTOMER EXPERIENCE HGF,KINDLY PROPERTIES LTD,"19,981.75",NIGHTLY TA (NSC),EXTERNAL AGENCIES AND BODIES,5902376297,1000060734
03.09.2019,CUSTOMER EXPERIENCE HGF,TUNSTALL HEALTHCARE (UK) LTD,693,SMART MOBILE RESPONSE TEAM,SUBSCRIPTIONS,5902376334,1012297
03.09.2019,CUSTOMER EXPERIENCE HGF,TUNSTALL HEALTHCARE (UK) LTD,"2,970.00",SMART MOBILE RESPONSE TEAM,SUBSCRIPTIONS,5902376330,1012297
03.09.2019,ENVIRONMENT AND LEISURE,COMMUNITY LINKS TRADING LTD,769.6,CAPITAL PS (LEISURE),CONSTRUCTION FEES  - EXTERNAL,5902376318,1000049897
03.09.2019,ENVIRONMENT DIRECTORATE,LIGHTING REALITY LTD,720,HIGHWAY LIGHTING OVERHEADS,SOFTWARE,5902376201,1000030576
03.09.2019,ENVIRONMENT DIRECTORATE,AGENTIS WORKWEAR LTD,658,MANAGEMENT TEAM,"CLOTHING, UNIFORMS & LAUNDRY",5902376203,1000065561
03.09.2019,ENVIRONMENT DIRECTORATE,WEB-LABS LTD,"2,450.00",PARKING OVERHEADS,OTHER CONTRACTORS,5902376293,1000039819
03.09.2019,ENVIRONMENT DIRECTORATE,BRITISH PARKING ASSOCIATION,294,PARKING OVERHEADS,SUBSCRIPTIONS,5902376295,1000000432
03.09.2019,ENVIRONMENT DIRECTORATE,KOMPAN LTD,300.3,PARKS TECH UNIT (PREMISES),MATERIALS,5902376199,1080346
03.09.2019,ENVIRONMENT DIRECTORATE,KOMPAN LTD,"1,899.99",PARKS TECH UNIT (PREMISES),MATERIALS,5902376199,1080346
03.09.2019,ENVIRONMENT DIRECTORATE,EDWARDES BROS (DULWICH) LTD,478.8,PUBLIC LIGHTING,MATERIALS,5902376197,1004945
03.09.2019,ENVIRONMENT DIRECTORATE,EDWARDES BROS (DULWICH) LTD,478.8,PUBLIC LIGHTING,MATERIALS,5902376197,1004945
03.09.2019,ENVIRONMENT DIRECTORATE,EDWARDES BROS (DULWICH) LTD,958.8,PUBLIC LIGHTING,MATERIALS,5902376197,1004945
03.09.2019,ENVIRONMENT DIRECTORATE,LIBERTY SERVICES LTD,655,STREET WORKS OVERHEADS,BOOKS & PUBLICATIONS,5902376313,1000061305
03.09.2019,ENVIRONMENT DIRECTORATE,TYCO INTEGRATED FIRE & SECURITY,713.88,TOWN CENTRE CCTV,OTHER CONTRACTORS,5902376304,1000077948
03.09.2019,ENVIRONMENT DIRECTORATE,TYCO INTEGRATED FIRE & SECURITY,"8,379.08",TOWN CENTRE CCTV,OTHER CONTRACTORS,5902376314,1000077948
03.09.2019,HOUSING,OCO LIMITED,"138,474.12",PAYMENTS CONTROL ACCOUNT - OCO,I-WORLD CONTRACTORS HOLDING ACCOUNT,5902376213,1006066
03.09.2019,HOUSING,SMITH & BYFORD LTD,"113,765.56",SMITH AND BYFORD,I-WORLD CONTRACTORS HOLDING ACCOUNT,5902376214,11212119
03.09.2019,HOUSING HRA,PJC CONSULTANCY LTD,285,CAPITAL PS (HRA),CONSTRUCTION FEES  - EXTERNAL,5902376247,1000077403
03.09.2019,HOUSING HRA,BISHOPSGATE LAW LTD,"1,500.00",CAPITAL PS (HRA),LAND & BUILDINGS ACQUISITION FEES,5902376212,1000083055
03.09.2019,MODERNISATION HGF,INTERSERVE (FACILITIES MANAGEMENT),"466,134.76",FM SERVICES BY INTERSERVE,INTEGRATED FACILITIES MANAGEMENT CONTRACT,5902376320,1000070792
03.09.2019,PUBLIC HEALTH,SPORTS AND LEISURE MANAGEMENT LTD,"7,090.00",HEALTH INTERVENTIONS,EXTERNAL AGENCIES AND BODIES,5902376289,1000077862
03.09.2019,PUBLIC HEALTH,SPORTS AND LEISURE MANAGEMENT LTD,"12,500.00",HEALTH INTERVENTIONS,EXTERNAL AGENCIES AND BODIES,5902376342,1000077862
03.09.2019,PUBLIC HEALTH,SPORTS AND LEISURE MANAGEMENT LTD,"12,500.00",HEALTH INTERVENTIONS,EXTERNAL AGENCIES AND BODIES,5902376343,1000077862
03.09.2019,PUBLIC HEALTH,SPORTS AND LEISURE MANAGEMENT LTD,"11,529.00",HEALTHY WEIGHT,EXTERNAL AGENCIES AND BODIES,5902376288,1000077862
03.09.2019,RESIDENT SERVICES,LIBERTY SERVICES LTD,902.1,PARKING CONTROL,STATIONERY,5902376319,1000061305
03.09.2019,RESIDENT SERVICES,EDEN ESTATES LONDON LTD,504,TA PLACEMENTS,EXTERNAL AGENCIES AND BODIES,5902376308,1000061217
03.09.2019,RESIDENT SERVICES,EDEN ESTATES LONDON LTD,"3,813.00",TA PLACEMENTS,EXTERNAL AGENCIES AND BODIES,5902376202,1000061217
03.09.2019,SOUTHWARK BUILDING SERVICES,CALLOW MASTER LOCKSMITHS,296.2,STORES/LOGISTICS,CREDITORS -GR/IR CLEARING ACCOUNT,5902376196,11179552
03.09.2019,SOUTHWARK BUILDING SERVICES,CALLOW MASTER LOCKSMITHS,370.25,STORES/LOGISTICS,CREDITORS -GR/IR CLEARING ACCOUNT,5902376195,11179552
03.09.2019,SOUTHWARK BUILDING SERVICES,CALLOW MASTER LOCKSMITHS,473.48,STORES/LOGISTICS,CREDITORS -GR/IR CLEARING ACCOUNT,5902376196,11179552
03.09.2019,SOUTHWARK BUILDING SERVICES,CALLOW MASTER LOCKSMITHS,483.1,STORES/LOGISTICS,CREDITORS -GR/IR CLEARING ACCOUNT,5902376194,11179552
03.09.2019,SOUTHWARK BUILDING SERVICES,CALLOW MASTER LOCKSMITHS,579.72,STORES/LOGISTICS,CREDITORS -GR/IR CLEARING ACCOUNT,5902376195,11179552
03.09.2019,SOUTHWARK BUILDING SERVICES,CALLOW MASTER LOCKSMITHS,608.76,STORES/LOGISTICS,CREDITORS -GR/IR CLEARING ACCOUNT,5902376194,11179552
03.09.2019,SOUTHWARK BUILDING SERVICES,CALLOW MASTER LOCKSMITHS,762.5,STORES/LOGISTICS,CREDITORS -GR/IR CLEARING ACCOUNT,5902376193,11179552
04.09.2019,ADULT SOCIAL CARE,KENT COUNTY COUNCIL - LASER,465.41,FRED FRANCIS CENTRE,GAS,5902376437,1000012926
04.09.2019,ADULT SOCIAL CARE,KENT COUNTY COUNCIL - LASER,899.76,FRED FRANCIS CENTRE,GAS,5902376439,1000012926
04.09.2019,ADULT SOCIAL CARE,POTTON KARE SERVICES LTD,349.5,SPECIALIST CARE,SECTION 17 PAYMENTS TO AGENCIES/CARERS,2102999368,1000080630
04.09.2019,ADULT SOCIAL CARE,POTTON KARE SERVICES LTD,625.35,SPECIALIST CARE,SECTION 17 PAYMENTS TO AGENCIES/CARERS,2102999394,1000080630
04.09.2019,ADULT SOCIAL CARE,POTTON KARE SERVICES LTD,646.95,SPECIALIST CARE,SECTION 17 PAYMENTS TO AGENCIES/CARERS,2102999400,1000080630
04.09.2019,ADULT SOCIAL CARE,POTTON KARE SERVICES LTD,993.6,SPECIALIST CARE,SECTION 17 PAYMENTS TO AGENCIES/CARERS,2102999396,1000080630
04.09.2019,ADULT SOCIAL CARE,POTTON KARE SERVICES LTD,"1,058.40",SPECIALIST CARE,SECTION 17 PAYMENTS TO AGENCIES/CARERS,2102999386,1000080630
04.09.2019,ADULT SOCIAL CARE,POTTON KARE SERVICES LTD,"1,065.60",SPECIALIST CARE,SECTION 17 PAYMENTS TO AGENCIES/CARERS,2102999376,1000080630
04.09.2019,ADULT SOCIAL CARE,POTTON KARE SERVICES LTD,"1,484.40",SPECIALIST CARE,SECTION 17 PAYMENTS TO AGENCIES/CARERS,2102999366,1000080630
04.09.2019,ADULT SOCIAL CARE,RESOURCES FOR AUTISM,880,TRANSITIONS 14-18YRS,SECTION 17 PAYMENTS TO AGENCIES/CARERS,2102999359,1000062540
04.09.2019,ASSET MANAGEMENT,CHESHIRE ESTATE AND LEGAL LTD,750,DISREPAIR,LEGAL FEES & COURT COSTS,2102999336,1000081908
04.09.2019,ASSET MANAGEMENT,JUDGE AND PRIESTLEY SOLICITORS,"1,490.00",DISREPAIR,PAYMENTS FOR LEGAL SERVICES,5902376421,1472217
04.09.2019,ASSET MANAGEMENT,JUDGE AND PRIESTLEY SOLICITORS,"80,412.50",DISREPAIR,PAYMENTS FOR LEGAL SERVICES,5902376421,1472217
04.09.2019,BERMONDSEY AND ROTHERHITHE COMMUNITY COUNCIL,HERBS AND SPACES,"5,000.00",HERBS AND SPACES BUS,GRANT,CHEQUE PAYMENT,CHEQUE PAYMENT
04.09.2019,BERMONDSEY AND ROTHERHITHE COMMUNITY COUNCIL,HERBS AND SPACES,"1,740.00",THE BIG HALF MARATHON FOR HERBS AND SPACES,GRANT,CHEQUE PAYMENT,CHEQUE PAYMENT
04.09.2019,CENTRAL FUNCTIONS,BROWNING MCBAIN LTD,"9,000.00",DIRECTOR OF H&M,PROFESSIONAL FEES,5902376384,1000083141
04.09.2019,CHIEF EXECUTIVE,SOMETHING & SON LTD,"2,166.66",CAPITAL PS (REGEN),CONSTRUCTION FEES,5902376583,1000076291
04.09.2019,CHIEF EXECUTIVE,SOMETHING & SON LTD,"4,800.00",CAPITAL PS (REGEN),CONSTRUCTION FEES,5902376582,1000076291
04.09.2019,CHIEF EXECUTIVE,DRAIN SCAN,710,CAPITAL PS (REGEN),CONSTRUCTION SUB CONTRACT,5902376369,1908746
04.09.2019,CHIEF EXECUTIVE'S OFFICE,J C CONSULTANT SERVICES LTD,"8,000.00",CHIEF EXEC'S OFFICE,GRANTS,5902376599,1000042476
04.09.2019,CHIEF EXECUTIVE'S OFFICE,J C CONSULTANT SERVICES LTD,"8,500.00",CHIEF EXEC'S OFFICE,GRANTS,5902376596,1000042476
04.09.2019,CHILDREN'S SERVICES,THE FAMILY PLACE LTD,760,ADOPTION REFORM GRANT (PART B),PROFESSIONAL FEES,5902376591,1000077965
04.09.2019,CHILDREN'S SERVICES,CHILDREN OF ALL NATIONS LTD,"3,104.29",FRIENDS & FAMILY FOSTERING,EXTERNAL AGENCIES AND BODIES,2102999361,1000060151
04.09.2019,CHILDREN'S SERVICES,REDACTED PERSONAL DATA,400,FURTHER EDUCATION SUPPORT,OTHER PAYMENTS FOR CLIENTS,REDACTED,REDACTED
04.09.2019,CHILDREN'S SERVICES,REDACTED PERSONAL DATA,346.99,LEAVING CARE GRANT,OTHER PAYMENTS FOR CLIENTS,REDACTED,REDACTED
04.09.2019,CHILDREN'S SERVICES,REDACTED PERSONAL DATA,269.08,RESIDENCE ORDERS,PAYMENTS TO CARERS,REDACTED,REDACTED
04.09.2019,CHILDREN'S SERVICES,REDACTED PERSONAL DATA,276.1,RESIDENCE ORDERS,PAYMENTS TO CARERS,REDACTED,REDACTED
04.09.2019,CHILDREN'S SERVICES,KEYS CHILDCARE LTD,885.72,RESIDENTIAL,OTHER PAYMENTS FOR CLIENTS,2102999355,1000081582
04.09.2019,CHILDREN'S SERVICES,COMMUNITY BUILDING MANAGEMENT,"9,171.36",RESIDENTIAL,RESIDENTIAL CARE,2102999357,1000078932
04.09.2019,CHILDREN'S SERVICES,KEYS CHILDCARE LTD,"16,607.14",RESIDENTIAL,RESIDENTIAL CARE,2102999353,1000081582
04.09.2019,CHILDREN'S SERVICES,KEYS SPECIALIST RESIDENTIAL CHILDREN'S SERVICES,"21,921.43",RESIDENTIAL,RESIDENTIAL CARE,2102999351,1000081606
04.09.2019,CHILDREN'S SERVICES,THE SALVATION ARMY,325.3,S24 CLA,EXTERNAL AGENCIES AND BODIES,5902376441,1000016253
04.09.2019,CHILDREN'S SERVICES,THE SALVATION ARMY,389.87,S24 CLA,EXTERNAL AGENCIES AND BODIES,5902376406,1000016253
04.09.2019,CHILDREN'S SERVICES,THE SALVATION ARMY,390.36,S24 CLA,EXTERNAL AGENCIES AND BODIES,5902376457,1000016253
04.09.2019,CHILDREN'S SERVICES,THE SALVATION ARMY,427.32,S24 CLA,EXTERNAL AGENCIES AND BODIES,5902376426,1000016253
04.09.2019,CHILDREN'S SERVICES,THE SALVATION ARMY,444.1,S24 CLA,EXTERNAL AGENCIES AND BODIES,5902376426,1000016253
04.09.2019,CHILDREN'S SERVICES,THE SALVATION ARMY,455.42,S24 CLA,EXTERNAL AGENCIES AND BODIES,5902376359,1000016253
04.09.2019,CHILDREN'S SERVICES,LOOK AHEAD CARE AND SUPPORT LTD,508.05,S24 CLA,EXTERNAL AGENCIES AND BODIES,2102999880,1000047299
04.09.2019,CHILDREN'S SERVICES,THE SALVATION ARMY,508.05,S24 CLA,EXTERNAL AGENCIES AND BODIES,5902376457,1000016253
04.09.2019,CHILDREN'S SERVICES,THE SALVATION ARMY,509.16,S24 CLA,EXTERNAL AGENCIES AND BODIES,5902376426,1000016253
04.09.2019,CHILDREN'S SERVICES,LOOK AHEAD CARE AND SUPPORT LTD,516,S24 CLA,EXTERNAL AGENCIES AND BODIES,2102999875,1000047299
04.09.2019,CHILDREN'S SERVICES,THE SALVATION ARMY,715.66,S24 CLA,EXTERNAL AGENCIES AND BODIES,5902376370,1000016253
04.09.2019,CHILDREN'S SERVICES,LOOK AHEAD CARE AND SUPPORT LTD,744.09,S24 CLA,EXTERNAL AGENCIES AND BODIES,2102999883,1000047299
04.09.2019,CHILDREN'S SERVICES,THE SALVATION ARMY,748.19,S24 CLA,EXTERNAL AGENCIES AND BODIES,5902376370,1000016253
04.09.2019,CHILDREN'S SERVICES,THE SALVATION ARMY,869.71,S24 CLA,EXTERNAL AGENCIES AND BODIES,5902376370,1000016253
04.09.2019,CHILDREN'S SERVICES,THE SALVATION ARMY,899.7,S24 CLA,EXTERNAL AGENCIES AND BODIES,5902376364,1000016253
04.09.2019,CHILDREN'S SERVICES,THE SALVATION ARMY,910.84,S24 CLA,EXTERNAL AGENCIES AND BODIES,5902376426,1000016253
04.09.2019,CHILDREN'S SERVICES,THE SALVATION ARMY,910.84,S24 CLA,EXTERNAL AGENCIES AND BODIES,5902376446,1000016253
04.09.2019,CHILDREN'S SERVICES,THE SALVATION ARMY,910.84,S24 CLA,EXTERNAL AGENCIES AND BODIES,5902376454,1000016253
04.09.2019,CHILDREN'S SERVICES,SP HOMES LTD,919.77,S24 CLA,EXTERNAL AGENCIES AND BODIES,2102999879,1000080326
04.09.2019,CHILDREN'S SERVICES,THE SALVATION ARMY,929.69,S24 CLA,EXTERNAL AGENCIES AND BODIES,5902376406,1000016253
04.09.2019,CHILDREN'S SERVICES,THE SALVATION ARMY,943.37,S24 CLA,EXTERNAL AGENCIES AND BODIES,5902376370,1000016253
04.09.2019,CHILDREN'S SERVICES,THE SALVATION ARMY,943.37,S24 CLA,EXTERNAL AGENCIES AND BODIES,5902376370,1000016253
04.09.2019,CHILDREN'S SERVICES,THE SALVATION ARMY,943.37,S24 CLA,EXTERNAL AGENCIES AND BODIES,5902376441,1000016253
04.09.2019,CHILDREN'S SERVICES,THE SALVATION ARMY,975.9,S24 CLA,EXTERNAL AGENCIES AND BODIES,5902376361,1000016253
04.09.2019,CHILDREN'S SERVICES,THE SALVATION ARMY,975.9,S24 CLA,EXTERNAL AGENCIES AND BODIES,5902376361,1000016253
04.09.2019,CHILDREN'S SERVICES,THE SALVATION ARMY,975.9,S24 CLA,EXTERNAL AGENCIES AND BODIES,5902376364,1000016253
04.09.2019,CHILDREN'S SERVICES,THE SALVATION ARMY,975.9,S24 CLA,EXTERNAL AGENCIES AND BODIES,5902376364,1000016253
04.09.2019,CHILDREN'S SERVICES,THE SALVATION ARMY,975.9,S24 CLA,EXTERNAL AGENCIES AND BODIES,5902376457,1000016253
04.09.2019,CHILDREN'S SERVICES,THE SALVATION ARMY,975.9,S24 CLA,EXTERNAL AGENCIES AND BODIES,5902376457,1000016253
04.09.2019,CHILDREN'S SERVICES,THE SALVATION ARMY,977.74,S24 CLA,EXTERNAL AGENCIES AND BODIES,5902376406,1000016253
04.09.2019,CHILDREN'S SERVICES,THE SALVATION ARMY,977.74,S24 CLA,EXTERNAL AGENCIES AND BODIES,5902376406,1000016253
04.09.2019,CHILDREN'S SERVICES,THE SALVATION ARMY,977.74,S24 CLA,EXTERNAL AGENCIES AND BODIES,5902376406,1000016253
04.09.2019,CHILDREN'S SERVICES,THE SALVATION ARMY,"1,016.10",S24 CLA,EXTERNAL AGENCIES AND BODIES,5902376364,1000016253
04.09.2019,CHILDREN'S SERVICES,THE SALVATION ARMY,"2,099.94",S24 CLA,EXTERNAL AGENCIES AND BODIES,5902376446,1000016253
04.09.2019,CHILDREN'S SERVICES,THE ARTEMIS TEAM LTD,"2,130.00",S24 CLA,EXTERNAL AGENCIES AND BODIES,2102999884,1000057937
04.09.2019,CHILDREN'S SERVICES,THE ARTEMIS TEAM LTD,"2,170.00",S24 CLA,EXTERNAL AGENCIES AND BODIES,2102999887,1000057937
04.09.2019,CHILDREN'S SERVICES,NETPEX LTD CORPORATE SERVICES,"3,550.05",S24 CLA,EXTERNAL AGENCIES AND BODIES,2102999885,1000076073
04.09.2019,CHILDREN'S SERVICES,SILVER BIRCH CARE LTD,"3,653.57",S24 CLA,EXTERNAL AGENCIES AND BODIES,2102999410,1000076525
04.09.2019,CHILDREN'S SERVICES,SILVER BIRCH CARE LTD,"3,875.00",S24 CLA,EXTERNAL AGENCIES AND BODIES,2102999412,1000076525
04.09.2019,CHILDREN'S SERVICES,NETPEX LTD CORPORATE SERVICES,"4,521.60",S24 CLA,EXTERNAL AGENCIES AND BODIES,2102999888,1000076073
04.09.2019,CHILDREN'S SERVICES,NETPEX LTD CORPORATE SERVICES,"4,672.32",S24 CLA,EXTERNAL AGENCIES AND BODIES,2102999877,1000076073
04.09.2019,CHILDREN'S SERVICES,NETPEX LTD CORPORATE SERVICES,"4,672.32",S24 CLA,EXTERNAL AGENCIES AND BODIES,2102999886,1000076073
04.09.2019,CHILDREN'S SERVICES,LOOK AHEAD CARE AND SUPPORT LTD,"5,332.00",S24 CLA,EXTERNAL AGENCIES AND BODIES,2102999876,1000047299
04.09.2019,CHILDREN'S SERVICES,REDACTED PERSONAL DATA,"1,628.65",S24 CLA,EXTERNAL AGENCIES AND BODIES,REDACTED,REDACTED
04.09.2019,CHILDREN'S SERVICES,THE ARTEMIS TEAM LTD,"2,734.25",SEMI INDEPENDENT,EXTERNAL AGENCIES AND BODIES,2102999891,1000057937
04.09.2019,CHILDREN'S SERVICES,SILVER BIRCH CARE LTD,"3,067.21",SEMI INDEPENDENT,EXTERNAL AGENCIES AND BODIES,2102999408,1000076525
04.09.2019,CHILDREN'S SERVICES,DALEY BREAD LTD,"22,120.00",SEMI INDEPENDENT,EXTERNAL AGENCIES AND BODIES,2102999894,1000080141
04.09.2019,CHILDREN'S SERVICES,REDACTED PERSONAL DATA,300,SEMI INDEPENDENT,OTHER PAYMENTS FOR CLIENTS,REDACTED,REDACTED
04.09.2019,CHILDREN'S SERVICES,REDACTED PERSONAL DATA,597.13,SEMI INDEPENDENT,OTHER PAYMENTS FOR CLIENTS,REDACTED,REDACTED
04.09.2019,CHILDREN'S SERVICES,REDACTED PERSONAL DATA,"1,045.71",SEMI INDEPENDENT,OTHER PAYMENTS FOR CLIENTS,REDACTED,REDACTED
04.09.2019,CHILDREN'S SERVICES,REDACTED PERSONAL DATA,-279.6,SPECIAL GUARDIANSHIP,PAYMENTS TO CARERS,REDACTED,REDACTED
04.09.2019,CHILDREN'S SERVICES,REDACTED PERSONAL DATA,269.08,SPECIAL GUARDIANSHIP,PAYMENTS TO CARERS,REDACTED,REDACTED
04.09.2019,CHILDREN'S SERVICES,REDACTED PERSONAL DATA,342.45,SPECIAL GUARDIANSHIP,PAYMENTS TO CARERS,REDACTED,REDACTED
04.09.2019,CHILDREN'S SERVICES,REDACTED PERSONAL DATA,343.05,SPECIAL GUARDIANSHIP,PAYMENTS TO CARERS,REDACTED,REDACTED
04.09.2019,CHILDREN'S SERVICES,REDACTED PERSONAL DATA,356.15,SPECIAL GUARDIANSHIP,PAYMENTS TO CARERS,REDACTED,REDACTED
04.09.2019,CHILDREN'S SERVICES,REDACTED PERSONAL DATA,388.04,SPECIAL GUARDIANSHIP,PAYMENTS TO CARERS,REDACTED,REDACTED
04.09.2019,CHILDREN'S SERVICES,REDACTED PERSONAL DATA,389.34,SPECIAL GUARDIANSHIP,PAYMENTS TO CARERS,REDACTED,REDACTED
04.09.2019,CHILDREN'S SERVICES,REDACTED PERSONAL DATA,395,SPECIAL GUARDIANSHIP,PAYMENTS TO CARERS,REDACTED,REDACTED
04.09.2019,CHILDREN'S SERVICES,REDACTED PERSONAL DATA,403.04,SPECIAL GUARDIANSHIP,PAYMENTS TO CARERS,REDACTED,REDACTED
04.09.2019,CHILDREN'S SERVICES,REDACTED PERSONAL DATA,525,SPECIAL GUARDIANSHIP,PAYMENTS TO CARERS,REDACTED,REDACTED
04.09.2019,CHILDREN'S SERVICES,REDACTED PERSONAL DATA,525,SPECIAL GUARDIANSHIP,PAYMENTS TO CARERS,REDACTED,REDACTED
04.09.2019,CHILDREN'S SERVICES,REDACTED PERSONAL DATA,525,SPECIAL GUARDIANSHIP,PAYMENTS TO CARERS,REDACTED,REDACTED
04.09.2019,CHILDREN'S SERVICES,INTEGRATED SERVICES PROGRAMME,"2,411.80",STAYING PUT,EXTERNAL AGENCIES AND BODIES,2102999890,1642068
04.09.2019,CHILDREN'S SERVICES,THE SALVATION ARMY,283.86,UASC SECTION 24,EXTERNAL AGENCIES AND BODIES,5902376406,1000016253
04.09.2019,CHILDREN'S SERVICES,THE SALVATION ARMY,325.3,UASC SECTION 24,EXTERNAL AGENCIES AND BODIES,5902376457,1000016253
04.09.2019,CHILDREN'S SERVICES,THE SALVATION ARMY,504.64,UASC SECTION 24,EXTERNAL AGENCIES AND BODIES,5902376406,1000016253
04.09.2019,CHILDREN'S SERVICES,HEXAGON HOUSING ASSOCIATION LTD,569.08,UASC SECTION 24,EXTERNAL AGENCIES AND BODIES,2102999881,1000056905
04.09.2019,CHILDREN'S SERVICES,THE SALVATION ARMY,618.07,UASC SECTION 24,EXTERNAL AGENCIES AND BODIES,5902376406,1000016253
04.09.2019,CHILDREN'S SERVICES,LOOK AHEAD CARE AND SUPPORT LTD,798.56,UASC SECTION 24,EXTERNAL AGENCIES AND BODIES,2102999889,1000047299
04.09.2019,CHILDREN'S SERVICES,THE SALVATION ARMY,943.37,UASC SECTION 24,EXTERNAL AGENCIES AND BODIES,5902376370,1000016253
04.09.2019,CHILDREN'S SERVICES,THE SALVATION ARMY,943.37,UASC SECTION 24,EXTERNAL AGENCIES AND BODIES,5902376370,1000016253
04.09.2019,CHILDREN'S SERVICES,THE SALVATION ARMY,975.9,UASC SECTION 24,EXTERNAL AGENCIES AND BODIES,5902376361,1000016253
04.09.2019,CHILDREN'S SERVICES,THE SALVATION ARMY,975.9,UASC SECTION 24,EXTERNAL AGENCIES AND BODIES,5902376361,1000016253
04.09.2019,CHILDREN'S SERVICES,THE SALVATION ARMY,975.9,UASC SECTION 24,EXTERNAL AGENCIES AND BODIES,5902376361,1000016253
04.09.2019,CHILDREN'S SERVICES,THE SALVATION ARMY,975.9,UASC SECTION 24,EXTERNAL AGENCIES AND BODIES,5902376364,1000016253
04.09.2019,CHILDREN'S SERVICES,THE SALVATION ARMY,975.9,UASC SECTION 24,EXTERNAL AGENCIES AND BODIES,5902376364,1000016253
04.09.2019,CHILDREN'S SERVICES,THE SALVATION ARMY,975.9,UASC SECTION 24,EXTERNAL AGENCIES AND BODIES,5902376364,1000016253
04.09.2019,CHILDREN'S SERVICES,THE SALVATION ARMY,975.9,UASC SECTION 24,EXTERNAL AGENCIES AND BODIES,5902376364,1000016253
04.09.2019,CHILDREN'S SERVICES,THE SALVATION ARMY,975.9,UASC SECTION 24,EXTERNAL AGENCIES AND BODIES,5902376364,1000016253
04.09.2019,CHILDREN'S SERVICES,THE SALVATION ARMY,977.74,UASC SECTION 24,EXTERNAL AGENCIES AND BODIES,5902376406,1000016253
04.09.2019,CHILDREN'S SERVICES,LOOK AHEAD CARE AND SUPPORT LTD,"1,237.20",UASC SECTION 24,EXTERNAL AGENCIES AND BODIES,2102999882,1000047299
04.09.2019,CHILDREN'S SERVICES,THE SALVATION ARMY,"2,016.86",UASC SECTION 24,EXTERNAL AGENCIES AND BODIES,5902376431,1000016253
04.09.2019,CHILDREN'S SERVICES,LOOK AHEAD CARE AND SUPPORT LTD,848.25,UNACCOMPANIED ASYLUM CHILDREN 16-17,EXTERNAL AGENCIES AND BODIES,2102999895,1000047299
04.09.2019,CHILDREN'S SERVICES,REDACTED PERSONAL DATA,300,UNACCOMPANIED ASYLUM CHILDREN 16-17,OTHER PAYMENTS FOR CLIENTS,REDACTED,REDACTED
04.09.2019,CHILDREN'S SERVICES,REDACTED PERSONAL DATA,300,UNIVERSITY SUPPORT,CLIENT TRANSPORT,REDACTED,REDACTED
04.09.2019,CHILDREN'S SERVICES,REDACTED PERSONAL DATA,300,UNIVERSITY SUPPORT,CLIENT TRANSPORT,REDACTED,REDACTED
04.09.2019,CHILDREN'S SERVICES,REDACTED PERSONAL DATA,300,UNIVERSITY SUPPORT,CLIENT TRANSPORT,REDACTED,REDACTED
04.09.2019,CHILDREN'S SERVICES,REDACTED PERSONAL DATA,300,UNIVERSITY SUPPORT,CLIENT TRANSPORT,REDACTED,REDACTED
04.09.2019,CHILDREN'S SERVICES,REDACTED PERSONAL DATA,700,UNIVERSITY SUPPORT,OTHER PAYMENTS FOR CLIENTS,REDACTED,REDACTED
04.09.2019,CHILDREN'S SERVICES,REDACTED PERSONAL DATA,800,UNIVERSITY SUPPORT,OTHER PAYMENTS FOR CLIENTS,REDACTED,REDACTED
04.09.2019,CHILDREN'S SERVICES,REDACTED PERSONAL DATA,"1,000.00",UNIVERSITY SUPPORT,OTHER PAYMENTS FOR CLIENTS,REDACTED,REDACTED
04.09.2019,CHILDREN'S SERVICES,REDACTED PERSONAL DATA,"2,450.00",UNIVERSITY SUPPORT,OTHER PAYMENTS FOR CLIENTS,REDACTED,REDACTED
04.09.2019,COMMUNITIES,DEYNSFORD TENANT MANAGEMENT ORGANISATION,"5,486.06",D'EYNSFORD ESTATE,M&M ALLOWANCE CO-OPS,5902376427,1000075613
04.09.2019,COMMUNITIES,LONDON PROPERTY ONLINE LTD,"2,680.00",NO RECOURSE TO PUBLIC FUNDS,ACCOMMODATION CHARGES,5902376413,1000080013
04.09.2019,COMMUNITIES,BROOK,"36,437.50",YOUNG PEOPLES SERVICE,OTHER CONTRACTORS,5902376551,1000076901
04.09.2019,CUSTOMER EXPERIENCE HGF,ACCESS INDEPENDENT LTD,"2,861.25",BLUE BADGES,PROFESSIONAL FEES,5902376378,1000059141
04.09.2019,CUSTOMER EXPERIENCE HGF,SG PATH LTD,415.8,CORONER'S,PROFESSIONAL FEES,5902376440,1000077883
04.09.2019,CUSTOMER EXPERIENCE HGF,GVA GRIMLEY LTD T/A AVISON YOUNG,"2,951.00",HOMELESS & HOUSING OPTIONS MGT,PROFESSIONAL FEES,5902376499,1000016057
04.09.2019,CUSTOMER EXPERIENCE HGF,GVA GRIMLEY LTD T/A AVISON YOUNG,"4,847.52",HOMELESS & HOUSING OPTIONS MGT,PROFESSIONAL FEES,5902376479,1000016057
04.09.2019,CUSTOMER EXPERIENCE HGF,GVA GRIMLEY LTD T/A AVISON YOUNG,"6,000.00",HOMELESS & HOUSING OPTIONS MGT,PROFESSIONAL FEES,5902376501,1000016057
04.09.2019,CUSTOMER EXPERIENCE HGF,GOVERNMENT EVENTS,322.15,HOMELESS & HOUSING OPTIONS MGT,TRAINING,5902376584,1000081438
04.09.2019,CUSTOMER EXPERIENCE HGF,CARIDON LANDLORD SOLUTIONS LTD,"1,299.06",HOMELESS PROJECTS,GRANTS,5902376594,1000080555
04.09.2019,CUSTOMER EXPERIENCE HGF,CARIDON LANDLORD SOLUTIONS LTD,"1,299.06",HOMELESS PROJECTS,GRANTS,5902376597,1000080555
04.09.2019,CUSTOMER EXPERIENCE HGF,INSTITUTE OF LEADERSHIP,648,HOMELESSNESS TRAINING ACADEMY,TRAINING,5902376570,1000070935
04.09.2019,CUSTOMER EXPERIENCE HGF,INSTITUTE OF LEADERSHIP,"1,162.00",HOMELESSNESS TRAINING ACADEMY,TRAINING,5902376574,1000070935
04.09.2019,CUSTOMER EXPERIENCE HGF,STENFORD PROPERTY LTD,"49,495.40",NIGHTLY TA (NSC),EXTERNAL AGENCIES AND BODIES,5902376442,1000074759
04.09.2019,CUSTOMER EXPERIENCE HGF,TAAKSVALE HOUSING LTD,"87,729.25",NIGHTLY TA (NSC),EXTERNAL AGENCIES AND BODIES,5902376374,1000073665
04.09.2019,CUSTOMER EXPERIENCE HGF,DENHAN PROPERTY SERVICES LTD,"-8,712.35",PSL PLACEMENTS,EXTERNAL AGENCIES AND BODIES,5902376588,1000082464
04.09.2019,CUSTOMER EXPERIENCE HGF,DENHAN PROPERTY SERVICES LTD,"169,144.58",PSL PLACEMENTS,EXTERNAL AGENCIES AND BODIES,5902376586,1000082464
04.09.2019,DIRECTOR'S OFFICE,DARENACE LTD,400,FINANCE DIRECTOR,PROFESSIONAL FEES,5902376453,1000082184
04.09.2019,ENVIRONMENT AND LEISURE,ALDO RINALDI,756.14,CAPITAL PS (LEISURE),CONSTR'N SUB CONTRACT - NON CERTIFICATED,5902376462,1000079649
04.09.2019,ENVIRONMENT DIRECTORATE,CTC RECRUITMENT LTD,663.6,NON HOUSING GROUNDS,AGENCY STAFF,5902376567,1000041410
04.09.2019,ENVIRONMENT DIRECTORATE,GREEN PLANT UK LTD,"1,559.19",NON HOUSING GROUNDS,EQUIPMENT PURCHASE & REPAIR,5902376590,1000073151
04.09.2019,ENVIRONMENT DIRECTORATE,TYCO INTEGRATED FIRE & SECURITY,"2,572.72",PARKING & CAR PARKS CCTV,PROFESSIONAL FEES,5902376366,1000077948
04.09.2019,ENVIRONMENT DIRECTORATE,CONWAY AECOM LTD,"7,602.00",PARKING OVERHEADS,OTHER CONTRACTORS,2102999922,3000001595
04.09.2019,ENVIRONMENT DIRECTORATE,CONWAY AECOM LTD,"9,774.00",PARKING OVERHEADS,OTHER CONTRACTORS,2102999921,3000001595
04.09.2019,ENVIRONMENT DIRECTORATE,CABLE TEST LTD,471.4,PUBLIC LIGHTING,SOUTHWARK DIRECT CHARGES,5902376490,1000079183
04.09.2019,ENVIRONMENT DIRECTORATE,CABLE TEST LTD,471.4,PUBLIC LIGHTING,SOUTHWARK DIRECT CHARGES,5902376492,1000079183
04.09.2019,ENVIRONMENT DIRECTORATE,CABLE TEST LTD,471.4,PUBLIC LIGHTING,SOUTHWARK DIRECT CHARGES,5902376493,1000079183
04.09.2019,ENVIRONMENT DIRECTORATE,CABLE TEST LTD,537.79,PUBLIC LIGHTING,SOUTHWARK DIRECT CHARGES,5902376489,1000079183
04.09.2019,ENVIRONMENT DIRECTORATE,CABLE TEST LTD,900.79,PUBLIC LIGHTING,SOUTHWARK DIRECT CHARGES,5902376487,1000079183
04.09.2019,ENVIRONMENT DIRECTORATE,CABLE TEST LTD,"1,042.37",PUBLIC LIGHTING,SOUTHWARK DIRECT CHARGES,5902376481,1000079183
04.09.2019,ENVIRONMENT DIRECTORATE,CABLE TEST LTD,"1,081.91",PUBLIC LIGHTING,SOUTHWARK DIRECT CHARGES,5902376496,1000079183
04.09.2019,ENVIRONMENT DIRECTORATE,CABLE TEST LTD,"1,091.25",PUBLIC LIGHTING,SOUTHWARK DIRECT CHARGES,5902376494,1000079183
04.09.2019,ENVIRONMENT DIRECTORATE,CABLE TEST LTD,"2,427.66",PUBLIC LIGHTING,SOUTHWARK DIRECT CHARGES,5902376485,1000079183
04.09.2019,ENVIRONMENT DIRECTORATE,CABLE TEST LTD,"3,516.66",PUBLIC LIGHTING,SOUTHWARK DIRECT CHARGES,5902376483,1000079183
04.09.2019,ENVIRONMENT DIRECTORATE,TRAILPARTS,261.8,STREET CLEANING-GENERAL,EQUIPMENT PURCHASE & REPAIR,5902376538,1648326
04.09.2019,ENVIRONMENT DIRECTORATE,GLASDON UK LIMITED,437.76,STREET CLEANING-GENERAL,MATERIALS,5902376603,1024073
04.09.2019,ENVIRONMENT DIRECTORATE,WYBONE LTD,"1,436.00",STREET CLEANING-GENERAL,MATERIALS,5902376569,1000042643
04.09.2019,ENVIRONMENT DIRECTORATE,HIGHWAY QUALITY SOLUTIONS LTD,"1,390.05",STREET WORKS OVERHEADS,BOOKS & PUBLICATIONS,5902376363,1000078521
04.09.2019,ENVIRONMENT DIRECTORATE,TYCO INTEGRATED FIRE & SECURITY,623.9,TOWN CENTRE CCTV,OTHER CONTRACTORS,5902376409,1000077948
04.09.2019,FINANCE DIRECTOR,BDO LLP,"22,005.00",INTERNAL AUDIT CONTRACTS,PAYMENTS FOR FINANCIAL SERVICES,5902376451,1000057898
04.09.2019,HOUSING HRA,L H BRIDGE LTD,"2,895.00",CAPITAL PS (HRA),CONST'N MAIN CONTRACT - NON CERTIFICATED,2102999920,3000001167
04.09.2019,HOUSING HRA,CALFORD SEADEN LLP,"3,067.46",CAPITAL PS (HRA),CONSTRUCTION FEES  - EXTERNAL,5902376564,1061592
04.09.2019,HOUSING HRA,POTTER RAPER LTD,"7,316.48",CAPITAL PS (HRA),CONSTRUCTION FEES  - EXTERNAL,5902376397,1009369
04.09.2019,HOUSING HRA,CALFORD SEADEN LLP,"8,576.93",CAPITAL PS (HRA),CONSTRUCTION FEES  - EXTERNAL,5902376558,1061592
04.09.2019,HOUSING HRA,POTTER RAPER LTD,"10,563.82",CAPITAL PS (HRA),CONSTRUCTION FEES  - EXTERNAL,5902376580,1009369
04.09.2019,HOUSING HRA,POTTER RAPER LTD,"31,516.00",CAPITAL PS (HRA),CONSTRUCTION FEES  - EXTERNAL,5902376580,1009369
04.09.2019,HOUSING HRA,BELL PHILLIPS ARCHITECTS LTD,"6,140.00",CAPITAL PS (REGEN),CONSTRUCTION FEES  - EXTERNAL,5902376542,1000069307
04.09.2019,LEISURE DIRECTORATE,CASTLE WATER LTD,"5,814.84",CHUMLEIGH GDNS TEAM,WATER,5902376467,1000078867
04.09.2019,LEISURE DIRECTORATE,TYCO INTEGRATED FIRE & SECURITY,"8,679.90",CREMATORIUM,BUILDING R&M,5902376543,1000077948
04.09.2019,LEISURE DIRECTORATE,CASTLE WATER LTD,"1,624.00",DULWICH AREA TEAM,WATER,5902376510,1000078867
04.09.2019,LEISURE DIRECTORATE,SPORTS AND LEISURE MANAGEMENT LTD,"22,013.28",LEISURE INVESTMENT,SALARIES & WAGES (INCL LW),5902376432,1000077862
04.09.2019,LEISURE DIRECTORATE,CTC RECRUITMENT LTD,442.13,TREES O'HEADS,CONSULTANTS SERVICES,5902376577,1000041410
04.09.2019,LEISURE DIRECTORATE,CTC RECRUITMENT LTD,549,TREES O'HEADS,CONSULTANTS SERVICES,5902376573,1000041410
04.09.2019,LEISURE DIRECTORATE,CTC RECRUITMENT LTD,589.5,TREES O'HEADS,CONSULTANTS SERVICES,5902376579,1000041410
04.09.2019,LEISURE DIRECTORATE,CTC RECRUITMENT LTD,736.88,TREES O'HEADS,CONSULTANTS SERVICES,5902376429,1000041410
04.09.2019,MODERNISATION HGF,VIRGIN MEDIA,668,IT MANAGEMENT,DATA COMMUNICATIONS,5902376592,1000026457
04.09.2019,NEW SOUTHWARK BUILDING SERVICES,MULTI-INSTALLATIONS LTD,"3,381.89",SBS - HOLDING ACCOUNT,OTHER CONTRACTORS,2102999924,3000000595
04.09.2019,NEW SOUTHWARK BUILDING SERVICES,GC CONSTRUCT LTD,"4,962.09",SBS - HOLDING ACCOUNT,OTHER CONTRACTORS,2102999929,3000002106
04.09.2019,NEW SOUTHWARK BUILDING SERVICES,ATPB LTD,"6,627.30",SBS - HOLDING ACCOUNT,OTHER CONTRACTORS,2102999927,3000001850
04.09.2019,NEW SOUTHWARK BUILDING SERVICES,BUDMAX CONSTRUCTION LTD,"7,248.48",SBS - HOLDING ACCOUNT,OTHER CONTRACTORS,2102999928,3000001936
04.09.2019,NEW SOUTHWARK BUILDING SERVICES,DIAMOND SCAFFOLDING (SOUTH EAST),"8,131.95",SBS - HOLDING ACCOUNT,OTHER CONTRACTORS,2102999925,3000001625
04.09.2019,NEW SOUTHWARK BUILDING SERVICES,KNK BUILDING SERVICES LTD,"10,382.43",SBS - HOLDING ACCOUNT,OTHER CONTRACTORS,2102999931,3000001728
04.09.2019,NEW SOUTHWARK BUILDING SERVICES,SMITHY DECORATING,"10,747.79",SBS - HOLDING ACCOUNT,OTHER CONTRACTORS,2102999935,3000002050
04.09.2019,NEW SOUTHWARK BUILDING SERVICES,GMS ELECTRICAL LTD,"13,203.42",SBS - HOLDING ACCOUNT,OTHER CONTRACTORS,2102999923,3000002085
04.09.2019,NEW SOUTHWARK BUILDING SERVICES,NEW IMAGE WINDOWS LTD,"14,334.67",SBS - HOLDING ACCOUNT,OTHER CONTRACTORS,2102999926,3000000956
04.09.2019,NEW SOUTHWARK BUILDING SERVICES,FRANKLYN SHAW ASSOCIATES LTD,"17,655.50",SBS - HOLDING ACCOUNT,OTHER CONTRACTORS,2102999930,3000001465
04.09.2019,NEW SOUTHWARK BUILDING SERVICES,LIBRA CONSTRUCTION SERVICES LTD,"33,645.55",SBS - HOLDING ACCOUNT,OTHER CONTRACTORS,2102999932,3000000875
04.09.2019,NEW SOUTHWARK BUILDING SERVICES,1st ACTIVE PROPERTY SERVICES LTD,"35,112.28",SBS - HOLDING ACCOUNT,OTHER CONTRACTORS,2102999934,3000001655
04.09.2019,NEW SOUTHWARK BUILDING SERVICES,TMG TRADING LTD,"43,602.28",SBS - HOLDING ACCOUNT,OTHER CONTRACTORS,2102999933,3000002073
04.09.2019,NEW SOUTHWARK BUILDING SERVICES,AKW MEDI-CARE LTD,604.5,SBS AIDS AND ADAPTATIONS,MATERIALS,5902376418,1000047103
04.09.2019,NEW SOUTHWARK BUILDING SERVICES,AKW MEDI-CARE LTD,752.88,SBS AIDS AND ADAPTATIONS,MATERIALS,5902376414,1000047103
04.09.2019,NEW SOUTHWARK BUILDING SERVICES,INDUSTRIAL CHEMICAL EXPERTS LIMITED,323.75,STORES / LOGISTICS,MATERIALS,5902376198,1000083167
04.09.2019,REGENERATION,ILLUMINATE PRODUCTIONS,"9,000.00",BLACKFRIARS ROAD PROJECT,MARKETING & PUBLICITY SERVICES,5902376368,1000075869
04.09.2019,REGENERATION,ILLUMINATED ARTS,"4,160.00",OLD KENT RD-FEES/MPLAN,MARKETING & PUBLICITY SERVICES,5902376362,1000078065
04.09.2019,RESIDENT SERVICES,HARROW GREEN LTD,"9,158.76",OPERATIONS/OFFICES ACCOMMODATION,REMOVAL EXPENSES,5902376365,1000076673
04.09.2019,RESIDENT SERVICES,CENTENNIAL PROPERTY LIMITED,260,TA PLACEMENTS,EXTERNAL AGENCIES AND BODIES,5902376400,1000083022
04.09.2019,RESIDENT SERVICES,KINDLY PROPERTIES LTD,315,TA PLACEMENTS,EXTERNAL AGENCIES AND BODIES,5902376600,1000060734
04.09.2019,RESIDENT SERVICES,RS REAL ESTATE LTD,490,TA PLACEMENTS,EXTERNAL AGENCIES AND BODIES,5902376606,1000072485
04.09.2019,RESIDENT SERVICES,RS REAL ESTATE LTD,560,TA PLACEMENTS,EXTERNAL AGENCIES AND BODIES,5902376605,1000072485
04.09.2019,RESIDENT SERVICES,KINDLY PROPERTIES LTD,810,TA PLACEMENTS,EXTERNAL AGENCIES AND BODIES,5902376595,1000060734
04.09.2019,RESIDENT SERVICES,GOLDSTONE ESTATES LTD,837,TA PLACEMENTS,EXTERNAL AGENCIES AND BODIES,5902376436,1000076548
04.09.2019,RESIDENT SERVICES,VENTURE HOUSING (LONDON) LTD,"2,010.00",TA PLACEMENTS,EXTERNAL AGENCIES AND BODIES,5902376419,1000056686
04.09.2019,RESIDENT SERVICES,NATIONWIDE ACCOMMODATION,"2,648.64",TA PLACEMENTS,EXTERNAL AGENCIES AND BODIES,5902376447,1000076112
04.09.2019,RESIDENT SERVICES,NATIONWIDE ACCOMMODATION,"3,827.40",TA PLACEMENTS,EXTERNAL AGENCIES AND BODIES,5902376445,1000076112
04.09.2019,RESIDENT SERVICES,TAAKSVALE HOUSING LTD,"4,170.00",TA PLACEMENTS,EXTERNAL AGENCIES AND BODIES,5902376386,1000073665
04.09.2019,RESIDENT SERVICES,TAAKSVALE HOUSING LTD,"4,280.00",TA PLACEMENTS,EXTERNAL AGENCIES AND BODIES,5902376382,1000073665
04.09.2019,RESIDENT SERVICES,TAAKSVALE HOUSING LTD,"4,287.00",TA PLACEMENTS,EXTERNAL AGENCIES AND BODIES,5902376391,1000073665
04.09.2019,RESIDENT SERVICES,TAAKSVALE HOUSING LTD,"5,693.00",TA PLACEMENTS,EXTERNAL AGENCIES AND BODIES,5902376601,1000073665
04.09.2019,SOUTHWARK BUILDING SERVICES,"BROWNING, JONES & MORRIS LTD",259.9,STORES/LOGISTICS,CREDITORS -GR/IR CLEARING ACCOUNT,5902376383,1027429
04.09.2019,SOUTHWARK BUILDING SERVICES,"BROWNING, JONES & MORRIS LTD",259.9,STORES/LOGISTICS,CREDITORS -GR/IR CLEARING ACCOUNT,5902376383,1027429
04.09.2019,SOUTHWARK BUILDING SERVICES,PPG ARCHITECTURAL COATINGS,284.5,STORES/LOGISTICS,CREDITORS -GR/IR CLEARING ACCOUNT,5902376402,11063178
04.09.2019,SOUTHWARK BUILDING SERVICES,PPG ARCHITECTURAL COATINGS,376,STORES/LOGISTICS,CREDITORS -GR/IR CLEARING ACCOUNT,5902376402,11063178
04.09.2019,SOUTHWARK BUILDING SERVICES,"BROWNING, JONES & MORRIS LTD",399,STORES/LOGISTICS,CREDITORS -GR/IR CLEARING ACCOUNT,5902376376,1027429
04.09.2019,SOUTHWARK BUILDING SERVICES,"BROWNING, JONES & MORRIS LTD",495,STORES/LOGISTICS,CREDITORS -GR/IR CLEARING ACCOUNT,5902376376,1027429
04.09.2019,SOUTHWARK BUILDING SERVICES,"BROWNING, JONES & MORRIS LTD",560.8,STORES/LOGISTICS,CREDITORS -GR/IR CLEARING ACCOUNT,5902376376,1027429
04.09.2019,SOUTHWARK BUILDING SERVICES,"BROWNING, JONES & MORRIS LTD",689.7,STORES/LOGISTICS,CREDITORS -GR/IR CLEARING ACCOUNT,5902376376,1027429
04.09.2019,SOUTHWARK BUILDING SERVICES,"BROWNING, JONES & MORRIS LTD","1,183.14",STORES/LOGISTICS,CREDITORS -GR/IR CLEARING ACCOUNT,5902376379,1027429
05.09.2019,ADULT SOCIAL CARE,REDACTED PERSONAL DATA,342.4,APPOINTEESHIPS,OTHER PAYMENTS FOR CLIENTS,REDACTED,REDACTED
05.09.2019,ADULT SOCIAL CARE,REDACTED PERSONAL DATA,400,APPOINTEESHIPS,OTHER PAYMENTS FOR CLIENTS,REDACTED,REDACTED
05.09.2019,ADULT SOCIAL CARE,BY THE BRIDGE LTD,"5,757.14",DISABILITIES LAC,EXTERNAL AGENCIES AND BODIES,2102999993,1000043961
05.09.2019,ADULT SOCIAL CARE,BY THE BRIDGE LTD,"6,231.00",DISABILITIES LAC,EXTERNAL AGENCIES AND BODIES,2103000027,1000043961
05.09.2019,ADULT SOCIAL CARE,ALL4U FOSTERING LTD,"6,443.04",DISABILITIES LAC,EXTERNAL AGENCIES AND BODIES,2102999996,1000080663
05.09.2019,ADULT SOCIAL CARE,ALL4U FOSTERING LTD,"6,443.04",DISABILITIES LAC,EXTERNAL AGENCIES AND BODIES,2103000056,1000080663
05.09.2019,ADULT SOCIAL CARE,ACCESS MOBILITY TRANSPORT LTD,"2,578.80",LD LTS 18-64,CLIENT TRANSPORT,2103000085,1000074637
05.09.2019,ADULT SOCIAL CARE,THE CAMDEN SOCIETY (SOCIAL CARE),465.6,LD LTS 18-64,DAYCARE,2103000076,1000036369
05.09.2019,ADULT SOCIAL CARE,SURREY DOCKS FARM PROVIDENT SOCIETY,480,LD LTS 18-64,DAYCARE,2103000133,1000000958
05.09.2019,ADULT SOCIAL CARE,SURREY DOCKS FARM PROVIDENT SOCIETY,487.5,LD LTS 18-64,DAYCARE,2103000134,1000000958
05.09.2019,ADULT SOCIAL CARE,THE CAMDEN SOCIETY (SOCIAL CARE),594,LD LTS 18-64,DAYCARE,2103000071,1000036369
05.09.2019,ADULT SOCIAL CARE,THE CAMDEN SOCIETY (SOCIAL CARE),599.36,LD LTS 18-64,DAYCARE,2103000079,1000036369
05.09.2019,ADULT SOCIAL CARE,THE CAMDEN SOCIETY (SOCIAL CARE),612,LD LTS 18-64,DAYCARE,2103000074,1000036369
05.09.2019,ADULT SOCIAL CARE,THE CAMDEN SOCIETY (SOCIAL CARE),674.16,LD LTS 18-64,DAYCARE,2103000081,1000036369
05.09.2019,ADULT SOCIAL CARE,THE CAMDEN SOCIETY (SOCIAL CARE),704,LD LTS 18-64,DAYCARE,2103000072,1000036369
05.09.2019,ADULT SOCIAL CARE,THE CAMDEN SOCIETY (SOCIAL CARE),705.6,LD LTS 18-64,DAYCARE,2103000080,1000036369
05.09.2019,ADULT SOCIAL CARE,SURREY DOCKS FARM PROVIDENT SOCIETY,720,LD LTS 18-64,DAYCARE,2103000135,1000000958
05.09.2019,ADULT SOCIAL CARE,THE CAMDEN SOCIETY (SOCIAL CARE),897.6,LD LTS 18-64,DAYCARE,2103000077,1000036369
05.09.2019,ADULT SOCIAL CARE,THE CAMDEN SOCIETY (SOCIAL CARE),903.6,LD LTS 18-64,DAYCARE,2103000078,1000036369
05.09.2019,ADULT SOCIAL CARE,THE CAMDEN SOCIETY (SOCIAL CARE),"1,056.00",LD LTS 18-64,DAYCARE,2103000075,1000036369
05.09.2019,ADULT SOCIAL CARE,THE CAMDEN SOCIETY (SOCIAL CARE),"1,824.40",LD LTS 18-64,DAYCARE,2103000073,1000036369
05.09.2019,ADULT SOCIAL CARE,THE CAMDEN SOCIETY (SOCIAL CARE),"2,000.00",LD LTS 18-64,DAYCARE,2103000069,1000036369
05.09.2019,ADULT SOCIAL CARE,THE CAMDEN SOCIETY (SOCIAL CARE),"2,020.00",LD LTS 18-64,DAYCARE,2103000070,1000036369
05.09.2019,ADULT SOCIAL CARE,THE CAMDEN SOCIETY (SOCIAL CARE),"2,160.00",LD LTS 18-64,DAYCARE,2103000082,1000036369
05.09.2019,ADULT SOCIAL CARE,INSPIRE SUPPORT WORKERS LTD,324,LD LTS 18-64,SUPPORTED LIVING,2103000086,1000080725
05.09.2019,ADULT SOCIAL CARE,CARE O LINE,"2,640.00",LD LTS 18-64,SUPPORTED LIVING,2103000155,11241743
05.09.2019,ADULT SOCIAL CARE,INSPIRE SUPPORT WORKERS LTD,"3,850.00",LD LTS 18-64,SUPPORTED LIVING,2103000083,1000080725
05.09.2019,ADULT SOCIAL CARE,SUPREME CARE SERVICES LTD,384.1,PHY LTS 18-64,HOMECARE - C&V,2103000151,1000059416
05.09.2019,ADULT SOCIAL CARE,SUPREME CARE SERVICES LTD,701.4,PHY LTS 18-64,HOMECARE - C&V,2103000148,1000059416
05.09.2019,ADULT SOCIAL CARE,SERVESOUL LTD,408.91,PHY LTS 18-64,HOMECARE - SPOT,2103000090,1000081503
05.09.2019,ADULT SOCIAL CARE,SERVESOUL LTD,408.91,PHY LTS 18-64,HOMECARE - SPOT,2103000189,1000081503
05.09.2019,ADULT SOCIAL CARE,SUPREME CARE SERVICES LTD,601.2,PHY LTS 65+,HOMECARE - C&V,2103000139,1000059416
05.09.2019,ADULT SOCIAL CARE,SUPREME CARE SERVICES LTD,651.3,PHY LTS 65+,HOMECARE - C&V,2103000137,1000059416
05.09.2019,ADULT SOCIAL CARE,SUPREME CARE SERVICES LTD,713.93,PHY LTS 65+,HOMECARE - C&V,2103000140,1000059416
05.09.2019,ADULT SOCIAL CARE,SUPREME CARE SERVICES LTD,764.03,PHY LTS 65+,HOMECARE - C&V,2103000141,1000059416
05.09.2019,ADULT SOCIAL CARE,SUPREME CARE SERVICES LTD,818.3,PHY LTS 65+,HOMECARE - C&V,2103000150,1000059416
05.09.2019,ADULT SOCIAL CARE,SUPREME CARE SERVICES LTD,901.8,PHY LTS 65+,HOMECARE - C&V,2103000149,1000059416
05.09.2019,ADULT SOCIAL CARE,SUPREME CARE SERVICES LTD,"1,052.10",PHY LTS 65+,HOMECARE - C&V,2103000145,1000059416
05.09.2019,ADULT SOCIAL CARE,SUPREME CARE SERVICES LTD,"1,118.90",PHY LTS 65+,HOMECARE - C&V,2103000144,1000059416
05.09.2019,ADULT SOCIAL CARE,SUPREME CARE SERVICES LTD,"1,169.00",PHY LTS 65+,HOMECARE - C&V,2103000146,1000059416
05.09.2019,ADULT SOCIAL CARE,SUPREME CARE SERVICES LTD,"1,670.00",PHY LTS 65+,HOMECARE - C&V,2103000147,1000059416
05.09.2019,ADULT SOCIAL CARE,SERVESOUL LTD,262.87,PHY LTS 65+,HOMECARE - SPOT,2103000115,1000081503
05.09.2019,ADULT SOCIAL CARE,SERVESOUL LTD,262.87,PHY LTS 65+,HOMECARE - SPOT,2103000163,1000081503
05.09.2019,ADULT SOCIAL CARE,SERVESOUL LTD,292.08,PHY LTS 65+,HOMECARE - SPOT,2103000107,1000081503
05.09.2019,ADULT SOCIAL CARE,SERVESOUL LTD,292.08,PHY LTS 65+,HOMECARE - SPOT,2103000172,1000081503
05.09.2019,ADULT SOCIAL CARE,SERVESOUL LTD,308.77,PHY LTS 65+,HOMECARE - SPOT,2103000091,1000081503
05.09.2019,ADULT SOCIAL CARE,SERVESOUL LTD,308.77,PHY LTS 65+,HOMECARE - SPOT,2103000158,1000081503
05.09.2019,ADULT SOCIAL CARE,SERVESOUL LTD,346.32,PHY LTS 65+,HOMECARE - SPOT,2103000116,1000081503
05.09.2019,ADULT SOCIAL CARE,SERVESOUL LTD,346.32,PHY LTS 65+,HOMECARE - SPOT,2103000185,1000081503
05.09.2019,ADULT SOCIAL CARE,SERVESOUL LTD,421.42,PHY LTS 65+,HOMECARE - SPOT,2103000125,1000081503
05.09.2019,ADULT SOCIAL CARE,SERVESOUL LTD,421.42,PHY LTS 65+,HOMECARE - SPOT,2103000160,1000081503
05.09.2019,ADULT SOCIAL CARE,SERVESOUL LTD,433.94,PHY LTS 65+,HOMECARE - SPOT,2103000099,1000081503
05.09.2019,ADULT SOCIAL CARE,SERVESOUL LTD,433.94,PHY LTS 65+,HOMECARE - SPOT,2103000196,1000081503
05.09.2019,ADULT SOCIAL CARE,SERVESOUL LTD,467.32,PHY LTS 65+,HOMECARE - SPOT,2103000191,1000081503
05.09.2019,ADULT SOCIAL CARE,SERVESOUL LTD,525.74,PHY LTS 65+,HOMECARE - SPOT,2103000102,1000081503
05.09.2019,ADULT SOCIAL CARE,SERVESOUL LTD,525.74,PHY LTS 65+,HOMECARE - SPOT,2103000121,1000081503
05.09.2019,ADULT SOCIAL CARE,SERVESOUL LTD,525.74,PHY LTS 65+,HOMECARE - SPOT,2103000184,1000081503
05.09.2019,ADULT SOCIAL CARE,SERVESOUL LTD,525.74,PHY LTS 65+,HOMECARE - SPOT,2103000190,1000081503
05.09.2019,ADULT SOCIAL CARE,SERVESOUL LTD,559.12,PHY LTS 65+,HOMECARE - SPOT,2103000110,1000081503
05.09.2019,ADULT SOCIAL CARE,SERVESOUL LTD,559.12,PHY LTS 65+,HOMECARE - SPOT,2103000197,1000081503
05.09.2019,ADULT SOCIAL CARE,SERVESOUL LTD,579.98,PHY LTS 65+,HOMECARE - SPOT,2103000123,1000081503
05.09.2019,ADULT SOCIAL CARE,SERVESOUL LTD,579.98,PHY LTS 65+,HOMECARE - SPOT,2103000193,1000081503
05.09.2019,ADULT SOCIAL CARE,SERVESOUL LTD,584.15,PHY LTS 65+,HOMECARE - SPOT,2103000095,1000081503
05.09.2019,ADULT SOCIAL CARE,SERVESOUL LTD,584.15,PHY LTS 65+,HOMECARE - SPOT,2103000186,1000081503
05.09.2019,ADULT SOCIAL CARE,SERVESOUL LTD,642.57,PHY LTS 65+,HOMECARE - SPOT,2103000089,1000081503
05.09.2019,ADULT SOCIAL CARE,SERVESOUL LTD,642.57,PHY LTS 65+,HOMECARE - SPOT,2103000199,1000081503
05.09.2019,ADULT SOCIAL CARE,SUPREME CARE SERVICES LTD,"2,722.10",PHY LTS 65+,HOMECARE - SPOT,2103000136,1000059416
05.09.2019,ADULT SOCIAL CARE,SUPREME CARE SERVICES LTD,312.53,PHY STS 65+,HOMECARE - IC,2103000154,1000059416
05.09.2019,ADULT SOCIAL CARE,SUPREME CARE SERVICES LTD,651.3,PHY STS 65+,HOMECARE - IC,2103000152,1000059416
05.09.2019,ADULT SOCIAL CARE,LENUS GLOBAL LIMITED,461.7,SAFEGUARDING TEAM,OTHER CONTRACTORS,5902376677,1000083112
05.09.2019,ADULT SOCIAL CARE,SURREY DOCKS FARM PROVIDENT SOCIETY,500,SOCIAL ISOLATION,DAYCARE,2103000132,1000000958
05.09.2019,ADULT SOCIAL CARE,SERVESOUL LTD,375.53,SUB LTS 18-64,HOMECARE - SPOT,2103000124,1000081503
05.09.2019,ADULT SOCIAL CARE,SERVESOUL LTD,375.53,SUB LTS 18-64,HOMECARE - SPOT,2103000194,1000081503
05.09.2019,ASSET MANAGEMENT,SGN CONNECTIONS LTD,566.4,ENG CONTRACTS (NORTH),OTHER R&M,5902376780,1000055428
05.09.2019,ASSET MANAGEMENT HGF,TRAVIS PERKINS TRADING COMPANY LTD,660.48,HANDY PERSONS,MATERIALS,5902376685,1514319
05.09.2019,CHILDREN AND ADULT,FAITHFUL & GOULD,"24,826.46",CAPITAL PS (SOC SERV),CONSTRUCTION FEES,5902376775,1000061390
05.09.2019,CHILDREN AND ADULT,HUNTERS CONTRACTS LTD,"115,322.61",CAPITAL PS (SOC SERV),FURNITURE & FITTINGS ACQUISITION,5902376686,1000065904
05.09.2019,CHILDREN'S SERVICES,REDACTED PERSONAL DATA,"1,600.00",ADOPTION PLACEMENTS & INTER AGENCY,PAYMENTS TO CARERS,REDACTED,REDACTED
05.09.2019,CHILDREN'S SERVICES,CARBONE CLINIC UK LTD,"1,800.00",CASEWORK OLA  0-8,CONTRIBUTION TO PROVISIONS (TP PAYMENTS),2103000213,1000080937
05.09.2019,CHILDREN'S SERVICES,OCTAVIA HOUSE SCHOOLS LTD,"13,000.00",CASEWORK OLA  0-8,RECOUPMENT,2103000244,1000073579
05.09.2019,CHILDREN'S SERVICES,OCTAVIA HOUSE SCHOOLS LTD,"14,000.00",CASEWORK OLA  0-8,RECOUPMENT,2103000225,1000073579
05.09.2019,CHILDREN'S SERVICES,OCTAVIA HOUSE SCHOOLS LTD,"14,000.00",CASEWORK OLA  0-8,RECOUPMENT,2103000226,1000073579
05.09.2019,CHILDREN'S SERVICES,OCTAVIA HOUSE SCHOOLS LTD,"14,000.00",CASEWORK OLA  0-8,RECOUPMENT,2103000229,1000073579
05.09.2019,CHILDREN'S SERVICES,OCTAVIA HOUSE SCHOOLS LTD,"14,000.00",CASEWORK OLA  0-8,RECOUPMENT,2103000235,1000073579
05.09.2019,CHILDREN'S SERVICES,OCTAVIA HOUSE SCHOOLS LTD,"14,000.00",CASEWORK OLA  0-8,RECOUPMENT,2103000236,1000073579
05.09.2019,CHILDREN'S SERVICES,OCTAVIA HOUSE SCHOOLS LTD,"16,000.00",CASEWORK OLA  0-8,RECOUPMENT,2103000227,1000073579
05.09.2019,CHILDREN'S SERVICES,OCTAVIA HOUSE SCHOOLS LTD,"16,000.00",CASEWORK OLA  0-8,RECOUPMENT,2103000228,1000073579
05.09.2019,CHILDREN'S SERVICES,OCTAVIA HOUSE SCHOOLS LTD,"16,000.00",CASEWORK OLA  0-8,RECOUPMENT,2103000230,1000073579
05.09.2019,CHILDREN'S SERVICES,OCTAVIA HOUSE SCHOOLS LTD,"16,000.00",CASEWORK OLA  0-8,RECOUPMENT,2103000231,1000073579
05.09.2019,CHILDREN'S SERVICES,OCTAVIA HOUSE SCHOOLS LTD,"20,000.00",CASEWORK OLA  0-8,RECOUPMENT,2103000234,1000073579
05.09.2019,CHILDREN'S SERVICES,MORE HOUSE SCHOOL,"6,341.00",CASEWORK OLA  0-8,RECOUPMENT,2103000211,1000076379
05.09.2019,CHILDREN'S SERVICES,EAGLE HOUSE (MITCHAM) LTD T/A EAGLE HOUSE MITCHAM,"16,618.33",CASEWORK OLA  0-8,RECOUPMENT,2103000214,1000071156
05.09.2019,CHILDREN'S SERVICES,EAGLE HOUSE (MITCHAM) LTD T/A EAGLE HOUSE MITCHAM,"16,618.33",CASEWORK OLA  0-8,RECOUPMENT,2103000215,1000071156
05.09.2019,CHILDREN'S SERVICES,EAGLE HOUSE (MITCHAM) LTD T/A EAGLE HOUSE MITCHAM,"16,618.33",CASEWORK OLA  0-8,RECOUPMENT,2103000217,1000071156
05.09.2019,CHILDREN'S SERVICES,EAGLE HOUSE (MITCHAM) LTD T/A EAGLE HOUSE MITCHAM,"16,618.33",CASEWORK OLA  0-8,RECOUPMENT,2103000218,1000071156
05.09.2019,CHILDREN'S SERVICES,EAGLE HOUSE (MITCHAM) LTD T/A EAGLE HOUSE MITCHAM,"16,618.33",CASEWORK OLA  0-8,RECOUPMENT,2103000221,1000071156
05.09.2019,CHILDREN'S SERVICES,EAGLE HOUSE (MITCHAM) LTD T/A EAGLE HOUSE MITCHAM,"16,990.33",CASEWORK OLA  0-8,RECOUPMENT,2103000219,1000071156
05.09.2019,CHILDREN'S SERVICES,EAGLE HOUSE (MITCHAM) LTD T/A EAGLE HOUSE MITCHAM,"17,419.67",CASEWORK OLA  0-8,RECOUPMENT,2103000222,1000071156
05.09.2019,CHILDREN'S SERVICES,EAGLE HOUSE (MITCHAM) LTD T/A EAGLE HOUSE MITCHAM,"19,488.33",CASEWORK OLA  0-8,RECOUPMENT,2103000216,1000071156
05.09.2019,CHILDREN'S SERVICES,CROSSWAY UNITED REFORMED CHURCH,"1,125.00",CASEWORK SOUTHWARK 0-8,CONTRIBUTION TO PROVISIONS (TP PAYMENTS),2103000251,1000058687
05.09.2019,CHILDREN'S SERVICES,CAMBERWELL AFTER SCHOOL PROJECT,"1,169.46",CASEWORK SOUTHWARK 0-8,OTHER LOCAL AUTHORITIES,2103000223,1000051625
05.09.2019,CHILDREN'S SERVICES,CAMBERWELL AFTER SCHOOL PROJECT,"3,009.57",CASEWORK SOUTHWARK 0-8,OTHER LOCAL AUTHORITIES,2103000210,1000051625
05.09.2019,CHILDREN'S SERVICES,HALFMOON MONTESSORI NURSERY,"3,009.57",CASEWORK SOUTHWARK 0-8,OTHER LOCAL AUTHORITIES,2103000224,1000077064
05.09.2019,CHILDREN'S SERVICES,SYMBOL FAMILY SUPPORT SERVICES LTD,"3,358.00",FAMILY ASSESSMENTS,RESIDENTIAL CARE,2103000157,1000050435
05.09.2019,CHILDREN'S SERVICES,SYMBOL FAMILY SUPPORT SERVICES LTD,"8,155.14",FAMILY ASSESSMENTS,RESIDENTIAL CARE,2103000156,1000050435
05.09.2019,CHILDREN'S SERVICES,RYANCARE FOSTERING,900,FRIENDS & FAMILY FOSTERING,EXTERNAL AGENCIES AND BODIES,2103000011,1000062376
05.09.2019,CHILDREN'S SERVICES,COMPASS FOSTERING SOUTH LTD,"2,698.79",FRIENDS & FAMILY FOSTERING,EXTERNAL AGENCIES AND BODIES,2103000055,1000073772
05.09.2019,CHILDREN'S SERVICES,HELP ME GROW FOSTERING SERVICES LTD,"2,869.67",FRIENDS & FAMILY FOSTERING,EXTERNAL AGENCIES AND BODIES,2102999985,1000079302
05.09.2019,CHILDREN'S SERVICES,HELP ME GROW FOSTERING SERVICES LTD,"2,869.67",FRIENDS & FAMILY FOSTERING,EXTERNAL AGENCIES AND BODIES,2103000040,1000079302
05.09.2019,CHILDREN'S SERVICES,KENT HOMEFINDING & FOSTERING LTD,"3,041.10",FRIENDS & FAMILY FOSTERING,EXTERNAL AGENCIES AND BODIES,2103000023,1000033978
05.09.2019,CHILDREN'S SERVICES,KENT HOMEFINDING & FOSTERING LTD,"3,041.10",FRIENDS & FAMILY FOSTERING,EXTERNAL AGENCIES AND BODIES,2103000060,1000033978
05.09.2019,CHILDREN'S SERVICES,COMPASS FOSTERING LONDON LTD,"3,077.99",FRIENDS & FAMILY FOSTERING,EXTERNAL AGENCIES AND BODIES,2103000034,1000057908
05.09.2019,CHILDREN'S SERVICES,HELP ME GROW FOSTERING SERVICES LTD,"3,188.35",FRIENDS & FAMILY FOSTERING,EXTERNAL AGENCIES AND BODIES,2102999997,1000079302
05.09.2019,CHILDREN'S SERVICES,HELP ME GROW FOSTERING SERVICES LTD,"3,188.35",FRIENDS & FAMILY FOSTERING,EXTERNAL AGENCIES AND BODIES,2103000022,1000079302
05.09.2019,CHILDREN'S SERVICES,HELP ME GROW FOSTERING SERVICES LTD,"3,188.35",FRIENDS & FAMILY FOSTERING,EXTERNAL AGENCIES AND BODIES,2103000057,1000079302
05.09.2019,CHILDREN'S SERVICES,HELP ME GROW FOSTERING SERVICES LTD,"3,188.35",FRIENDS & FAMILY FOSTERING,EXTERNAL AGENCIES AND BODIES,2103000058,1000079302
05.09.2019,CHILDREN'S SERVICES,HELP ME GROW FOSTERING SERVICES LTD,"3,188.35",FRIENDS & FAMILY FOSTERING,EXTERNAL AGENCIES AND BODIES,2103000059,1000079302
05.09.2019,CHILDREN'S SERVICES,CORE ASSETS FOSTERING LTD,"3,211.60",FRIENDS & FAMILY FOSTERING,EXTERNAL AGENCIES AND BODIES,2103000043,11288002
05.09.2019,CHILDREN'S SERVICES,COMPASS FOSTERING SOUTH LTD,"3,308.10",FRIENDS & FAMILY FOSTERING,EXTERNAL AGENCIES AND BODIES,2103000019,1000073772
05.09.2019,CHILDREN'S SERVICES,COMPASS FOSTERING SOUTH LTD,"3,308.10",FRIENDS & FAMILY FOSTERING,EXTERNAL AGENCIES AND BODIES,2103000050,1000073772
05.09.2019,CHILDREN'S SERVICES,CONNECT FOSTERING SERVICES LTD,"3,343.57",FRIENDS & FAMILY FOSTERING,EXTERNAL AGENCIES AND BODIES,2103000044,1000079969
05.09.2019,CHILDREN'S SERVICES,FIVE RIVERS CHILD CARE LTD,"3,365.71",FRIENDS & FAMILY FOSTERING,EXTERNAL AGENCIES AND BODIES,2103000028,1000018792
05.09.2019,CHILDREN'S SERVICES,FUTURES FOR CHILDREN LIMITED,"3,449.99",FRIENDS & FAMILY FOSTERING,EXTERNAL AGENCIES AND BODIES,2103000061,1000041984
05.09.2019,CHILDREN'S SERVICES,KENT HOMEFINDING & FOSTERING LTD,"3,529.35",FRIENDS & FAMILY FOSTERING,EXTERNAL AGENCIES AND BODIES,2103000041,1000033978
05.09.2019,CHILDREN'S SERVICES,RYANCARE FOSTERING,"3,541.75",FRIENDS & FAMILY FOSTERING,EXTERNAL AGENCIES AND BODIES,2103000038,1000062376
05.09.2019,CHILDREN'S SERVICES,CHILDREN OF COLOUR,"3,558.80",FRIENDS & FAMILY FOSTERING,EXTERNAL AGENCIES AND BODIES,2103000003,1000044955
05.09.2019,CHILDREN'S SERVICES,CHILDREN OF COLOUR,"3,558.80",FRIENDS & FAMILY FOSTERING,EXTERNAL AGENCIES AND BODIES,2103000004,1000044955
05.09.2019,CHILDREN'S SERVICES,CHILDREN OF COLOUR,"3,558.80",FRIENDS & FAMILY FOSTERING,EXTERNAL AGENCIES AND BODIES,2103000029,1000044955
05.09.2019,CHILDREN'S SERVICES,BARNARDOS SERVICES LTD,"3,559.11",FRIENDS & FAMILY FOSTERING,EXTERNAL AGENCIES AND BODIES,2103000046,1000063730
05.09.2019,CHILDREN'S SERVICES,KENT HOMEFINDING & FOSTERING LTD,"3,565.00",FRIENDS & FAMILY FOSTERING,EXTERNAL AGENCIES AND BODIES,2103000001,1000033978
05.09.2019,CHILDREN'S SERVICES,CAPSTONE FOSTER CARE (SOUTH EAST) LTD,"3,596.48",FRIENDS & FAMILY FOSTERING,EXTERNAL AGENCIES AND BODIES,2103000010,1000050353
05.09.2019,CHILDREN'S SERVICES,FUTURES FOR CHILDREN LIMITED,"3,603.44",FRIENDS & FAMILY FOSTERING,EXTERNAL AGENCIES AND BODIES,2103000025,1000041984
05.09.2019,CHILDREN'S SERVICES,CORE ASSETS FOSTERING LTD,"3,626.69",FRIENDS & FAMILY FOSTERING,EXTERNAL AGENCIES AND BODIES,2102999998,11288002
05.09.2019,CHILDREN'S SERVICES,FUTURES FOR CHILDREN LIMITED,"3,649.94",FRIENDS & FAMILY FOSTERING,EXTERNAL AGENCIES AND BODIES,2102999979,1000041984
05.09.2019,CHILDREN'S SERVICES,SELECT FOSTERCARE SERVICES LTD,"3,653.35",FRIENDS & FAMILY FOSTERING,EXTERNAL AGENCIES AND BODIES,2102999989,1000079277
05.09.2019,CHILDREN'S SERVICES,SELECT FOSTERCARE SERVICES LTD,"3,653.35",FRIENDS & FAMILY FOSTERING,EXTERNAL AGENCIES AND BODIES,2103000015,1000079277
05.09.2019,CHILDREN'S SERVICES,SELECT FOSTERCARE SERVICES LTD,"3,653.66",FRIENDS & FAMILY FOSTERING,EXTERNAL AGENCIES AND BODIES,2102999981,1000079277
05.09.2019,CHILDREN'S SERVICES,COMPASS FOSTERING LONDON LTD,"3,675.67",FRIENDS & FAMILY FOSTERING,EXTERNAL AGENCIES AND BODIES,2103000039,1000057908
05.09.2019,CHILDREN'S SERVICES,ETHELBERT SPECIALIST HOMES,"3,678.11",FRIENDS & FAMILY FOSTERING,EXTERNAL AGENCIES AND BODIES,2103000021,1796129
05.09.2019,CHILDREN'S SERVICES,ETHELBERT SPECIALIST HOMES,"3,678.11",FRIENDS & FAMILY FOSTERING,EXTERNAL AGENCIES AND BODIES,2103000053,1796129
05.09.2019,CHILDREN'S SERVICES,ETHELBERT SPECIALIST HOMES,"3,678.11",FRIENDS & FAMILY FOSTERING,EXTERNAL AGENCIES AND BODIES,2103000066,1796129
05.09.2019,CHILDREN'S SERVICES,CAPSTONE FOSTER CARE (SOUTH EAST) LTD,"3,764.33",FRIENDS & FAMILY FOSTERING,EXTERNAL AGENCIES AND BODIES,2103000045,1000050353
05.09.2019,CHILDREN'S SERVICES,FUSION FOSTERING LTD,"3,767.61",FRIENDS & FAMILY FOSTERING,EXTERNAL AGENCIES AND BODIES,2103000049,1000081674
05.09.2019,CHILDREN'S SERVICES,ANCHOR FOSTERCARE,"3,856.71",FRIENDS & FAMILY FOSTERING,EXTERNAL AGENCIES AND BODIES,2103000051,1000065675
05.09.2019,CHILDREN'S SERVICES,ETHELBERT SPECIALIST HOMES,"3,882.40",FRIENDS & FAMILY FOSTERING,EXTERNAL AGENCIES AND BODIES,2103000000,1796129
05.09.2019,CHILDREN'S SERVICES,ETHELBERT SPECIALIST HOMES,"3,882.40",FRIENDS & FAMILY FOSTERING,EXTERNAL AGENCIES AND BODIES,2103000013,1796129
05.09.2019,CHILDREN'S SERVICES,CHILDREN FIRST FOSTERING AGENCY LTD,"3,981.33",FRIENDS & FAMILY FOSTERING,EXTERNAL AGENCIES AND BODIES,2103000065,1000060081
05.09.2019,CHILDREN'S SERVICES,NEXT STEP FOSTERING SERVICES LTD,"3,986.60",FRIENDS & FAMILY FOSTERING,EXTERNAL AGENCIES AND BODIES,2102999973,1000044973
05.09.2019,CHILDREN'S SERVICES,BY THE BRIDGE LTD,"4,218.52",FRIENDS & FAMILY FOSTERING,EXTERNAL AGENCIES AND BODIES,2103000064,1000043961
05.09.2019,CHILDREN'S SERVICES,COMPASS FOSTERING SOUTH EAST LTD,"4,270.25",FRIENDS & FAMILY FOSTERING,EXTERNAL AGENCIES AND BODIES,2103000018,1000081155
05.09.2019,CHILDREN'S SERVICES,ANCHOR FOSTERCARE,"4,286.99",FRIENDS & FAMILY FOSTERING,EXTERNAL AGENCIES AND BODIES,2103000009,1000065675
05.09.2019,CHILDREN'S SERVICES,SYNERGY FOSTERING LTD,"4,309.00",FRIENDS & FAMILY FOSTERING,EXTERNAL AGENCIES AND BODIES,2103000033,1000031559
05.09.2019,CHILDREN'S SERVICES,BY THE BRIDGE LTD,"4,347.09",FRIENDS & FAMILY FOSTERING,EXTERNAL AGENCIES AND BODIES,2103000020,1000043961
05.09.2019,CHILDREN'S SERVICES,NEXT STEP FOSTERING SERVICES LTD,"4,349.30",FRIENDS & FAMILY FOSTERING,EXTERNAL AGENCIES AND BODIES,2102999983,1000044973
05.09.2019,CHILDREN'S SERVICES,BY THE BRIDGE LTD,"4,440.57",FRIENDS & FAMILY FOSTERING,EXTERNAL AGENCIES AND BODIES,2102999999,1000043961
05.09.2019,CHILDREN'S SERVICES,BY THE BRIDGE LTD,"4,440.57",FRIENDS & FAMILY FOSTERING,EXTERNAL AGENCIES AND BODIES,2103000017,1000043961
05.09.2019,CHILDREN'S SERVICES,BY THE BRIDGE LTD,"4,475.82",FRIENDS & FAMILY FOSTERING,EXTERNAL AGENCIES AND BODIES,2103000024,1000043961
05.09.2019,CHILDREN'S SERVICES,BY THE BRIDGE LTD,"4,504.96",FRIENDS & FAMILY FOSTERING,EXTERNAL AGENCIES AND BODIES,2103000012,1000043961
05.09.2019,CHILDREN'S SERVICES,BY THE BRIDGE LTD,"4,570.02",FRIENDS & FAMILY FOSTERING,EXTERNAL AGENCIES AND BODIES,2102999975,1000043961
05.09.2019,CHILDREN'S SERVICES,BY THE BRIDGE LTD,"4,570.02",FRIENDS & FAMILY FOSTERING,EXTERNAL AGENCIES AND BODIES,2103000030,1000043961
05.09.2019,CHILDREN'S SERVICES,BY THE BRIDGE LTD,"4,570.02",FRIENDS & FAMILY FOSTERING,EXTERNAL AGENCIES AND BODIES,2103000067,1000043961
05.09.2019,CHILDREN'S SERVICES,BY THE BRIDGE LTD,"4,580.78",FRIENDS & FAMILY FOSTERING,EXTERNAL AGENCIES AND BODIES,2103000014,1000043961
05.09.2019,CHILDREN'S SERVICES,HELP ME GROW FOSTERING SERVICES LTD,"4,650.00",FRIENDS & FAMILY FOSTERING,EXTERNAL AGENCIES AND BODIES,2102999987,1000079302
05.09.2019,CHILDREN'S SERVICES,BY THE BRIDGE LTD,"4,674.27",FRIENDS & FAMILY FOSTERING,EXTERNAL AGENCIES AND BODIES,2103000054,1000043961
05.09.2019,CHILDREN'S SERVICES,BY THE BRIDGE LTD,"4,805.49",FRIENDS & FAMILY FOSTERING,EXTERNAL AGENCIES AND BODIES,2103000026,1000043961
05.09.2019,CHILDREN'S SERVICES,BY THE BRIDGE LTD,"4,805.49",FRIENDS & FAMILY FOSTERING,EXTERNAL AGENCIES AND BODIES,2103000063,1000043961
05.09.2019,CHILDREN'S SERVICES,BY THE BRIDGE LTD,"4,903.54",FRIENDS & FAMILY FOSTERING,EXTERNAL AGENCIES AND BODIES,2102999995,1000043961
05.09.2019,CHILDREN'S SERVICES,BY THE BRIDGE LTD,"4,903.54",FRIENDS & FAMILY FOSTERING,EXTERNAL AGENCIES AND BODIES,2103000048,1000043961
05.09.2019,CHILDREN'S SERVICES,COMPASS FOSTERING SOUTH LTD,"5,314.33",FRIENDS & FAMILY FOSTERING,EXTERNAL AGENCIES AND BODIES,2103000035,1000073772
05.09.2019,CHILDREN'S SERVICES,BY THE BRIDGE LTD,"5,469.29",FRIENDS & FAMILY FOSTERING,EXTERNAL AGENCIES AND BODIES,2102999977,1000043961
05.09.2019,CHILDREN'S SERVICES,BY THE BRIDGE LTD,"5,469.29",FRIENDS & FAMILY FOSTERING,EXTERNAL AGENCIES AND BODIES,2103000016,1000043961
05.09.2019,CHILDREN'S SERVICES,BY THE BRIDGE LTD,"5,469.29",FRIENDS & FAMILY FOSTERING,EXTERNAL AGENCIES AND BODIES,2103000036,1000043961
05.09.2019,CHILDREN'S SERVICES,COMPASS FOSTERING SOUTH EAST LTD,"5,535.67",FRIENDS & FAMILY FOSTERING,EXTERNAL AGENCIES AND BODIES,2103000005,1000081155
05.09.2019,CHILDREN'S SERVICES,ANCHOR FOSTERCARE,"5,646.34",FRIENDS & FAMILY FOSTERING,EXTERNAL AGENCIES AND BODIES,2103000052,1000065675
05.09.2019,CHILDREN'S SERVICES,INTEGRATED SERVICES PROGRAMME,"5,748.33",FRIENDS & FAMILY FOSTERING,EXTERNAL AGENCIES AND BODIES,2103000006,1642068
05.09.2019,CHILDREN'S SERVICES,HELP ME GROW FOSTERING SERVICES LTD,"5,757.01",FRIENDS & FAMILY FOSTERING,EXTERNAL AGENCIES AND BODIES,2102999971,1000079302
05.09.2019,CHILDREN'S SERVICES,HELP ME GROW FOSTERING SERVICES LTD,"5,757.01",FRIENDS & FAMILY FOSTERING,EXTERNAL AGENCIES AND BODIES,2103000007,1000079302
05.09.2019,CHILDREN'S SERVICES,SHARED CARE SERVICES LTD,"5,838.54",FRIENDS & FAMILY FOSTERING,EXTERNAL AGENCIES AND BODIES,2103000031,1000080308
05.09.2019,CHILDREN'S SERVICES,MOSAIC FOSTER CARE LTD,"6,642.68",FRIENDS & FAMILY FOSTERING,EXTERNAL AGENCIES AND BODIES,2102999991,1000076259
05.09.2019,CHILDREN'S SERVICES,MOSAIC FOSTER CARE LTD,"6,975.00",FRIENDS & FAMILY FOSTERING,EXTERNAL AGENCIES AND BODIES,2103000042,1000076259
05.09.2019,CHILDREN'S SERVICES,MOSAIC FOSTER CARE LTD,"6,975.00",FRIENDS & FAMILY FOSTERING,EXTERNAL AGENCIES AND BODIES,2103000062,1000076259
05.09.2019,CHILDREN'S SERVICES,PARENT AND CHILD FOSTERING ASSESSMENTS,"7,750.00",FRIENDS & FAMILY FOSTERING,EXTERNAL AGENCIES AND BODIES,2103000047,1000078962
05.09.2019,CHILDREN'S SERVICES,PARENT AND CHILD FOSTERING ASSESSMENTS,"8,134.00",FRIENDS & FAMILY FOSTERING,EXTERNAL AGENCIES AND BODIES,2103000037,1000078962
05.09.2019,CHILDREN'S SERVICES,PARENT AND CHILD FOSTERING ASSESSMENTS,"8,192.85",FRIENDS & FAMILY FOSTERING,EXTERNAL AGENCIES AND BODIES,2103000032,1000078962
05.09.2019,CHILDREN'S SERVICES,KENT HOUSE SCHOOL PRIORY,"2,450.00",PFA TEAM SOUTHWARK 9 PLUS,RECOUPMENT,2103000209,1000082555
05.09.2019,CHILDREN'S SERVICES,OCTAVIA HOUSE SCHOOLS LTD,"3,249.99",PFA TEAM SOUTHWARK 9 PLUS,RECOUPMENT,2103000249,1000073579
05.09.2019,CHILDREN'S SERVICES,MANDER PORTMAN WOODWARD LTD,"4,371.00",PFA TEAM SOUTHWARK 9 PLUS,RECOUPMENT,2103000212,1000068075
05.09.2019,CHILDREN'S SERVICES,OCTAVIA HOUSE SCHOOLS LTD,"13,000.00",PFA TEAM SOUTHWARK 9 PLUS,RECOUPMENT,2103000245,1000073579
05.09.2019,CHILDREN'S SERVICES,OCTAVIA HOUSE SCHOOLS LTD,"13,000.00",PFA TEAM SOUTHWARK 9 PLUS,RECOUPMENT,2103000246,1000073579
05.09.2019,CHILDREN'S SERVICES,OCTAVIA HOUSE SCHOOLS LTD,"14,000.00",PFA TEAM SOUTHWARK 9 PLUS,RECOUPMENT,2103000232,1000073579
05.09.2019,CHILDREN'S SERVICES,OCTAVIA HOUSE SCHOOLS LTD,"14,000.00",PFA TEAM SOUTHWARK 9 PLUS,RECOUPMENT,2103000233,1000073579
05.09.2019,CHILDREN'S SERVICES,OCTAVIA HOUSE SCHOOLS LTD,"14,000.00",PFA TEAM SOUTHWARK 9 PLUS,RECOUPMENT,2103000237,1000073579
05.09.2019,CHILDREN'S SERVICES,OCTAVIA HOUSE SCHOOLS LTD,"14,000.00",PFA TEAM SOUTHWARK 9 PLUS,RECOUPMENT,2103000239,1000073579
05.09.2019,CHILDREN'S SERVICES,OCTAVIA HOUSE SCHOOLS LTD,"14,000.00",PFA TEAM SOUTHWARK 9 PLUS,RECOUPMENT,2103000240,1000073579
05.09.2019,CHILDREN'S SERVICES,OCTAVIA HOUSE SCHOOLS LTD,"14,000.00",PFA TEAM SOUTHWARK 9 PLUS,RECOUPMENT,2103000241,1000073579
05.09.2019,CHILDREN'S SERVICES,OCTAVIA HOUSE SCHOOLS LTD,"14,000.00",PFA TEAM SOUTHWARK 9 PLUS,RECOUPMENT,2103000242,1000073579
05.09.2019,CHILDREN'S SERVICES,OCTAVIA HOUSE SCHOOLS LTD,"16,000.00",PFA TEAM SOUTHWARK 9 PLUS,RECOUPMENT,2103000238,1000073579
05.09.2019,CHILDREN'S SERVICES,OCTAVIA HOUSE SCHOOLS LTD,"20,000.00",PFA TEAM SOUTHWARK 9 PLUS,RECOUPMENT,2103000243,1000073579
05.09.2019,CHILDREN'S SERVICES,NEW START TRAINING LTD,"4,225.00",PFA TEAM SOUTHWARK 9 PLUS,"SCHOOLS CAPITATION, OTHER GRANTS",2103000252,1000045132
05.09.2019,CHILDREN'S SERVICES,THE COMPLETE WORKS INDEPENDENT SCHOOL,"4,500.00",PFA TEAM SOUTHWARK 9 PLUS,"SCHOOLS CAPITATION, OTHER GRANTS",2103000207,1000033256
05.09.2019,CHILDREN'S SERVICES,THE COMPLETE WORKS INDEPENDENT SCHOOL,"4,500.00",PFA TEAM SOUTHWARK 9 PLUS,"SCHOOLS CAPITATION, OTHER GRANTS",2103000208,1000033256
05.09.2019,CHILDREN'S SERVICES,JLD MANAGEMENT LTD,320.46,SEND EMPLOYMENT GRANT,CONSULTANTS SERVICES,5902376747,1000079916
05.09.2019,CHILDREN'S SERVICES,J & M OASIS LTD,"1,581.00",TEMPORARY ACCOMMODATION,EXTERNAL AGENCIES AND BODIES,5902376644,1000072169
05.09.2019,CHILDREN'S SERVICES,ZFA ACCOMMODATION LTD,"1,767.00",TEMPORARY ACCOMMODATION,EXTERNAL AGENCIES AND BODIES,5902376647,1000082620
05.09.2019,CHILDREN'S SERVICES,REDACTED PERSONAL DATA,300,UNIVERSITY SUPPORT,CLIENT TRANSPORT,REDACTED,REDACTED
05.09.2019,CHILDREN'S SERVICES,REDACTED PERSONAL DATA,800,UNIVERSITY SUPPORT,OTHER PAYMENTS FOR CLIENTS,REDACTED,REDACTED
05.09.2019,COMMUNITIES,BRENCHLEY GARDENS MANAGEMENT ASSOCIATION,"30,629.75",BRENCHLEY GARDENS,M&M ALLOWANCE CO-OPS,5902376654,11324247
05.09.2019,COMMUNITIES,WALWORTH METHODIST CHURCH,790,COMMUNITY COUNCILS TEAM,TRAINING,5902376768,1000042218
05.09.2019,COMMUNITIES,PECKHAM & NUNHEAD FREE FILM FESTIVAL,"6,000.00",EAST CENTRAL,GRANTS,2103000254,1000077718
05.09.2019,COMMUNITIES,STYLES HOUSE TMO,"1,348.00",STYLES HOUSE TMO,M&M ALLOWANCE CO-OPS,5902376697,1000072012
05.09.2019,CUSTOMER EXPERIENCE HGF,OFFICE DEPOT UK LTD,877.58,CORONER'S,STATIONERY,5902376776,1109426
05.09.2019,CUSTOMER EXPERIENCE HGF,TABRIS LTD,"9,000.00",HOMELESSNESS TRAINING ACADEMY,TRAINING,5902376689,1000080027
05.09.2019,CUSTOMER EXPERIENCE HGF,BIRCHAM DYSON BELL,"8,079.08",LONDON BRIDGE INQUEST,LEGAL FEES & COURT COSTS,5902376762,1000048605
05.09.2019,CUSTOMER EXPERIENCE HGF,REDACTED PERSONAL DATA,"6,348.00",NIGHTLY TA (NSC),EXTERNAL AGENCIES AND BODIES,REDACTED,REDACTED
05.09.2019,CUSTOMER EXPERIENCE HGF,TLK PROPERTY & INVESTMENT LTD,"10,148.50",NIGHTLY TA (NSC),EXTERNAL AGENCIES AND BODIES,5902376645,1000065661
05.09.2019,CUSTOMER EXPERIENCE HGF,CYBERSTYLE LETTINGS LTD,"29,215.00",NIGHTLY TA (NSC),EXTERNAL AGENCIES AND BODIES,5902376772,1000079319
05.09.2019,ENVIRONMENT AND LEISURE,CENTRE FOR SPORTS TECHNOLOGY LTD,727,CAPITAL PS (LEISURE),CONSTRUCTION FEES  - EXTERNAL,5902376741,1000052731
05.09.2019,ENVIRONMENT AND LEISURE,ACTION NOW PLEASE LTD,"1,750.00",CAPITAL PS (LEISURE),CONSTRUCTION FEES  - EXTERNAL,5902376296,1000083128
05.09.2019,ENVIRONMENT AND LEISURE,ACTION NOW PLEASE LTD,"3,500.00",CAPITAL PS (LEISURE),CONSTRUCTION FEES  - EXTERNAL,5902376298,1000083128
05.09.2019,ENVIRONMENT DIRECTORATE,JAAMA LTD,"1,132.80",FLEET SERVICES MANAGEMENT,COMPUTER MAINTENANCE,5902376612,1000080704
05.09.2019,ENVIRONMENT DIRECTORATE,SPALDINGS (UK) LTD,253,GROUNDS MAINTENANCE - GENERAL,MATERIALS,5902376731,1907384
05.09.2019,ENVIRONMENT DIRECTORATE,SPALDINGS (UK) LTD,367.94,GROUNDS MAINTENANCE - GENERAL,MATERIALS,5902376729,1907384
05.09.2019,ENVIRONMENT DIRECTORATE,METROPOLITAN POLICE AUTHORITY,"1,106.00",S92 NIGHT TIME ECONOMY,PROFESSIONAL FEES,5902376785,1000035048
05.09.2019,ENVIRONMENT DIRECTORATE,HENRY SHEACH LAWNMOWER SERVICES LTD,467.29,STREET CLEANING-GENERAL,EQUIPMENT PURCHASE & REPAIR,5902376755,1000045980
05.09.2019,ENVIRONMENT DIRECTORATE,GLASDON UK LIMITED,"3,628.80",STREET CLEANING-GENERAL,MATERIALS,5902376607,1024073
05.09.2019,ENVIRONMENT DIRECTORATE,SOUTHWARK NEWSPAPER LTD,288,STREET WORKS OVERHEADS,MARKETING & PUBLICITY SERVICES,5902376745,1556957
05.09.2019,ENVIRONMENT DIRECTORATE,SOUTHWARK NEWSPAPER LTD,288,STREET WORKS OVERHEADS,MARKETING & PUBLICITY SERVICES,5902376749,1556957
05.09.2019,ENVIRONMENT DIRECTORATE,SOUTHWARK NEWSPAPER LTD,288,STREET WORKS OVERHEADS,MARKETING & PUBLICITY SERVICES,5902376751,1556957
05.09.2019,ENVIRONMENT DIRECTORATE,SOUTHWARK NEWSPAPER LTD,288,STREET WORKS OVERHEADS,MARKETING & PUBLICITY SERVICES,5902376752,1556957
05.09.2019,ENVIRONMENT DIRECTORATE,SOUTHWARK NEWSPAPER LTD,372,STREET WORKS OVERHEADS,MARKETING & PUBLICITY SERVICES,5902376744,1556957
05.09.2019,ENVIRONMENT DIRECTORATE,SOUTHWARK NEWSPAPER LTD,372,STREET WORKS OVERHEADS,MARKETING & PUBLICITY SERVICES,5902376750,1556957
05.09.2019,ENVIRONMENT DIRECTORATE,SOUTHWARK NEWSPAPER LTD,420,STREET WORKS OVERHEADS,MARKETING & PUBLICITY SERVICES,5902376746,1556957
05.09.2019,ENVIRONMENT DIRECTORATE,TYCO INTEGRATED FIRE & SECURITY,"8,379.08",TOWN CENTRE CCTV,OTHER CONTRACTORS,5902376626,1000077948
05.09.2019,EXCHEQUER SERVICES,NORTHGATE PUBLIC SERVICES (UK) LTD,"33,900.00",ADMINISTRATIVE SUPPORT,SOFTWARE,5902376756,1000037405
05.09.2019,EXCHEQUER SERVICES,POSTURE PEOPLE LTD,"1,861.50",COUNCIL TAX,EQUIPMENT PURCHASE & REPAIR,5902376754,1000078441
05.09.2019,HOUSING GENERAL FUND,WERNICK EVENT HIRE LTD,"58,632.38",CAPITAL PS (STRAT SERV),CONSTRUCTION FEES - ARCHITECT,5902376652,1000073942
05.09.2019,HOUSING HRA,FAITHFUL & GOULD,"74,479.37",CAPITAL PS (HRA),CONSTRUCTION FEES,5902376775,1000061390
05.09.2019,HOUSING HRA,CALFORD SEADEN LLP,"1,177.85",CAPITAL PS (HRA),CONSTRUCTION FEES  - EXTERNAL,5902376620,1061592
05.09.2019,HOUSING HRA,ROBINSON LOW FRANCIS LLP,"6,440.00",CAPITAL PS (HRA),CONSTRUCTION FEES  - EXTERNAL,5902376765,1000025405
05.09.2019,HOUSING HRA,PELLINGS LLP,"15,945.31",CAPITAL PS (HRA),CONSTRUCTION FEES  - EXTERNAL,5902376634,1009262
05.09.2019,HOUSING HRA,SALTASH ENTERPRISES LTD,"67,738.75",CAPITAL PS (HRA),CONSTRUCTION MAIN CONTRACT -CERTIFICATED,2102999948,4013605
05.09.2019,HOUSING HRA,STANBURY BUILDING SERVICES LTD,"1,995.00",CAPITAL PS (REGEN),CONSTRUCTION FEES,2102999947,3000001967
05.09.2019,HOUSING HRA,OMEGA FIRE ENGINEERING LTD,700,CAPITAL PS (REGEN),CONSTRUCTION FEES  - EXTERNAL,5902376660,1000082791
05.09.2019,HOUSING HRA,OMEGA FIRE ENGINEERING LTD,800,CAPITAL PS (REGEN),CONSTRUCTION FEES  - EXTERNAL,5902376663,1000082791
05.09.2019,HOUSING HRA,JNP ENGINEERS LLP,"1,950.00",CAPITAL PS (REGEN),CONSTRUCTION FEES  - EXTERNAL,5902376788,1000078055
05.09.2019,LAW & DEMOCRACY,SWISS POST SOLUTIONS LTD,"1,436.13",CONSTITUTIONAL TEAM,PRINTING,5902376757,1000073459
05.09.2019,LAW & DEMOCRACY,FD SOLUTIONS LIMITED,"2,850.00",LEGAL SVCES MANAGEMENT,STATIONERY,5902376777,1000077019
05.09.2019,LEISURE DIRECTORATE,CASTLE WATER LTD,466.41,BURGESS AREA TEAM,WATER,5902376661,1000078867
05.09.2019,LEISURE DIRECTORATE,CASTLE WATER LTD,513.78,BURGESS AREA TEAM,WATER,5902376631,1000078867
05.09.2019,LEISURE DIRECTORATE,SPORTS AND LEISURE MANAGEMENT LTD,"1,855.83",FACILITIES MAINTENANCE,BUILDING R&M,5902376630,1000077862
05.09.2019,LEISURE DIRECTORATE,CASTLE WATER LTD,762.17,PECKHAM RYE AREA TEAM,WATER,5902376613,1000078867
05.09.2019,LEISURE DIRECTORATE,CASTLE WATER LTD,941.33,SOUTHWARK AREA TEAM,WATER,5902376665,1000078867
05.09.2019,MODERNISATION HGF,ARCH CONSULTING,462.5,APPLICATIONS,SOFTWARE,5902376779,1000056829
05.09.2019,MODERNISATION HGF,ARCH CONSULTING,462.5,APPLICATIONS,SOFTWARE,5902376782,1000056829
05.09.2019,MODERNISATION HGF,VIRGIN MEDIA,253.94,IT MANAGEMENT,DATA COMMUNICATIONS,5902376667,1000026457
05.09.2019,MODERNISATION HGF,VIRGIN MEDIA,315,IT MANAGEMENT,DATA COMMUNICATIONS,5902376664,1000026457
05.09.2019,MODERNISATION HGF,VIRGIN MEDIA,"1,040.26",IT MANAGEMENT,DATA COMMUNICATIONS,5902376662,1000026457
05.09.2019,MODERNISATION HGF,VIRGIN MEDIA,"1,959.79",IT MANAGEMENT,DATA COMMUNICATIONS,5902376666,1000026457
05.09.2019,MODERNISATION HGF,VIRGIN MEDIA,"5,856.55",IT MANAGEMENT,DATA COMMUNICATIONS,5902376656,1000026457
05.09.2019,MODERNISATION HGF,COMENSURA LTD,"432,575.32",WEEKLY PAYMENTS,AGENCY STAFF,5902376753,1000051261
05.09.2019,NEW SOUTHWARK BUILDING SERVICES,TRAVIS PERKINS TRADING COMPANY LTD,342.53,NUNHEAD DD,MATERIALS,5902376683,1514319
05.09.2019,NEW SOUTHWARK BUILDING SERVICES,TRAVIS PERKINS TRADING COMPANY LTD,441.2,R & M OVERHEADS,MATERIALS,5902376685,1514319
05.09.2019,NEW SOUTHWARK BUILDING SERVICES,SMITHY DECORATING,370.96,SBS - HOLDING ACCOUNT,OTHER CONTRACTORS,2102999936,3000002050
05.09.2019,NEW SOUTHWARK BUILDING SERVICES,ALLIED REMEDIAL TREATMENTS LTD,"13,535.22",SBS - HOLDING ACCOUNT,OTHER CONTRACTORS,2102999937,4000538
05.09.2019,NEW SOUTHWARK BUILDING SERVICES,TRAVIS PERKINS TRADING COMPANY LTD,432.8,SBS AIDS AND ADAPTATIONS,MATERIALS,5902376685,1514319
05.09.2019,NEW SOUTHWARK BUILDING SERVICES,TRAVIS PERKINS TRADING COMPANY LTD,333.17,SBS COMMUNAL REPAIRS,MATERIALS,5902376684,1514319
05.09.2019,NEW SOUTHWARK BUILDING SERVICES,TRAVIS PERKINS TRADING COMPANY LTD,833.12,SBS COMMUNAL REPAIRS,MATERIALS,5902376685,1514319
05.09.2019,NEW SOUTHWARK BUILDING SERVICES,TRAVIS PERKINS TRADING COMPANY LTD,"1,347.60",SBS COMMUNAL REPAIRS,MATERIALS,5902376685,1514319
05.09.2019,NEW SOUTHWARK BUILDING SERVICES,TRAVIS PERKINS TRADING COMPANY LTD,276,WALWORTH DD,MATERIALS,5902376685,1514319
05.09.2019,NEW SOUTHWARK BUILDING SERVICES,TRAVIS PERKINS TRADING COMPANY LTD,336.31,WALWORTH DD,MATERIALS,5902376683,1514319
05.09.2019,PLANNING AND TRANSPORT,BUTLER HEGARTY ARCHITECTS LTD,"1,400.00",PECKHAM TOWNSCAPE HERITAGE INITIATIVE,MISCELLANEOUS EXPENSES,5902376678,1000077437
05.09.2019,PLANNING AND TRANSPORT,THE DEXTROUS WEB LTD,"87,500.00",PLANNING POLICY TEAM,INFORMATION MANAGEMENT,5902376748,1000083020
05.09.2019,PUBLIC HEALTH,RICE RETAIL MARKETING LTD,"5,000.00",PLACE & HEALTH IMPROVEMENT,EXTERNAL AGENCIES AND BODIES,5902376767,1000082370
05.09.2019,RESIDENT SERVICES,BRITISH GAS TRADING LTD,482,OPERATIONS/OFFICES ACCOMMODATION,ELECTRICITY,5902376740,1000055977
05.09.2019,RESIDENT SERVICES,HARROW GREEN LTD,"2,196.65",OPERATIONS/OFFICES ACCOMMODATION,REMOVAL EXPENSES,5902376717,1000076673
05.09.2019,RESIDENT SERVICES,HARROW GREEN LTD,"9,025.67",OPERATIONS/OFFICES ACCOMMODATION,REMOVAL EXPENSES,5902376719,1000076673
05.09.2019,RESIDENT SERVICES,HARROW GREEN LTD,"19,624.66",OPERATIONS/OFFICES ACCOMMODATION,REMOVAL EXPENSES,5902376716,1000076673
05.09.2019,RESIDENT SERVICES,OFFICE DEPOT UK LTD,294.4,SHELTERED CENTRAL,STATIONERY,5902376702,1109426
05.09.2019,RESIDENT SERVICES,NPOWER,548.65,SUPPORTED HOSTELS,ELECTRICITY,5902376706,1000032342
05.09.2019,RESIDENT SERVICES,NPOWER,571.29,SUPPORTED HOSTELS,ELECTRICITY,5902376705,1000032342
05.09.2019,RESIDENT SERVICES,SHUTTLEWORTH (UK) LTD,"1,152.00",TA PLACEMENTS,EXTERNAL AGENCIES AND BODIES,5902376616,1000056468
05.09.2019,RESIDENT SERVICES,SHUTTLEWORTH (UK) LTD,"1,908.00",TA PLACEMENTS,EXTERNAL AGENCIES AND BODIES,5902376614,1000056468
05.09.2019,RESIDENT SERVICES,SHUTTLEWORTH (UK) LTD,"2,160.00",TA PLACEMENTS,EXTERNAL AGENCIES AND BODIES,5902376615,1000056468
05.09.2019,SOUTHWARK BUILDING SERVICES,TRAVIS PERKINS TRADING COMPANY LTD,301.8,R & M OVERHEADS,MATERIALS,5902376685,1514319
05.09.2019,SOUTHWARK BUILDING SERVICES,TRAVIS PERKINS TRADING COMPANY LTD,308.01,R & M OVERHEADS,MATERIALS,5902376684,1514319
05.09.2019,SOUTHWARK BUILDING SERVICES,TRAVIS PERKINS TRADING COMPANY LTD,320,R & M OVERHEADS,MATERIALS,5902376684,1514319
05.09.2019,SOUTHWARK BUILDING SERVICES,TRAVIS PERKINS TRADING COMPANY LTD,320.1,R & M OVERHEADS,MATERIALS,5902376685,1514319
05.09.2019,SOUTHWARK BUILDING SERVICES,TRAVIS PERKINS TRADING COMPANY LTD,447.55,R & M OVERHEADS,MATERIALS,5902376684,1514319
05.09.2019,SOUTHWARK BUILDING SERVICES,TRAVIS PERKINS TRADING COMPANY LTD,650,R & M OVERHEADS,MATERIALS,5902376684,1514319
05.09.2019,SOUTHWARK BUILDING SERVICES,EDWARDES BROS (DULWICH) LTD,288.6,STORES/LOGISTICS,CREDITORS -GR/IR CLEARING ACCOUNT,5902376691,1004945
05.09.2019,SOUTHWARK BUILDING SERVICES,EDWARDES BROS (DULWICH) LTD,346.5,STORES/LOGISTICS,CREDITORS -GR/IR CLEARING ACCOUNT,5902376688,1004945
05.09.2019,SOUTHWARK BUILDING SERVICES,EDWARDES BROS (DULWICH) LTD,460,STORES/LOGISTICS,CREDITORS -GR/IR CLEARING ACCOUNT,5902376692,1004945
05.09.2019,SOUTHWARK BUILDING SERVICES,EDWARDES BROS (DULWICH) LTD,688.85,STORES/LOGISTICS,CREDITORS -GR/IR CLEARING ACCOUNT,5902376688,1004945
05.09.2019,SOUTHWARK BUILDING SERVICES,EDWARDES BROS (DULWICH) LTD,808.65,STORES/LOGISTICS,CREDITORS -GR/IR CLEARING ACCOUNT,5902376687,1004945
05.09.2019,SOUTHWARK BUILDING SERVICES,A T & T (GB LTD ),906,STORES/LOGISTICS,CREDITORS -GR/IR CLEARING ACCOUNT,5902376700,1000078342
05.09.2019,SOUTHWARK BUILDING SERVICES,EDWARDES BROS (DULWICH) LTD,958,STORES/LOGISTICS,CREDITORS -GR/IR CLEARING ACCOUNT,5902376698,1004945
05.09.2019,SOUTHWARK BUILDING SERVICES,EDWARDES BROS (DULWICH) LTD,"1,154.40",STORES/LOGISTICS,CREDITORS -GR/IR CLEARING ACCOUNT,5902376687,1004945
05.09.2019,SOUTHWARK BUILDING SERVICES,EDWARDES BROS (DULWICH) LTD,"1,254.00",STORES/LOGISTICS,CREDITORS -GR/IR CLEARING ACCOUNT,5902376699,1004945
05.09.2019,SOUTHWARK BUILDING SERVICES,EDWARDES BROS (DULWICH) LTD,"1,432.50",STORES/LOGISTICS,CREDITORS -GR/IR CLEARING ACCOUNT,5902376698,1004945
05.09.2019,SOUTHWARK BUILDING SERVICES,EDWARDES BROS (DULWICH) LTD,"1,443.00",STORES/LOGISTICS,CREDITORS -GR/IR CLEARING ACCOUNT,5902376688,1004945
05.09.2019,SOUTHWARK BUILDING SERVICES,EDWARDES BROS (DULWICH) LTD,"1,916.00",STORES/LOGISTICS,CREDITORS -GR/IR CLEARING ACCOUNT,5902376696,1004945
05.09.2019,SOUTHWARK BUILDING SERVICES,EDWARDES BROS (DULWICH) LTD,"1,975.00",STORES/LOGISTICS,CREDITORS -GR/IR CLEARING ACCOUNT,5902376694,1004945
06.09.2019,ADULT SOCIAL CARE,COATES SOLICITORS LTD,"34,562.72",APPOINTEESHIPS,OTHER PAYMENTS FOR CLIENTS,2103000260,1000082794
06.09.2019,ADULT SOCIAL CARE,REDACTED PERSONAL DATA,"23,985.01",APPOINTEESHIPS,OTHER PAYMENTS FOR CLIENTS,REDACTED,REDACTED
06.09.2019,ADULT SOCIAL CARE,JULIAN HOLLINGWORTH,600,ASC PRACTICE EDUCATION,GENERAL GOVERNMENT GRANTS,5902376978,1000083041
06.09.2019,ADULT SOCIAL CARE,JULIAN HOLLINGWORTH,600,ASC PRACTICE EDUCATION,GENERAL GOVERNMENT GRANTS,5902376979,1000083041
06.09.2019,ADULT SOCIAL CARE,HILTON HARROP-GRIFFITHS,650,DIR OF ASC,LEGAL FEES & COURT COSTS,2103000294,1000008766
06.09.2019,ADULT SOCIAL CARE,HILTON HARROP-GRIFFITHS,850,DIR OF ASC,LEGAL FEES & COURT COSTS,2103000295,1000008766
06.09.2019,ADULT SOCIAL CARE,DAVID HALL,"1,992.00",DIR OF ASC,LEGAL FEES & COURT COSTS,2103000287,1000059226
06.09.2019,ADULT SOCIAL CARE,HEALTHCARE & TRANSPORT SERVICES,306,LD LTS 18-64,CLIENT TRANSPORT,2103000675,1000042743
06.09.2019,ADULT SOCIAL CARE,HEALTHCARE & TRANSPORT SERVICES,448,LD LTS 18-64,CLIENT TRANSPORT,2103000671,1000042743
06.09.2019,ADULT SOCIAL CARE,THE NEW SHOOTS,300,LD LTS 18-64,DAYCARE,2103000680,1000073970
06.09.2019,ADULT SOCIAL CARE,SAGECARE LTD,378.87,LD LTS 18-64,HOMECARE - C&V,2103000412,1000080924
06.09.2019,ADULT SOCIAL CARE,LONDON CARE LTD,399.61,LD LTS 18-64,HOMECARE - C&V,2103000767,1000003398
06.09.2019,ADULT SOCIAL CARE,SAGECARE LTD,903.28,LD LTS 18-64,HOMECARE - C&V,2103000337,1000080924
06.09.2019,ADULT SOCIAL CARE,SAGECARE LTD,944.88,LD LTS 18-64,HOMECARE - C&V,2103000392,1000080924
06.09.2019,ADULT SOCIAL CARE,LONDON CARE LTD,"1,119.72",LD LTS 18-64,HOMECARE - C&V,2103001014,1000003398
06.09.2019,ADULT SOCIAL CARE,LONDON CARE LTD,"1,169.80",LD LTS 18-64,HOMECARE - C&V,2103000779,1000003398
06.09.2019,ADULT SOCIAL CARE,TRUECARE HAVEN SUPPORT LTD,"1,900.00",LD LTS 18-64,HOMECARE - SPOT,2103000684,1000078974
06.09.2019,ADULT SOCIAL CARE,CARE DIRECT UK LTD,347.51,LD LTS 18-64,SUPPORTED LIVING,2103000663,1000066322
06.09.2019,ADULT SOCIAL CARE,CARE DIRECT UK LTD,347.51,LD LTS 18-64,SUPPORTED LIVING,2103000667,1000066322
06.09.2019,ADULT SOCIAL CARE,TRUECARE HAVEN SUPPORT LTD,650,LD LTS 18-64,SUPPORTED LIVING,2103000651,1000078974
06.09.2019,ADULT SOCIAL CARE,SWEETTREE HOME CARE SERVICES LTD,754.25,LD LTS 18-64,SUPPORTED LIVING,2103000665,1000058171
06.09.2019,ADULT SOCIAL CARE,RESOURCES FOR AUTISM,888,LD LTS 18-64,SUPPORTED LIVING,2103000655,1000062540
06.09.2019,ADULT SOCIAL CARE,TRUECARE HAVEN SUPPORT LTD,"1,197.55",LD LTS 18-64,SUPPORTED LIVING,2103000687,1000078974
06.09.2019,ADULT SOCIAL CARE,PECULIAR CARE HOMES LTD,"1,903.23",LD LTS 18-64,SUPPORTED LIVING,2103000682,1000076991
06.09.2019,ADULT SOCIAL CARE,LONDON CARE LTD,"1,696.81",LD LTS 65+,HOMECARE - C&V,2103000880,1000003398
06.09.2019,ADULT SOCIAL CARE,LONDON CARE LTD,"5,486.30",LD LTS 65+,HOMECARE - C&V,2103000843,1000003398
06.09.2019,ADULT SOCIAL CARE,LONDON CARE LTD,376.13,MEM LTS 18-64,HOMECARE - C&V,2103001039,1000003398
06.09.2019,ADULT SOCIAL CARE,SAGECARE LTD,645.32,MEM LTS 18-64,HOMECARE - C&V,2103000479,1000080924
06.09.2019,ADULT SOCIAL CARE,LONDON CARE LTD,720.24,MEM LTS 18-64,HOMECARE - C&V,2103001028,1000003398
06.09.2019,ADULT SOCIAL CARE,SAGECARE LTD,349.72,MEM LTS 65+,HOMECARE - C&V,2103000599,1000080924
06.09.2019,ADULT SOCIAL CARE,LONDON CARE LTD,445.48,MEM LTS 65+,HOMECARE - C&V,2103000864,1000003398
06.09.2019,ADULT SOCIAL CARE,SAGECARE LTD,495.62,MEM LTS 65+,HOMECARE - C&V,2103000347,1000080924
06.09.2019,ADULT SOCIAL CARE,SAGECARE LTD,583.04,MEM LTS 65+,HOMECARE - C&V,2103000461,1000080924
06.09.2019,ADULT SOCIAL CARE,SAGECARE LTD,632.98,MEM LTS 65+,HOMECARE - C&V,2103000536,1000080924
06.09.2019,ADULT SOCIAL CARE,LONDON CARE LTD,728.44,MEM LTS 65+,HOMECARE - C&V,2103000954,1000003398
06.09.2019,ADULT SOCIAL CARE,LONDON CARE LTD,763.45,MEM LTS 65+,HOMECARE - C&V,2103000814,1000003398
06.09.2019,ADULT SOCIAL CARE,LONDON CARE LTD,849.2,MEM LTS 65+,HOMECARE - C&V,2103000959,1000003398
06.09.2019,ADULT SOCIAL CARE,LONDON CARE LTD,870.33,MEM LTS 65+,HOMECARE - C&V,2103000984,1000003398
06.09.2019,ADULT SOCIAL CARE,SAGECARE LTD,895.27,MEM LTS 65+,HOMECARE - C&V,2103000339,1000080924
06.09.2019,ADULT SOCIAL CARE,LONDON CARE LTD,974.36,MEM LTS 65+,HOMECARE - C&V,2103000691,1000003398
06.09.2019,ADULT SOCIAL CARE,SAGECARE LTD,"1,115.72",MEM LTS 65+,HOMECARE - C&V,2103000370,1000080924
06.09.2019,ADULT SOCIAL CARE,LONDON CARE LTD,"1,144.78",MEM LTS 65+,HOMECARE - C&V,2103000989,1000003398
06.09.2019,ADULT SOCIAL CARE,SAGECARE LTD,"1,673.95",MEM LTS 65+,HOMECARE - C&V,2103000417,1000080924
06.09.2019,ADULT SOCIAL CARE,LONDON CARE LTD,"3,296.98",MEM LTS 65+,HOMECARE - C&V,2103000827,1000003398
06.09.2019,ADULT SOCIAL CARE,SNOWBALL CARE UK LTD,256,MEM LTS 65+,HOMECARE - SPOT,2103000661,1000081483
06.09.2019,ADULT SOCIAL CARE,SNOWBALL CARE UK LTD,"2,208.00",MEM LTS 65+,HOMECARE - SPOT,2103000662,1000081483
06.09.2019,ADULT SOCIAL CARE,LONDON CARE LTD,258.08,MH LTS 18-64,HOMECARE - C&V,2103000934,1000003398
06.09.2019,ADULT SOCIAL CARE,LONDON CARE LTD,258.21,MH LTS 18-64,HOMECARE - C&V,2103000789,1000003398
06.09.2019,ADULT SOCIAL CARE,SAGECARE LTD,318.68,MH LTS 18-64,HOMECARE - C&V,2103000553,1000080924
06.09.2019,ADULT SOCIAL CARE,LONDON CARE LTD,353.81,MH LTS 18-64,HOMECARE - C&V,2103000962,1000003398
06.09.2019,ADULT SOCIAL CARE,LONDON CARE LTD,453.72,MH LTS 18-64,HOMECARE - C&V,2103000710,1000003398
06.09.2019,ADULT SOCIAL CARE,LONDON CARE LTD,507.86,MH LTS 18-64,HOMECARE - C&V,2103001040,1000003398
06.09.2019,ADULT SOCIAL CARE,SAGECARE LTD,516.16,MH LTS 18-64,HOMECARE - C&V,2103000374,1000080924
06.09.2019,ADULT SOCIAL CARE,SAGECARE LTD,517.88,MH LTS 18-64,HOMECARE - C&V,2103000539,1000080924
06.09.2019,ADULT SOCIAL CARE,LONDON CARE LTD,591.33,MH LTS 18-64,HOMECARE - C&V,2103000990,1000003398
06.09.2019,ADULT SOCIAL CARE,LONDON CARE LTD,636.88,MH LTS 18-64,HOMECARE - C&V,2103000898,1000003398
06.09.2019,ADULT SOCIAL CARE,LONDON CARE LTD,823.94,MH LTS 18-64,HOMECARE - C&V,2103001027,1000003398
06.09.2019,ADULT SOCIAL CARE,LONDON CARE LTD,857.5,MH LTS 18-64,HOMECARE - C&V,2103000876,1000003398
06.09.2019,ADULT SOCIAL CARE,LONDON CARE LTD,986.68,MH LTS 18-64,HOMECARE - C&V,2103000925,1000003398
06.09.2019,ADULT SOCIAL CARE,SAGECARE LTD,"1,386.90",MH LTS 18-64,HOMECARE - C&V,2103000405,1000080924
06.09.2019,ADULT SOCIAL CARE,RESOURCES FOR AUTISM,600,MH LTS 18-64,SUPPORTED LIVING,2103000673,1000062540
06.09.2019,ADULT SOCIAL CARE,SAGECARE LTD,266.4,MH LTS 65+,HOMECARE - C&V,2103000592,1000080924
06.09.2019,ADULT SOCIAL CARE,LONDON CARE LTD,291.38,MH LTS 65+,HOMECARE - C&V,2103000985,1000003398
06.09.2019,ADULT SOCIAL CARE,LONDON CARE LTD,491.36,MH LTS 65+,HOMECARE - C&V,2103000752,1000003398
06.09.2019,ADULT SOCIAL CARE,SAGECARE LTD,512.24,MH LTS 65+,HOMECARE - C&V,2103000336,1000080924
06.09.2019,ADULT SOCIAL CARE,SAGECARE LTD,608,MH LTS 65+,HOMECARE - C&V,2103000371,1000080924
06.09.2019,ADULT SOCIAL CARE,LONDON CARE LTD,649.36,MH LTS 65+,HOMECARE - C&V,2103000775,1000003398
06.09.2019,ADULT SOCIAL CARE,SAGECARE LTD,778.5,MH LTS 65+,HOMECARE - C&V,2103000560,1000080924
06.09.2019,ADULT SOCIAL CARE,SAGECARE LTD,"1,706.75",MH LTS 65+,HOMECARE - C&V,2103000447,1000080924
06.09.2019,ADULT SOCIAL CARE,LONDON CARE LTD,"1,998.69",MH LTS 65+,HOMECARE - C&V,2103000942,1000003398
06.09.2019,ADULT SOCIAL CARE,HEADWAY S E,256,PHY LTS 18-64,DAYCARE,2103000645,1000012359
06.09.2019,ADULT SOCIAL CARE,SAGECARE LTD,253.96,PHY LTS 18-64,HOMECARE - C&V,2103000418,1000080924
06.09.2019,ADULT SOCIAL CARE,SAGECARE LTD,258.12,PHY LTS 18-64,HOMECARE - C&V,2103000403,1000080924
06.09.2019,ADULT SOCIAL CARE,LONDON CARE LTD,258.18,PHY LTS 18-64,HOMECARE - C&V,2103000859,1000003398
06.09.2019,ADULT SOCIAL CARE,SAGECARE LTD,278.95,PHY LTS 18-64,HOMECARE - C&V,2103000531,1000080924
06.09.2019,ADULT SOCIAL CARE,LONDON CARE LTD,295.56,PHY LTS 18-64,HOMECARE - C&V,2103001042,1000003398
06.09.2019,ADULT SOCIAL CARE,SAGECARE LTD,308.04,PHY LTS 18-64,HOMECARE - C&V,2103000497,1000080924
06.09.2019,ADULT SOCIAL CARE,SAGECARE LTD,308.09,PHY LTS 18-64,HOMECARE - C&V,2103000530,1000080924
06.09.2019,ADULT SOCIAL CARE,LONDON CARE LTD,323.16,PHY LTS 18-64,HOMECARE - C&V,2103000917,1000003398
06.09.2019,ADULT SOCIAL CARE,SAGECARE LTD,333,PHY LTS 18-64,HOMECARE - C&V,2103000455,1000080924
06.09.2019,ADULT SOCIAL CARE,SAGECARE LTD,333.07,PHY LTS 18-64,HOMECARE - C&V,2103000469,1000080924
06.09.2019,ADULT SOCIAL CARE,SAGECARE LTD,333.07,PHY LTS 18-64,HOMECARE - C&V,2103000577,1000080924
06.09.2019,ADULT SOCIAL CARE,LONDON CARE LTD,341.4,PHY LTS 18-64,HOMECARE - C&V,2103000865,1000003398
06.09.2019,ADULT SOCIAL CARE,LONDON CARE LTD,341.44,PHY LTS 18-64,HOMECARE - C&V,2103000834,1000003398
06.09.2019,ADULT SOCIAL CARE,LONDON CARE LTD,349.7,PHY LTS 18-64,HOMECARE - C&V,2103000692,1000003398
06.09.2019,ADULT SOCIAL CARE,LONDON CARE LTD,349.72,PHY LTS 18-64,HOMECARE - C&V,2103000784,1000003398
06.09.2019,ADULT SOCIAL CARE,LONDON CARE LTD,349.72,PHY LTS 18-64,HOMECARE - C&V,2103000960,1000003398
06.09.2019,ADULT SOCIAL CARE,LONDON CARE LTD,351.72,PHY LTS 18-64,HOMECARE - C&V,2103000795,1000003398
06.09.2019,ADULT SOCIAL CARE,LONDON CARE LTD,358,PHY LTS 18-64,HOMECARE - C&V,2103001029,1000003398
06.09.2019,ADULT SOCIAL CARE,LONDON CARE LTD,366.36,PHY LTS 18-64,HOMECARE - C&V,2103000912,1000003398
06.09.2019,ADULT SOCIAL CARE,SAGECARE LTD,370.52,PHY LTS 18-64,HOMECARE - C&V,2103000583,1000080924
06.09.2019,ADULT SOCIAL CARE,LONDON CARE LTD,382.99,PHY LTS 18-64,HOMECARE - C&V,2103000730,1000003398
06.09.2019,ADULT SOCIAL CARE,SAGECARE LTD,383,PHY LTS 18-64,HOMECARE - C&V,2103000334,1000080924
06.09.2019,ADULT SOCIAL CARE,LONDON CARE LTD,399.6,PHY LTS 18-64,HOMECARE - C&V,2103000866,1000003398
06.09.2019,ADULT SOCIAL CARE,SAGECARE LTD,399.74,PHY LTS 18-64,HOMECARE - C&V,2103000435,1000080924
06.09.2019,ADULT SOCIAL CARE,LONDON CARE LTD,411.02,PHY LTS 18-64,HOMECARE - C&V,2103000769,1000003398
06.09.2019,ADULT SOCIAL CARE,SAGECARE LTD,420.51,PHY LTS 18-64,HOMECARE - C&V,2103000478,1000080924
06.09.2019,ADULT SOCIAL CARE,SAGECARE LTD,424.75,PHY LTS 18-64,HOMECARE - C&V,2103000522,1000080924
06.09.2019,ADULT SOCIAL CARE,LONDON CARE LTD,432.97,PHY LTS 18-64,HOMECARE - C&V,2103000978,1000003398
06.09.2019,ADULT SOCIAL CARE,LONDON CARE LTD,437.12,PHY LTS 18-64,HOMECARE - C&V,2103000828,1000003398
06.09.2019,ADULT SOCIAL CARE,SAGECARE LTD,441.34,PHY LTS 18-64,HOMECARE - C&V,2103000526,1000080924
06.09.2019,ADULT SOCIAL CARE,SAGECARE LTD,467.05,PHY LTS 18-64,HOMECARE - C&V,2103000534,1000080924
06.09.2019,ADULT SOCIAL CARE,LONDON CARE LTD,474.6,PHY LTS 18-64,HOMECARE - C&V,2103000774,1000003398
06.09.2019,ADULT SOCIAL CARE,LONDON CARE LTD,478.79,PHY LTS 18-64,HOMECARE - C&V,2103000952,1000003398
06.09.2019,ADULT SOCIAL CARE,LONDON CARE LTD,524.54,PHY LTS 18-64,HOMECARE - C&V,2103001003,1000003398
06.09.2019,ADULT SOCIAL CARE,LONDON CARE LTD,533.08,PHY LTS 18-64,HOMECARE - C&V,2103000715,1000003398
06.09.2019,ADULT SOCIAL CARE,LONDON CARE LTD,536.96,PHY LTS 18-64,HOMECARE - C&V,2103000785,1000003398
06.09.2019,ADULT SOCIAL CARE,SAGECARE LTD,537.12,PHY LTS 18-64,HOMECARE - C&V,2103000328,1000080924
06.09.2019,ADULT SOCIAL CARE,SAGECARE LTD,537.15,PHY LTS 18-64,HOMECARE - C&V,2103000571,1000080924
06.09.2019,ADULT SOCIAL CARE,SAGECARE LTD,541.12,PHY LTS 18-64,HOMECARE - C&V,2103000567,1000080924
06.09.2019,ADULT SOCIAL CARE,LONDON CARE LTD,541.12,PHY LTS 18-64,HOMECARE - C&V,2103000764,1000003398
06.09.2019,ADULT SOCIAL CARE,SAGECARE LTD,545.35,PHY LTS 18-64,HOMECARE - C&V,2103000558,1000080924
06.09.2019,ADULT SOCIAL CARE,SAGECARE LTD,553.61,PHY LTS 18-64,HOMECARE - C&V,2103000504,1000080924
06.09.2019,ADULT SOCIAL CARE,SAGECARE LTD,570.03,PHY LTS 18-64,HOMECARE - C&V,2103000581,1000080924
06.09.2019,ADULT SOCIAL CARE,LONDON CARE LTD,574.51,PHY LTS 18-64,HOMECARE - C&V,2103000700,1000003398
06.09.2019,ADULT SOCIAL CARE,SAGECARE LTD,574.6,PHY LTS 18-64,HOMECARE - C&V,2103000342,1000080924
06.09.2019,ADULT SOCIAL CARE,LONDON CARE LTD,582.09,PHY LTS 18-64,HOMECARE - C&V,2103001023,1000003398
06.09.2019,ADULT SOCIAL CARE,SAGECARE LTD,583.05,PHY LTS 18-64,HOMECARE - C&V,2103000574,1000080924
06.09.2019,ADULT SOCIAL CARE,LONDON CARE LTD,599.6,PHY LTS 18-64,HOMECARE - C&V,2103000891,1000003398
06.09.2019,ADULT SOCIAL CARE,LONDON CARE LTD,603.78,PHY LTS 18-64,HOMECARE - C&V,2103001046,1000003398
06.09.2019,ADULT SOCIAL CARE,LONDON CARE LTD,620.39,PHY LTS 18-64,HOMECARE - C&V,2103000992,1000003398
06.09.2019,ADULT SOCIAL CARE,LONDON CARE LTD,620.42,PHY LTS 18-64,HOMECARE - C&V,2103000837,1000003398
06.09.2019,ADULT SOCIAL CARE,LONDON CARE LTD,636.9,PHY LTS 18-64,HOMECARE - C&V,2103000907,1000003398
06.09.2019,ADULT SOCIAL CARE,SAGECARE LTD,682.97,PHY LTS 18-64,HOMECARE - C&V,2103000475,1000080924
06.09.2019,ADULT SOCIAL CARE,LONDON CARE LTD,695.34,PHY LTS 18-64,HOMECARE - C&V,2103000713,1000003398
06.09.2019,ADULT SOCIAL CARE,LONDON CARE LTD,695.35,PHY LTS 18-64,HOMECARE - C&V,2103000945,1000003398
06.09.2019,ADULT SOCIAL CARE,LONDON CARE LTD,703.6,PHY LTS 18-64,HOMECARE - C&V,2103000688,1000003398
06.09.2019,ADULT SOCIAL CARE,LONDON CARE LTD,707.84,PHY LTS 18-64,HOMECARE - C&V,2103000980,1000003398
06.09.2019,ADULT SOCIAL CARE,LONDON CARE LTD,711.85,PHY LTS 18-64,HOMECARE - C&V,2103000694,1000003398
06.09.2019,ADULT SOCIAL CARE,LONDON CARE LTD,716.02,PHY LTS 18-64,HOMECARE - C&V,2103001044,1000003398
06.09.2019,ADULT SOCIAL CARE,LONDON CARE LTD,732.81,PHY LTS 18-64,HOMECARE - C&V,2103000793,1000003398
06.09.2019,ADULT SOCIAL CARE,SAGECARE LTD,736.87,PHY LTS 18-64,HOMECARE - C&V,2103000551,1000080924
06.09.2019,ADULT SOCIAL CARE,LONDON CARE LTD,753.62,PHY LTS 18-64,HOMECARE - C&V,2103000716,1000003398
06.09.2019,ADULT SOCIAL CARE,SAGECARE LTD,782.83,PHY LTS 18-64,HOMECARE - C&V,2103000355,1000080924
06.09.2019,ADULT SOCIAL CARE,LONDON CARE LTD,788.16,PHY LTS 18-64,HOMECARE - C&V,2103000982,1000003398
06.09.2019,ADULT SOCIAL CARE,SAGECARE LTD,795.33,PHY LTS 18-64,HOMECARE - C&V,2103000434,1000080924
06.09.2019,ADULT SOCIAL CARE,LONDON CARE LTD,799.36,PHY LTS 18-64,HOMECARE - C&V,2103001010,1000003398
06.09.2019,ADULT SOCIAL CARE,SAGECARE LTD,811.82,PHY LTS 18-64,HOMECARE - C&V,2103000482,1000080924
06.09.2019,ADULT SOCIAL CARE,LONDON CARE LTD,815.99,PHY LTS 18-64,HOMECARE - C&V,2103000805,1000003398
06.09.2019,ADULT SOCIAL CARE,LONDON CARE LTD,880.2,PHY LTS 18-64,HOMECARE - C&V,2103000736,1000003398
06.09.2019,ADULT SOCIAL CARE,SAGECARE LTD,932.08,PHY LTS 18-64,HOMECARE - C&V,2103000393,1000080924
06.09.2019,ADULT SOCIAL CARE,SAGECARE LTD,932.74,PHY LTS 18-64,HOMECARE - C&V,2103000380,1000080924
06.09.2019,ADULT SOCIAL CARE,LONDON CARE LTD,953.22,PHY LTS 18-64,HOMECARE - C&V,2103000792,1000003398
06.09.2019,ADULT SOCIAL CARE,LONDON CARE LTD,953.28,PHY LTS 18-64,HOMECARE - C&V,2103000708,1000003398
06.09.2019,ADULT SOCIAL CARE,SAGECARE LTD,957.86,PHY LTS 18-64,HOMECARE - C&V,2103000344,1000080924
06.09.2019,ADULT SOCIAL CARE,SAGECARE LTD,961.59,PHY LTS 18-64,HOMECARE - C&V,2103000545,1000080924
06.09.2019,ADULT SOCIAL CARE,LONDON CARE LTD,"1,053.27",PHY LTS 18-64,HOMECARE - C&V,2103000908,1000003398
06.09.2019,ADULT SOCIAL CARE,SAGECARE LTD,"1,064.77",PHY LTS 18-64,HOMECARE - C&V,2103000399,1000080924
06.09.2019,ADULT SOCIAL CARE,LONDON CARE LTD,"1,065.82",PHY LTS 18-64,HOMECARE - C&V,2103001050,1000003398
06.09.2019,ADULT SOCIAL CARE,SAGECARE LTD,"1,076.65",PHY LTS 18-64,HOMECARE - C&V,2103000483,1000080924
06.09.2019,ADULT SOCIAL CARE,LONDON CARE LTD,"1,086.65",PHY LTS 18-64,HOMECARE - C&V,2103000858,1000003398
06.09.2019,ADULT SOCIAL CARE,LONDON CARE LTD,"1,132.66",PHY LTS 18-64,HOMECARE - C&V,2103000848,1000003398
06.09.2019,ADULT SOCIAL CARE,SAGECARE LTD,"1,149.26",PHY LTS 18-64,HOMECARE - C&V,2103000542,1000080924
06.09.2019,ADULT SOCIAL CARE,LONDON CARE LTD,"1,165.66",PHY LTS 18-64,HOMECARE - C&V,2103000768,1000003398
06.09.2019,ADULT SOCIAL CARE,SAGECARE LTD,"1,286.60",PHY LTS 18-64,HOMECARE - C&V,2103000395,1000080924
06.09.2019,ADULT SOCIAL CARE,LONDON CARE LTD,"1,394.80",PHY LTS 18-64,HOMECARE - C&V,2103000878,1000003398
06.09.2019,ADULT SOCIAL CARE,LONDON CARE LTD,"1,436.21",PHY LTS 18-64,HOMECARE - C&V,2103001033,1000003398
06.09.2019,ADULT SOCIAL CARE,SAGECARE LTD,"1,452.80",PHY LTS 18-64,HOMECARE - C&V,2103000476,1000080924
06.09.2019,ADULT SOCIAL CARE,SAGECARE LTD,"1,465.90",PHY LTS 18-64,HOMECARE - C&V,2103000596,1000080924
06.09.2019,ADULT SOCIAL CARE,SAGECARE LTD,"1,590.28",PHY LTS 18-64,HOMECARE - C&V,2103000525,1000080924
06.09.2019,ADULT SOCIAL CARE,LONDON CARE LTD,"1,857.02",PHY LTS 18-64,HOMECARE - C&V,2103001036,1000003398
06.09.2019,ADULT SOCIAL CARE,LONDON CARE LTD,"2,031.77",PHY LTS 18-64,HOMECARE - C&V,2103000705,1000003398
06.09.2019,ADULT SOCIAL CARE,LONDON CARE LTD,"2,219.49",PHY LTS 18-64,HOMECARE - C&V,2103000911,1000003398
06.09.2019,ADULT SOCIAL CARE,LONDON CARE LTD,"2,484.55",PHY LTS 18-64,HOMECARE - C&V,2103000836,1000003398
06.09.2019,ADULT SOCIAL CARE,LONDON CARE LTD,"2,552.05",PHY LTS 18-64,HOMECARE - C&V,2103000823,1000003398
06.09.2019,ADULT SOCIAL CARE,SAGECARE LTD,"2,668.83",PHY LTS 18-64,HOMECARE - C&V,2103000451,1000080924
06.09.2019,ADULT SOCIAL CARE,LONDON CARE LTD,353.88,PHY LTS 18-64,HOMECARE - SPOT,2103001019,1000003398
06.09.2019,ADULT SOCIAL CARE,SERVESOUL LTD,408.91,PHY LTS 18-64,HOMECARE - SPOT,2103000616,1000081503
06.09.2019,ADULT SOCIAL CARE,SNOWBALL CARE UK LTD,560,PHY LTS 18-64,HOMECARE - SPOT,2103000683,1000081483
06.09.2019,ADULT SOCIAL CARE,LONDON CARE LTD,657.88,PHY LTS 18-64,HOMECARE - SPOT,2103000697,1000003398
06.09.2019,ADULT SOCIAL CARE,SAGECARE LTD,661.95,PHY LTS 18-64,HOMECARE - SPOT,2103000570,1000080924
06.09.2019,ADULT SOCIAL CARE,LONDON CARE LTD,"2,194.02",PHY LTS 18-64,HOMECARE - SPOT,2103000811,1000003398
06.09.2019,ADULT SOCIAL CARE,SNOWBALL CARE UK LTD,"3,488.00",PHY LTS 18-64,HOMECARE - SPOT,2103000649,1000081483
06.09.2019,ADULT SOCIAL CARE,PECULIAR CARE HOMES LTD,718,PHY LTS 18-64,SUPPORTED LIVING,2103000679,1000076991
06.09.2019,ADULT SOCIAL CARE,PECULIAR CARE HOMES LTD,897.5,PHY LTS 18-64,SUPPORTED LIVING,2103000653,1000076991
06.09.2019,ADULT SOCIAL CARE,LONDON CARE LTD,253.96,PHY LTS 65+,HOMECARE - C&V,2103000886,1000003398
06.09.2019,ADULT SOCIAL CARE,LONDON CARE LTD,253.96,PHY LTS 65+,HOMECARE - C&V,2103001008,1000003398
06.09.2019,ADULT SOCIAL CARE,SAGECARE LTD,262.27,PHY LTS 65+,HOMECARE - C&V,2103000535,1000080924
06.09.2019,ADULT SOCIAL CARE,SAGECARE LTD,264,PHY LTS 65+,HOMECARE - C&V,2103000443,1000080924
06.09.2019,ADULT SOCIAL CARE,LONDON CARE LTD,266.4,PHY LTS 65+,HOMECARE - C&V,2103000737,1000003398
06.09.2019,ADULT SOCIAL CARE,LONDON CARE LTD,266.52,PHY LTS 65+,HOMECARE - C&V,2103000762,1000003398
06.09.2019,ADULT SOCIAL CARE,LONDON CARE LTD,274.76,PHY LTS 65+,HOMECARE - C&V,2103000751,1000003398
06.09.2019,ADULT SOCIAL CARE,SAGECARE LTD,283.17,PHY LTS 65+,HOMECARE - C&V,2103000463,1000080924
06.09.2019,ADULT SOCIAL CARE,LONDON CARE LTD,287.26,PHY LTS 65+,HOMECARE - C&V,2103000742,1000003398
06.09.2019,ADULT SOCIAL CARE,SAGECARE LTD,290.63,PHY LTS 65+,HOMECARE - C&V,2103000381,1000080924
06.09.2019,ADULT SOCIAL CARE,SAGECARE LTD,299.76,PHY LTS 65+,HOMECARE - C&V,2103000384,1000080924
06.09.2019,ADULT SOCIAL CARE,SAGECARE LTD,299.76,PHY LTS 65+,HOMECARE - C&V,2103000401,1000080924
06.09.2019,ADULT SOCIAL CARE,SAGECARE LTD,299.76,PHY LTS 65+,HOMECARE - C&V,2103000600,1000080924
06.09.2019,ADULT SOCIAL CARE,LONDON CARE LTD,299.76,PHY LTS 65+,HOMECARE - C&V,2103000754,1000003398
06.09.2019,ADULT SOCIAL CARE,LONDON CARE LTD,299.84,PHY LTS 65+,HOMECARE - C&V,2103000761,1000003398
06.09.2019,ADULT SOCIAL CARE,SAGECARE LTD,305.28,PHY LTS 65+,HOMECARE - C&V,2103000423,1000080924
06.09.2019,ADULT SOCIAL CARE,SAGECARE LTD,316.51,PHY LTS 65+,HOMECARE - C&V,2103000503,1000080924
06.09.2019,ADULT SOCIAL CARE,LONDON CARE LTD,333,PHY LTS 65+,HOMECARE - C&V,2103000863,1000003398
06.09.2019,ADULT SOCIAL CARE,LONDON CARE LTD,337.24,PHY LTS 65+,HOMECARE - C&V,2103000701,1000003398
06.09.2019,ADULT SOCIAL CARE,LONDON CARE LTD,337.24,PHY LTS 65+,HOMECARE - C&V,2103000824,1000003398
06.09.2019,ADULT SOCIAL CARE,LONDON CARE LTD,341.39,PHY LTS 65+,HOMECARE - C&V,2103000979,1000003398
06.09.2019,ADULT SOCIAL CARE,SAGECARE LTD,341.45,PHY LTS 65+,HOMECARE - C&V,2103000576,1000080924
06.09.2019,ADULT SOCIAL CARE,LONDON CARE LTD,345.55,PHY LTS 65+,HOMECARE - C&V,2103000928,1000003398
06.09.2019,ADULT SOCIAL CARE,SAGECARE LTD,345.56,PHY LTS 65+,HOMECARE - C&V,2103000348,1000080924
06.09.2019,ADULT SOCIAL CARE,LONDON CARE LTD,345.56,PHY LTS 65+,HOMECARE - C&V,2103000719,1000003398
06.09.2019,ADULT SOCIAL CARE,LONDON CARE LTD,345.56,PHY LTS 65+,HOMECARE - C&V,2103000844,1000003398
06.09.2019,ADULT SOCIAL CARE,SAGECARE LTD,349.72,PHY LTS 65+,HOMECARE - C&V,2103000407,1000080924
06.09.2019,ADULT SOCIAL CARE,SAGECARE LTD,349.72,PHY LTS 65+,HOMECARE - C&V,2103000458,1000080924
06.09.2019,ADULT SOCIAL CARE,SAGECARE LTD,349.72,PHY LTS 65+,HOMECARE - C&V,2103000462,1000080924
06.09.2019,ADULT SOCIAL CARE,LONDON CARE LTD,349.72,PHY LTS 65+,HOMECARE - C&V,2103000895,1000003398
06.09.2019,ADULT SOCIAL CARE,SAGECARE LTD,349.86,PHY LTS 65+,HOMECARE - C&V,2103000598,1000080924
06.09.2019,ADULT SOCIAL CARE,SAGECARE LTD,353.88,PHY LTS 65+,HOMECARE - C&V,2103000379,1000080924
06.09.2019,ADULT SOCIAL CARE,SAGECARE LTD,353.88,PHY LTS 65+,HOMECARE - C&V,2103000487,1000080924
06.09.2019,ADULT SOCIAL CARE,SAGECARE LTD,353.88,PHY LTS 65+,HOMECARE - C&V,2103000501,1000080924
06.09.2019,ADULT SOCIAL CARE,SAGECARE LTD,353.88,PHY LTS 65+,HOMECARE - C&V,2103000563,1000080924
06.09.2019,ADULT SOCIAL CARE,LONDON CARE LTD,353.88,PHY LTS 65+,HOMECARE - C&V,2103000926,1000003398
06.09.2019,ADULT SOCIAL CARE,LONDON CARE LTD,358.01,PHY LTS 65+,HOMECARE - C&V,2103000765,1000003398
06.09.2019,ADULT SOCIAL CARE,LONDON CARE LTD,358.04,PHY LTS 65+,HOMECARE - C&V,2103000852,1000003398
06.09.2019,ADULT SOCIAL CARE,LONDON CARE LTD,362.24,PHY LTS 65+,HOMECARE - C&V,2103000850,1000003398
06.09.2019,ADULT SOCIAL CARE,LONDON CARE LTD,366.31,PHY LTS 65+,HOMECARE - C&V,2103000809,1000003398
06.09.2019,ADULT SOCIAL CARE,LONDON CARE LTD,369.48,PHY LTS 65+,HOMECARE - C&V,2103000930,1000003398
06.09.2019,ADULT SOCIAL CARE,LONDON CARE LTD,370.62,PHY LTS 65+,HOMECARE - C&V,2103000941,1000003398
06.09.2019,ADULT SOCIAL CARE,SAGECARE LTD,383.04,PHY LTS 65+,HOMECARE - C&V,2103000559,1000080924
06.09.2019,ADULT SOCIAL CARE,SAGECARE LTD,383.08,PHY LTS 65+,HOMECARE - C&V,2103000485,1000080924
06.09.2019,ADULT SOCIAL CARE,LONDON CARE LTD,391.33,PHY LTS 65+,HOMECARE - C&V,2103000797,1000003398
06.09.2019,ADULT SOCIAL CARE,SAGECARE LTD,395.52,PHY LTS 65+,HOMECARE - C&V,2103000428,1000080924
06.09.2019,ADULT SOCIAL CARE,LONDON CARE LTD,399.82,PHY LTS 65+,HOMECARE - C&V,2103000918,1000003398
06.09.2019,ADULT SOCIAL CARE,LONDON CARE LTD,403.94,PHY LTS 65+,HOMECARE - C&V,2103000947,1000003398
06.09.2019,ADULT SOCIAL CARE,LONDON CARE LTD,412.33,PHY LTS 65+,HOMECARE - C&V,2103000996,1000003398
06.09.2019,ADULT SOCIAL CARE,SAGECARE LTD,416.32,PHY LTS 65+,HOMECARE - C&V,2103000343,1000080924
06.09.2019,ADULT SOCIAL CARE,SAGECARE LTD,416.4,PHY LTS 65+,HOMECARE - C&V,2103000518,1000080924
06.09.2019,ADULT SOCIAL CARE,SAGECARE LTD,416.42,PHY LTS 65+,HOMECARE - C&V,2103000533,1000080924
06.09.2019,ADULT SOCIAL CARE,SAGECARE LTD,417.13,PHY LTS 65+,HOMECARE - C&V,2103000413,1000080924
06.09.2019,ADULT SOCIAL CARE,LONDON CARE LTD,420.56,PHY LTS 65+,HOMECARE - C&V,2103000887,1000003398
06.09.2019,ADULT SOCIAL CARE,LONDON CARE LTD,426.03,PHY LTS 65+,HOMECARE - C&V,2103000817,1000003398
06.09.2019,ADULT SOCIAL CARE,SAGECARE LTD,437.32,PHY LTS 65+,HOMECARE - C&V,2103000352,1000080924
06.09.2019,ADULT SOCIAL CARE,LONDON CARE LTD,441.36,PHY LTS 65+,HOMECARE - C&V,2103000734,1000003398
06.09.2019,ADULT SOCIAL CARE,LONDON CARE LTD,449.63,PHY LTS 65+,HOMECARE - C&V,2103000840,1000003398
06.09.2019,ADULT SOCIAL CARE,LONDON CARE LTD,453.79,PHY LTS 65+,HOMECARE - C&V,2103000861,1000003398
06.09.2019,ADULT SOCIAL CARE,LONDON CARE LTD,453.98,PHY LTS 65+,HOMECARE - C&V,2103000739,1000003398
06.09.2019,ADULT SOCIAL CARE,SAGECARE LTD,458.02,PHY LTS 65+,HOMECARE - C&V,2103000366,1000080924
06.09.2019,ADULT SOCIAL CARE,LONDON CARE LTD,458.15,PHY LTS 65+,HOMECARE - C&V,2103000975,1000003398
06.09.2019,ADULT SOCIAL CARE,SAGECARE LTD,461.3,PHY LTS 65+,HOMECARE - C&V,2103000414,1000080924
06.09.2019,ADULT SOCIAL CARE,LONDON CARE LTD,462.3,PHY LTS 65+,HOMECARE - C&V,2103000874,1000003398
06.09.2019,ADULT SOCIAL CARE,LONDON CARE LTD,466.32,PHY LTS 65+,HOMECARE - C&V,2103000758,1000003398
06.09.2019,ADULT SOCIAL CARE,SAGECARE LTD,466.34,PHY LTS 65+,HOMECARE - C&V,2103000529,1000080924
06.09.2019,ADULT SOCIAL CARE,LONDON CARE LTD,466.47,PHY LTS 65+,HOMECARE - C&V,2103000750,1000003398
06.09.2019,ADULT SOCIAL CARE,SAGECARE LTD,474.73,PHY LTS 65+,HOMECARE - C&V,2103000579,1000080924
06.09.2019,ADULT SOCIAL CARE,SAGECARE LTD,474.76,PHY LTS 65+,HOMECARE - C&V,2103000411,1000080924
06.09.2019,ADULT SOCIAL CARE,SAGECARE LTD,478.96,PHY LTS 65+,HOMECARE - C&V,2103000424,1000080924
06.09.2019,ADULT SOCIAL CARE,SAGECARE LTD,482.84,PHY LTS 65+,HOMECARE - C&V,2103000543,1000080924
06.09.2019,ADULT SOCIAL CARE,SAGECARE LTD,482.92,PHY LTS 65+,HOMECARE - C&V,2103000420,1000080924
06.09.2019,ADULT SOCIAL CARE,LONDON CARE LTD,482.92,PHY LTS 65+,HOMECARE - C&V,2103000839,1000003398
06.09.2019,ADULT SOCIAL CARE,LONDON CARE LTD,491.24,PHY LTS 65+,HOMECARE - C&V,2103001038,1000003398
06.09.2019,ADULT SOCIAL CARE,SAGECARE LTD,496.64,PHY LTS 65+,HOMECARE - C&V,2103000488,1000080924
06.09.2019,ADULT SOCIAL CARE,LONDON CARE LTD,503.87,PHY LTS 65+,HOMECARE - C&V,2103000842,1000003398
06.09.2019,ADULT SOCIAL CARE,LONDON CARE LTD,503.92,PHY LTS 65+,HOMECARE - C&V,2103000884,1000003398
06.09.2019,ADULT SOCIAL CARE,SAGECARE LTD,507.99,PHY LTS 65+,HOMECARE - C&V,2103000394,1000080924
06.09.2019,ADULT SOCIAL CARE,LONDON CARE LTD,508.04,PHY LTS 65+,HOMECARE - C&V,2103000806,1000003398
06.09.2019,ADULT SOCIAL CARE,LONDON CARE LTD,512,PHY LTS 65+,HOMECARE - C&V,2103000938,1000003398
06.09.2019,ADULT SOCIAL CARE,LONDON CARE LTD,516.42,PHY LTS 65+,HOMECARE - C&V,2103000838,1000003398
06.09.2019,ADULT SOCIAL CARE,SAGECARE LTD,520.49,PHY LTS 65+,HOMECARE - C&V,2103000369,1000080924
06.09.2019,ADULT SOCIAL CARE,SAGECARE LTD,528.67,PHY LTS 65+,HOMECARE - C&V,2103000548,1000080924
06.09.2019,ADULT SOCIAL CARE,SAGECARE LTD,537.18,PHY LTS 65+,HOMECARE - C&V,2103000329,1000080924
06.09.2019,ADULT SOCIAL CARE,LONDON CARE LTD,537.22,PHY LTS 65+,HOMECARE - C&V,2103000888,1000003398
06.09.2019,ADULT SOCIAL CARE,LONDON CARE LTD,537.23,PHY LTS 65+,HOMECARE - C&V,2103000993,1000003398
06.09.2019,ADULT SOCIAL CARE,LONDON CARE LTD,538.25,PHY LTS 65+,HOMECARE - C&V,2103000820,1000003398
06.09.2019,ADULT SOCIAL CARE,SAGECARE LTD,541.43,PHY LTS 65+,HOMECARE - C&V,2103000421,1000080924
06.09.2019,ADULT SOCIAL CARE,SAGECARE LTD,542.39,PHY LTS 65+,HOMECARE - C&V,2103000512,1000080924
06.09.2019,ADULT SOCIAL CARE,LONDON CARE LTD,545.28,PHY LTS 65+,HOMECARE - C&V,2103000956,1000003398
06.09.2019,ADULT SOCIAL CARE,LONDON CARE LTD,545.39,PHY LTS 65+,HOMECARE - C&V,2103000933,1000003398
06.09.2019,ADULT SOCIAL CARE,LONDON CARE LTD,549.45,PHY LTS 65+,HOMECARE - C&V,2103000707,1000003398
06.09.2019,ADULT SOCIAL CARE,LONDON CARE LTD,549.61,PHY LTS 65+,HOMECARE - C&V,2103000893,1000003398
06.09.2019,ADULT SOCIAL CARE,LONDON CARE LTD,549.72,PHY LTS 65+,HOMECARE - C&V,2103000731,1000003398
06.09.2019,ADULT SOCIAL CARE,LONDON CARE LTD,553.8,PHY LTS 65+,HOMECARE - C&V,2103000810,1000003398
06.09.2019,ADULT SOCIAL CARE,SAGECARE LTD,557.93,PHY LTS 65+,HOMECARE - C&V,2103000427,1000080924
06.09.2019,ADULT SOCIAL CARE,LONDON CARE LTD,557.98,PHY LTS 65+,HOMECARE - C&V,2103000853,1000003398
06.09.2019,ADULT SOCIAL CARE,LONDON CARE LTD,562.17,PHY LTS 65+,HOMECARE - C&V,2103000813,1000003398
06.09.2019,ADULT SOCIAL CARE,LONDON CARE LTD,570.52,PHY LTS 65+,HOMECARE - C&V,2103000770,1000003398
06.09.2019,ADULT SOCIAL CARE,LONDON CARE LTD,578.75,PHY LTS 65+,HOMECARE - C&V,2103000831,1000003398
06.09.2019,ADULT SOCIAL CARE,LONDON CARE LTD,578.88,PHY LTS 65+,HOMECARE - C&V,2103000709,1000003398
06.09.2019,ADULT SOCIAL CARE,LONDON CARE LTD,582.94,PHY LTS 65+,HOMECARE - C&V,2103000743,1000003398
06.09.2019,ADULT SOCIAL CARE,LONDON CARE LTD,582.96,PHY LTS 65+,HOMECARE - C&V,2103000825,1000003398
06.09.2019,ADULT SOCIAL CARE,SAGECARE LTD,587.16,PHY LTS 65+,HOMECARE - C&V,2103000356,1000080924
06.09.2019,ADULT SOCIAL CARE,LONDON CARE LTD,591.19,PHY LTS 65+,HOMECARE - C&V,2103001012,1000003398
06.09.2019,ADULT SOCIAL CARE,LONDON CARE LTD,595.43,PHY LTS 65+,HOMECARE - C&V,2103000829,1000003398
06.09.2019,ADULT SOCIAL CARE,LONDON CARE LTD,599.6,PHY LTS 65+,HOMECARE - C&V,2103000812,1000003398
06.09.2019,ADULT SOCIAL CARE,LONDON CARE LTD,603.76,PHY LTS 65+,HOMECARE - C&V,2103000919,1000003398
06.09.2019,ADULT SOCIAL CARE,LONDON CARE LTD,612.08,PHY LTS 65+,HOMECARE - C&V,2103000772,1000003398
06.09.2019,ADULT SOCIAL CARE,SAGECARE LTD,612.09,PHY LTS 65+,HOMECARE - C&V,2103000419,1000080924
06.09.2019,ADULT SOCIAL CARE,LONDON CARE LTD,612.2,PHY LTS 65+,HOMECARE - C&V,2103000760,1000003398
06.09.2019,ADULT SOCIAL CARE,LONDON CARE LTD,616.23,PHY LTS 65+,HOMECARE - C&V,2103000896,1000003398
06.09.2019,ADULT SOCIAL CARE,SAGECARE LTD,620.39,PHY LTS 65+,HOMECARE - C&V,2103000537,1000080924
06.09.2019,ADULT SOCIAL CARE,LONDON CARE LTD,624.36,PHY LTS 65+,HOMECARE - C&V,2103000961,1000003398
06.09.2019,ADULT SOCIAL CARE,SAGECARE LTD,634.51,PHY LTS 65+,HOMECARE - C&V,2103000516,1000080924
06.09.2019,ADULT SOCIAL CARE,LONDON CARE LTD,637.06,PHY LTS 65+,HOMECARE - C&V,2103000846,1000003398
06.09.2019,ADULT SOCIAL CARE,LONDON CARE LTD,637.19,PHY LTS 65+,HOMECARE - C&V,2103000872,1000003398
06.09.2019,ADULT SOCIAL CARE,LONDON CARE LTD,641.2,PHY LTS 65+,HOMECARE - C&V,2103000977,1000003398
06.09.2019,ADULT SOCIAL CARE,LONDON CARE LTD,645.39,PHY LTS 65+,HOMECARE - C&V,2103001002,1000003398
06.09.2019,ADULT SOCIAL CARE,SAGECARE LTD,649.54,PHY LTS 65+,HOMECARE - C&V,2103000330,1000080924
06.09.2019,ADULT SOCIAL CARE,SAGECARE LTD,649.56,PHY LTS 65+,HOMECARE - C&V,2103000408,1000080924
06.09.2019,ADULT SOCIAL CARE,SAGECARE LTD,653.71,PHY LTS 65+,HOMECARE - C&V,2103000569,1000080924
06.09.2019,ADULT SOCIAL CARE,SAGECARE LTD,657.84,PHY LTS 65+,HOMECARE - C&V,2103000467,1000080924
06.09.2019,ADULT SOCIAL CARE,LONDON CARE LTD,662.03,PHY LTS 65+,HOMECARE - C&V,2103000879,1000003398
06.09.2019,ADULT SOCIAL CARE,SAGECARE LTD,666.23,PHY LTS 65+,HOMECARE - C&V,2103000505,1000080924
06.09.2019,ADULT SOCIAL CARE,LONDON CARE LTD,672.82,PHY LTS 65+,HOMECARE - C&V,2103000906,1000003398
06.09.2019,ADULT SOCIAL CARE,SAGECARE LTD,674.44,PHY LTS 65+,HOMECARE - C&V,2103000486,1000080924
06.09.2019,ADULT SOCIAL CARE,SAGECARE LTD,674.55,PHY LTS 65+,HOMECARE - C&V,2103000520,1000080924
06.09.2019,ADULT SOCIAL CARE,SAGECARE LTD,682.84,PHY LTS 65+,HOMECARE - C&V,2103000498,1000080924
06.09.2019,ADULT SOCIAL CARE,SAGECARE LTD,686.42,PHY LTS 65+,HOMECARE - C&V,2103000390,1000080924
06.09.2019,ADULT SOCIAL CARE,LONDON CARE LTD,686.99,PHY LTS 65+,HOMECARE - C&V,2103001001,1000003398
06.09.2019,ADULT SOCIAL CARE,SAGECARE LTD,687.04,PHY LTS 65+,HOMECARE - C&V,2103000361,1000080924
06.09.2019,ADULT SOCIAL CARE,SAGECARE LTD,699.49,PHY LTS 65+,HOMECARE - C&V,2103000377,1000080924
06.09.2019,ADULT SOCIAL CARE,SAGECARE LTD,699.71,PHY LTS 65+,HOMECARE - C&V,2103000364,1000080924
06.09.2019,ADULT SOCIAL CARE,SAGECARE LTD,703.59,PHY LTS 65+,HOMECARE - C&V,2103000557,1000080924
06.09.2019,ADULT SOCIAL CARE,LONDON CARE LTD,703.6,PHY LTS 65+,HOMECARE - C&V,2103000899,1000003398
06.09.2019,ADULT SOCIAL CARE,LONDON CARE LTD,711.91,PHY LTS 65+,HOMECARE - C&V,2103000782,1000003398
06.09.2019,ADULT SOCIAL CARE,SAGECARE LTD,712.19,PHY LTS 65+,HOMECARE - C&V,2103000448,1000080924
06.09.2019,ADULT SOCIAL CARE,LONDON CARE LTD,712.2,PHY LTS 65+,HOMECARE - C&V,2103000935,1000003398
06.09.2019,ADULT SOCIAL CARE,LONDON CARE LTD,716.08,PHY LTS 65+,HOMECARE - C&V,2103000783,1000003398
06.09.2019,ADULT SOCIAL CARE,SAGECARE LTD,716.1,PHY LTS 65+,HOMECARE - C&V,2103000346,1000080924
06.09.2019,ADULT SOCIAL CARE,LONDON CARE LTD,716.24,PHY LTS 65+,HOMECARE - C&V,2103001026,1000003398
06.09.2019,ADULT SOCIAL CARE,SAGECARE LTD,720.42,PHY LTS 65+,HOMECARE - C&V,2103000492,1000080924
06.09.2019,ADULT SOCIAL CARE,LONDON CARE LTD,724.48,PHY LTS 65+,HOMECARE - C&V,2103000729,1000003398
06.09.2019,ADULT SOCIAL CARE,LONDON CARE LTD,724.55,PHY LTS 65+,HOMECARE - C&V,2103000693,1000003398
06.09.2019,ADULT SOCIAL CARE,LONDON CARE LTD,728.58,PHY LTS 65+,HOMECARE - C&V,2103000958,1000003398
06.09.2019,ADULT SOCIAL CARE,SAGECARE LTD,728.65,PHY LTS 65+,HOMECARE - C&V,2103000540,1000080924
06.09.2019,ADULT SOCIAL CARE,SAGECARE LTD,732.79,PHY LTS 65+,HOMECARE - C&V,2103000474,1000080924
06.09.2019,ADULT SOCIAL CARE,SAGECARE LTD,732.89,PHY LTS 65+,HOMECARE - C&V,2103000477,1000080924
06.09.2019,ADULT SOCIAL CARE,LONDON CARE LTD,736.91,PHY LTS 65+,HOMECARE - C&V,2103000706,1000003398
06.09.2019,ADULT SOCIAL CARE,SAGECARE LTD,737.15,PHY LTS 65+,HOMECARE - C&V,2103000489,1000080924
06.09.2019,ADULT SOCIAL CARE,SAGECARE LTD,741.25,PHY LTS 65+,HOMECARE - C&V,2103000372,1000080924
06.09.2019,ADULT SOCIAL CARE,SAGECARE LTD,745.3,PHY LTS 65+,HOMECARE - C&V,2103000406,1000080924
06.09.2019,ADULT SOCIAL CARE,LONDON CARE LTD,753.56,PHY LTS 65+,HOMECARE - C&V,2103000966,1000003398
06.09.2019,ADULT SOCIAL CARE,SAGECARE LTD,753.62,PHY LTS 65+,HOMECARE - C&V,2103000562,1000080924
06.09.2019,ADULT SOCIAL CARE,SAGECARE LTD,757.71,PHY LTS 65+,HOMECARE - C&V,2103000436,1000080924
06.09.2019,ADULT SOCIAL CARE,LONDON CARE LTD,766.17,PHY LTS 65+,HOMECARE - C&V,2103001043,1000003398
06.09.2019,ADULT SOCIAL CARE,LONDON CARE LTD,770.26,PHY LTS 65+,HOMECARE - C&V,2103000927,1000003398
06.09.2019,ADULT SOCIAL CARE,LONDON CARE LTD,770.35,PHY LTS 65+,HOMECARE - C&V,2103000732,1000003398
06.09.2019,ADULT SOCIAL CARE,SAGECARE LTD,773.07,PHY LTS 65+,HOMECARE - C&V,2103000496,1000080924
06.09.2019,ADULT SOCIAL CARE,LONDON CARE LTD,778.52,PHY LTS 65+,HOMECARE - C&V,2103000929,1000003398
06.09.2019,ADULT SOCIAL CARE,LONDON CARE LTD,781.36,PHY LTS 65+,HOMECARE - C&V,2103000778,1000003398
06.09.2019,ADULT SOCIAL CARE,LONDON CARE LTD,782.79,PHY LTS 65+,HOMECARE - C&V,2103001045,1000003398
06.09.2019,ADULT SOCIAL CARE,SAGECARE LTD,782.8,PHY LTS 65+,HOMECARE - C&V,2103000350,1000080924
06.09.2019,ADULT SOCIAL CARE,SAGECARE LTD,782.8,PHY LTS 65+,HOMECARE - C&V,2103000481,1000080924
06.09.2019,ADULT SOCIAL CARE,SAGECARE LTD,787.01,PHY LTS 65+,HOMECARE - C&V,2103000432,1000080924
06.09.2019,ADULT SOCIAL CARE,LONDON CARE LTD,791,PHY LTS 65+,HOMECARE - C&V,2103000964,1000003398
06.09.2019,ADULT SOCIAL CARE,SAGECARE LTD,795.36,PHY LTS 65+,HOMECARE - C&V,2103000528,1000080924
06.09.2019,ADULT SOCIAL CARE,LONDON CARE LTD,797.08,PHY LTS 65+,HOMECARE - C&V,2103000909,1000003398
06.09.2019,ADULT SOCIAL CARE,LONDON CARE LTD,800.62,PHY LTS 65+,HOMECARE - C&V,2103000970,1000003398
06.09.2019,ADULT SOCIAL CARE,LONDON CARE LTD,803.43,PHY LTS 65+,HOMECARE - C&V,2103000900,1000003398
06.09.2019,ADULT SOCIAL CARE,LONDON CARE LTD,805.92,PHY LTS 65+,HOMECARE - C&V,2103000854,1000003398
06.09.2019,ADULT SOCIAL CARE,LONDON CARE LTD,807.84,PHY LTS 65+,HOMECARE - C&V,2103000800,1000003398
06.09.2019,ADULT SOCIAL CARE,SAGECARE LTD,811.91,PHY LTS 65+,HOMECARE - C&V,2103000398,1000080924
06.09.2019,ADULT SOCIAL CARE,LONDON CARE LTD,816.22,PHY LTS 65+,HOMECARE - C&V,2103000923,1000003398
06.09.2019,ADULT SOCIAL CARE,SAGECARE LTD,820.19,PHY LTS 65+,HOMECARE - C&V,2103000449,1000080924
06.09.2019,ADULT SOCIAL CARE,SAGECARE LTD,824.33,PHY LTS 65+,HOMECARE - C&V,2103000327,1000080924
06.09.2019,ADULT SOCIAL CARE,SAGECARE LTD,828.68,PHY LTS 65+,HOMECARE - C&V,2103000493,1000080924
06.09.2019,ADULT SOCIAL CARE,LONDON CARE LTD,832.83,PHY LTS 65+,HOMECARE - C&V,2103001005,1000003398
06.09.2019,ADULT SOCIAL CARE,SAGECARE LTD,832.84,PHY LTS 65+,HOMECARE - C&V,2103000568,1000080924
06.09.2019,ADULT SOCIAL CARE,LONDON CARE LTD,832.84,PHY LTS 65+,HOMECARE - C&V,2103000740,1000003398
06.09.2019,ADULT SOCIAL CARE,LONDON CARE LTD,832.84,PHY LTS 65+,HOMECARE - C&V,2103000856,1000003398
06.09.2019,ADULT SOCIAL CARE,SAGECARE LTD,837.07,PHY LTS 65+,HOMECARE - C&V,2103000453,1000080924
06.09.2019,ADULT SOCIAL CARE,LONDON CARE LTD,839.52,PHY LTS 65+,HOMECARE - C&V,2103001009,1000003398
06.09.2019,ADULT SOCIAL CARE,SAGECARE LTD,841.13,PHY LTS 65+,HOMECARE - C&V,2103000513,1000080924
06.09.2019,ADULT SOCIAL CARE,SAGECARE LTD,845.07,PHY LTS 65+,HOMECARE - C&V,2103000508,1000080924
06.09.2019,ADULT SOCIAL CARE,LONDON CARE LTD,845.31,PHY LTS 65+,HOMECARE - C&V,2103000997,1000003398
06.09.2019,ADULT SOCIAL CARE,SAGECARE LTD,845.32,PHY LTS 65+,HOMECARE - C&V,2103000532,1000080924
06.09.2019,ADULT SOCIAL CARE,LONDON CARE LTD,849.51,PHY LTS 65+,HOMECARE - C&V,2103001051,1000003398
06.09.2019,ADULT SOCIAL CARE,LONDON CARE LTD,852.03,PHY LTS 65+,HOMECARE - C&V,2103000786,1000003398
06.09.2019,ADULT SOCIAL CARE,LONDON CARE LTD,853.44,PHY LTS 65+,HOMECARE - C&V,2103000869,1000003398
06.09.2019,ADULT SOCIAL CARE,SAGECARE LTD,853.46,PHY LTS 65+,HOMECARE - C&V,2103000506,1000080924
06.09.2019,ADULT SOCIAL CARE,SAGECARE LTD,853.71,PHY LTS 65+,HOMECARE - C&V,2103000511,1000080924
06.09.2019,ADULT SOCIAL CARE,LONDON CARE LTD,857.54,PHY LTS 65+,HOMECARE - C&V,2103000910,1000003398
06.09.2019,ADULT SOCIAL CARE,LONDON CARE LTD,857.69,PHY LTS 65+,HOMECARE - C&V,2103000826,1000003398
06.09.2019,ADULT SOCIAL CARE,SAGECARE LTD,857.7,PHY LTS 65+,HOMECARE - C&V,2103000431,1000080924
06.09.2019,ADULT SOCIAL CARE,LONDON CARE LTD,857.79,PHY LTS 65+,HOMECARE - C&V,2103000830,1000003398
06.09.2019,ADULT SOCIAL CARE,LONDON CARE LTD,874.47,PHY LTS 65+,HOMECARE - C&V,2103000698,1000003398
06.09.2019,ADULT SOCIAL CARE,LONDON CARE LTD,891.51,PHY LTS 65+,HOMECARE - C&V,2103001047,1000003398
06.09.2019,ADULT SOCIAL CARE,LONDON CARE LTD,896.98,PHY LTS 65+,HOMECARE - C&V,2103000766,1000003398
06.09.2019,ADULT SOCIAL CARE,SAGECARE LTD,907.73,PHY LTS 65+,HOMECARE - C&V,2103000335,1000080924
06.09.2019,ADULT SOCIAL CARE,LONDON CARE LTD,907.75,PHY LTS 65+,HOMECARE - C&V,2103000948,1000003398
06.09.2019,ADULT SOCIAL CARE,LONDON CARE LTD,911.93,PHY LTS 65+,HOMECARE - C&V,2103000735,1000003398
06.09.2019,ADULT SOCIAL CARE,LONDON CARE LTD,916.1,PHY LTS 65+,HOMECARE - C&V,2103000845,1000003398
06.09.2019,ADULT SOCIAL CARE,SAGECARE LTD,918.78,PHY LTS 65+,HOMECARE - C&V,2103000391,1000080924
06.09.2019,ADULT SOCIAL CARE,SAGECARE LTD,920.27,PHY LTS 65+,HOMECARE - C&V,2103000367,1000080924
06.09.2019,ADULT SOCIAL CARE,LONDON CARE LTD,924.36,PHY LTS 65+,HOMECARE - C&V,2103000803,1000003398
06.09.2019,ADULT SOCIAL CARE,LONDON CARE LTD,928.28,PHY LTS 65+,HOMECARE - C&V,2103000940,1000003398
06.09.2019,ADULT SOCIAL CARE,LONDON CARE LTD,930.21,PHY LTS 65+,HOMECARE - C&V,2103000890,1000003398
06.09.2019,ADULT SOCIAL CARE,LONDON CARE LTD,932.71,PHY LTS 65+,HOMECARE - C&V,2103000988,1000003398
06.09.2019,ADULT SOCIAL CARE,LONDON CARE LTD,938.53,PHY LTS 65+,HOMECARE - C&V,2103000720,1000003398
06.09.2019,ADULT SOCIAL CARE,LONDON CARE LTD,941.02,PHY LTS 65+,HOMECARE - C&V,2103000712,1000003398
06.09.2019,ADULT SOCIAL CARE,LONDON CARE LTD,949.39,PHY LTS 65+,HOMECARE - C&V,2103000796,1000003398
06.09.2019,ADULT SOCIAL CARE,LONDON CARE LTD,953.48,PHY LTS 65+,HOMECARE - C&V,2103000943,1000003398
06.09.2019,ADULT SOCIAL CARE,SAGECARE LTD,954.28,PHY LTS 65+,HOMECARE - C&V,2103000353,1000080924
06.09.2019,ADULT SOCIAL CARE,LONDON CARE LTD,957.38,PHY LTS 65+,HOMECARE - C&V,2103000763,1000003398
06.09.2019,ADULT SOCIAL CARE,SAGECARE LTD,957.7,PHY LTS 65+,HOMECARE - C&V,2103000341,1000080924
06.09.2019,ADULT SOCIAL CARE,LONDON CARE LTD,957.71,PHY LTS 65+,HOMECARE - C&V,2103000802,1000003398
06.09.2019,ADULT SOCIAL CARE,LONDON CARE LTD,957.74,PHY LTS 65+,HOMECARE - C&V,2103000727,1000003398
06.09.2019,ADULT SOCIAL CARE,SAGECARE LTD,960,PHY LTS 65+,HOMECARE - C&V,2103000354,1000080924
06.09.2019,ADULT SOCIAL CARE,SAGECARE LTD,961.86,PHY LTS 65+,HOMECARE - C&V,2103000429,1000080924
06.09.2019,ADULT SOCIAL CARE,SAGECARE LTD,961.86,PHY LTS 65+,HOMECARE - C&V,2103000521,1000080924
06.09.2019,ADULT SOCIAL CARE,LONDON CARE LTD,966.01,PHY LTS 65+,HOMECARE - C&V,2103000755,1000003398
06.09.2019,ADULT SOCIAL CARE,LONDON CARE LTD,969.26,PHY LTS 65+,HOMECARE - C&V,2103000711,1000003398
06.09.2019,ADULT SOCIAL CARE,SAGECARE LTD,982.59,PHY LTS 65+,HOMECARE - C&V,2103000556,1000080924
06.09.2019,ADULT SOCIAL CARE,LONDON CARE LTD,986.59,PHY LTS 65+,HOMECARE - C&V,2103001049,1000003398
06.09.2019,ADULT SOCIAL CARE,SAGECARE LTD,991.03,PHY LTS 65+,HOMECARE - C&V,2103000459,1000080924
06.09.2019,ADULT SOCIAL CARE,SAGECARE LTD,"1,003.42",PHY LTS 65+,HOMECARE - C&V,2103000538,1000080924
06.09.2019,ADULT SOCIAL CARE,SAGECARE LTD,"1,003.46",PHY LTS 65+,HOMECARE - C&V,2103000564,1000080924
06.09.2019,ADULT SOCIAL CARE,SAGECARE LTD,"1,011.80",PHY LTS 65+,HOMECARE - C&V,2103000345,1000080924
06.09.2019,ADULT SOCIAL CARE,SAGECARE LTD,"1,015.95",PHY LTS 65+,HOMECARE - C&V,2103000509,1000080924
06.09.2019,ADULT SOCIAL CARE,LONDON CARE LTD,"1,020.06",PHY LTS 65+,HOMECARE - C&V,2103000819,1000003398
06.09.2019,ADULT SOCIAL CARE,SAGECARE LTD,"1,020.15",PHY LTS 65+,HOMECARE - C&V,2103000410,1000080924
06.09.2019,ADULT SOCIAL CARE,LONDON CARE LTD,"1,026.12",PHY LTS 65+,HOMECARE - C&V,2103000862,1000003398
06.09.2019,ADULT SOCIAL CARE,LONDON CARE LTD,"1,028.89",PHY LTS 65+,HOMECARE - C&V,2103000998,1000003398
06.09.2019,ADULT SOCIAL CARE,SAGECARE LTD,"1,032.64",PHY LTS 65+,HOMECARE - C&V,2103000378,1000080924
06.09.2019,ADULT SOCIAL CARE,LONDON CARE LTD,"1,034.47",PHY LTS 65+,HOMECARE - C&V,2103000703,1000003398
06.09.2019,ADULT SOCIAL CARE,LONDON CARE LTD,"1,036.81",PHY LTS 65+,HOMECARE - C&V,2103000808,1000003398
06.09.2019,ADULT SOCIAL CARE,LONDON CARE LTD,"1,049.17",PHY LTS 65+,HOMECARE - C&V,2103000936,1000003398
06.09.2019,ADULT SOCIAL CARE,LONDON CARE LTD,"1,049.44",PHY LTS 65+,HOMECARE - C&V,2103000931,1000003398
06.09.2019,ADULT SOCIAL CARE,LONDON CARE LTD,"1,061.78",PHY LTS 65+,HOMECARE - C&V,2103000924,1000003398
06.09.2019,ADULT SOCIAL CARE,SAGECARE LTD,"1,065.67",PHY LTS 65+,HOMECARE - C&V,2103000573,1000080924
06.09.2019,ADULT SOCIAL CARE,LONDON CARE LTD,"1,072.97",PHY LTS 65+,HOMECARE - C&V,2103000994,1000003398
06.09.2019,ADULT SOCIAL CARE,SAGECARE LTD,"1,074.06",PHY LTS 65+,HOMECARE - C&V,2103000365,1000080924
06.09.2019,ADULT SOCIAL CARE,LONDON CARE LTD,"1,075.94",PHY LTS 65+,HOMECARE - C&V,2103001035,1000003398
06.09.2019,ADULT SOCIAL CARE,LONDON CARE LTD,"1,078.28",PHY LTS 65+,HOMECARE - C&V,2103000981,1000003398
06.09.2019,ADULT SOCIAL CARE,SAGECARE LTD,"1,090.79",PHY LTS 65+,HOMECARE - C&V,2103000468,1000080924
06.09.2019,ADULT SOCIAL CARE,SAGECARE LTD,"1,094.92",PHY LTS 65+,HOMECARE - C&V,2103000454,1000080924
06.09.2019,ADULT SOCIAL CARE,SAGECARE LTD,"1,094.92",PHY LTS 65+,HOMECARE - C&V,2103000466,1000080924
06.09.2019,ADULT SOCIAL CARE,SAGECARE LTD,"1,095.04",PHY LTS 65+,HOMECARE - C&V,2103000473,1000080924
06.09.2019,ADULT SOCIAL CARE,LONDON CARE LTD,"1,107.61",PHY LTS 65+,HOMECARE - C&V,2103000702,1000003398
06.09.2019,ADULT SOCIAL CARE,LONDON CARE LTD,"1,111.52",PHY LTS 65+,HOMECARE - C&V,2103000951,1000003398
06.09.2019,ADULT SOCIAL CARE,SAGECARE LTD,"1,124.34",PHY LTS 65+,HOMECARE - C&V,2103000340,1000080924
06.09.2019,ADULT SOCIAL CARE,LONDON CARE LTD,"1,128.46",PHY LTS 65+,HOMECARE - C&V,2103000695,1000003398
06.09.2019,ADULT SOCIAL CARE,SAGECARE LTD,"1,136.69",PHY LTS 65+,HOMECARE - C&V,2103000388,1000080924
06.09.2019,ADULT SOCIAL CARE,LONDON CARE LTD,"1,136.81",PHY LTS 65+,HOMECARE - C&V,2103000915,1000003398
06.09.2019,ADULT SOCIAL CARE,LONDON CARE LTD,"1,138.97",PHY LTS 65+,HOMECARE - C&V,2103000690,1000003398
06.09.2019,ADULT SOCIAL CARE,SAGECARE LTD,"1,145.15",PHY LTS 65+,HOMECARE - C&V,2103000555,1000080924
06.09.2019,ADULT SOCIAL CARE,SAGECARE LTD,"1,148.97",PHY LTS 65+,HOMECARE - C&V,2103000470,1000080924
06.09.2019,ADULT SOCIAL CARE,LONDON CARE LTD,"1,149.36",PHY LTS 65+,HOMECARE - C&V,2103000921,1000003398
06.09.2019,ADULT SOCIAL CARE,SAGECARE LTD,"1,160.81",PHY LTS 65+,HOMECARE - C&V,2103000415,1000080924
06.09.2019,ADULT SOCIAL CARE,SAGECARE LTD,"1,178.38",PHY LTS 65+,HOMECARE - C&V,2103000507,1000080924
06.09.2019,ADULT SOCIAL CARE,LONDON CARE LTD,"1,199.07",PHY LTS 65+,HOMECARE - C&V,2103000939,1000003398
06.09.2019,ADULT SOCIAL CARE,LONDON CARE LTD,"1,203.41",PHY LTS 65+,HOMECARE - C&V,2103001041,1000003398
06.09.2019,ADULT SOCIAL CARE,SAGECARE LTD,"1,215.65",PHY LTS 65+,HOMECARE - C&V,2103000519,1000080924
06.09.2019,ADULT SOCIAL CARE,SAGECARE LTD,"1,224.18",PHY LTS 65+,HOMECARE - C&V,2103000572,1000080924
06.09.2019,ADULT SOCIAL CARE,SAGECARE LTD,"1,236.70",PHY LTS 65+,HOMECARE - C&V,2103000580,1000080924
06.09.2019,ADULT SOCIAL CARE,LONDON CARE LTD,"1,249.06",PHY LTS 65+,HOMECARE - C&V,2103001021,1000003398
06.09.2019,ADULT SOCIAL CARE,LONDON CARE LTD,"1,282.48",PHY LTS 65+,HOMECARE - C&V,2103000937,1000003398
06.09.2019,ADULT SOCIAL CARE,SAGECARE LTD,"1,286.56",PHY LTS 65+,HOMECARE - C&V,2103000550,1000080924
06.09.2019,ADULT SOCIAL CARE,LONDON CARE LTD,"1,320.06",PHY LTS 65+,HOMECARE - C&V,2103000968,1000003398
06.09.2019,ADULT SOCIAL CARE,SAGECARE LTD,"1,324.08",PHY LTS 65+,HOMECARE - C&V,2103000331,1000080924
06.09.2019,ADULT SOCIAL CARE,LONDON CARE LTD,"1,328.12",PHY LTS 65+,HOMECARE - C&V,2103000949,1000003398
06.09.2019,ADULT SOCIAL CARE,LONDON CARE LTD,"1,373.97",PHY LTS 65+,HOMECARE - C&V,2103000728,1000003398
06.09.2019,ADULT SOCIAL CARE,SAGECARE LTD,"1,394.79",PHY LTS 65+,HOMECARE - C&V,2103000544,1000080924
06.09.2019,ADULT SOCIAL CARE,SAGECARE LTD,"1,415.75",PHY LTS 65+,HOMECARE - C&V,2103000359,1000080924
06.09.2019,ADULT SOCIAL CARE,SAGECARE LTD,"1,423.81",PHY LTS 65+,HOMECARE - C&V,2103000445,1000080924
06.09.2019,ADULT SOCIAL CARE,LONDON CARE LTD,"1,524.51",PHY LTS 65+,HOMECARE - C&V,2103000902,1000003398
06.09.2019,ADULT SOCIAL CARE,SAGECARE LTD,"1,561.36",PHY LTS 65+,HOMECARE - C&V,2103000409,1000080924
06.09.2019,ADULT SOCIAL CARE,LONDON CARE LTD,"1,561.63",PHY LTS 65+,HOMECARE - C&V,2103000882,1000003398
06.09.2019,ADULT SOCIAL CARE,SAGECARE LTD,"1,565.57",PHY LTS 65+,HOMECARE - C&V,2103000510,1000080924
06.09.2019,ADULT SOCIAL CARE,LONDON CARE LTD,"1,565.75",PHY LTS 65+,HOMECARE - C&V,2103001007,1000003398
06.09.2019,ADULT SOCIAL CARE,SAGECARE LTD,"1,598.73",PHY LTS 65+,HOMECARE - C&V,2103000442,1000080924
06.09.2019,ADULT SOCIAL CARE,LONDON CARE LTD,"1,628.14",PHY LTS 65+,HOMECARE - C&V,2103000801,1000003398
06.09.2019,ADULT SOCIAL CARE,LONDON CARE LTD,"1,694.36",PHY LTS 65+,HOMECARE - C&V,2103000771,1000003398
06.09.2019,ADULT SOCIAL CARE,LONDON CARE LTD,"1,698.64",PHY LTS 65+,HOMECARE - C&V,2103000748,1000003398
06.09.2019,ADULT SOCIAL CARE,LONDON CARE LTD,"1,881.97",PHY LTS 65+,HOMECARE - C&V,2103000946,1000003398
06.09.2019,ADULT SOCIAL CARE,LONDON CARE LTD,"1,890.57",PHY LTS 65+,HOMECARE - C&V,2103000875,1000003398
06.09.2019,ADULT SOCIAL CARE,LONDON CARE LTD,"1,915.54",PHY LTS 65+,HOMECARE - C&V,2103000976,1000003398
06.09.2019,ADULT SOCIAL CARE,LONDON CARE LTD,"1,919.16",PHY LTS 65+,HOMECARE - C&V,2103001013,1000003398
06.09.2019,ADULT SOCIAL CARE,LONDON CARE LTD,"2,061.32",PHY LTS 65+,HOMECARE - C&V,2103000903,1000003398
06.09.2019,ADULT SOCIAL CARE,LONDON CARE LTD,"2,085.10",PHY LTS 65+,HOMECARE - C&V,2103000799,1000003398
06.09.2019,ADULT SOCIAL CARE,SAGECARE LTD,"2,094.70",PHY LTS 65+,HOMECARE - C&V,2103000402,1000080924
06.09.2019,ADULT SOCIAL CARE,SAGECARE LTD,"2,102.96",PHY LTS 65+,HOMECARE - C&V,2103000499,1000080924
06.09.2019,ADULT SOCIAL CARE,SAGECARE LTD,"2,132.05",PHY LTS 65+,HOMECARE - C&V,2103000375,1000080924
06.09.2019,ADULT SOCIAL CARE,LONDON CARE LTD,"2,144.05",PHY LTS 65+,HOMECARE - C&V,2103000722,1000003398
06.09.2019,ADULT SOCIAL CARE,SAGECARE LTD,"2,144.63",PHY LTS 65+,HOMECARE - C&V,2103000561,1000080924
06.09.2019,ADULT SOCIAL CARE,LONDON CARE LTD,"2,156.56",PHY LTS 65+,HOMECARE - C&V,2103000914,1000003398
06.09.2019,ADULT SOCIAL CARE,LONDON CARE LTD,"2,165.29",PHY LTS 65+,HOMECARE - C&V,2103000749,1000003398
06.09.2019,ADULT SOCIAL CARE,SAGECARE LTD,"2,177.86",PHY LTS 65+,HOMECARE - C&V,2103000368,1000080924
06.09.2019,ADULT SOCIAL CARE,LONDON CARE LTD,"2,183.64",PHY LTS 65+,HOMECARE - C&V,2103000718,1000003398
06.09.2019,ADULT SOCIAL CARE,SAGECARE LTD,"2,207.07",PHY LTS 65+,HOMECARE - C&V,2103000351,1000080924
06.09.2019,ADULT SOCIAL CARE,SAGECARE LTD,"2,244.81",PHY LTS 65+,HOMECARE - C&V,2103000404,1000080924
06.09.2019,ADULT SOCIAL CARE,SAGECARE LTD,"2,275.07",PHY LTS 65+,HOMECARE - C&V,2103000465,1000080924
06.09.2019,ADULT SOCIAL CARE,LONDON CARE LTD,"2,311.04",PHY LTS 65+,HOMECARE - C&V,2103000971,1000003398
06.09.2019,ADULT SOCIAL CARE,SAGECARE LTD,"2,319.43",PHY LTS 65+,HOMECARE - C&V,2103000578,1000080924
06.09.2019,ADULT SOCIAL CARE,SAGECARE LTD,"2,354.30",PHY LTS 65+,HOMECARE - C&V,2103000494,1000080924
06.09.2019,ADULT SOCIAL CARE,LONDON CARE LTD,"2,356.24",PHY LTS 65+,HOMECARE - C&V,2103000953,1000003398
06.09.2019,ADULT SOCIAL CARE,SAGECARE LTD,"2,360.82",PHY LTS 65+,HOMECARE - C&V,2103000491,1000080924
06.09.2019,ADULT SOCIAL CARE,SAGECARE LTD,"2,385.91",PHY LTS 65+,HOMECARE - C&V,2103000460,1000080924
06.09.2019,ADULT SOCIAL CARE,SAGECARE LTD,"2,439.98",PHY LTS 65+,HOMECARE - C&V,2103000333,1000080924
06.09.2019,ADULT SOCIAL CARE,SAGECARE LTD,"2,448.43",PHY LTS 65+,HOMECARE - C&V,2103000515,1000080924
06.09.2019,ADULT SOCIAL CARE,LONDON CARE LTD,"2,459.26",PHY LTS 65+,HOMECARE - C&V,2103000717,1000003398
06.09.2019,ADULT SOCIAL CARE,SAGECARE LTD,"2,464.69",PHY LTS 65+,HOMECARE - C&V,2103000452,1000080924
06.09.2019,ADULT SOCIAL CARE,LONDON CARE LTD,"2,482.97",PHY LTS 65+,HOMECARE - C&V,2103000841,1000003398
06.09.2019,ADULT SOCIAL CARE,LONDON CARE LTD,"2,533.89",PHY LTS 65+,HOMECARE - C&V,2103000870,1000003398
06.09.2019,ADULT SOCIAL CARE,SAGECARE LTD,"2,548.34",PHY LTS 65+,HOMECARE - C&V,2103000386,1000080924
06.09.2019,ADULT SOCIAL CARE,LONDON CARE LTD,"2,560.63",PHY LTS 65+,HOMECARE - C&V,2103000916,1000003398
06.09.2019,ADULT SOCIAL CARE,LONDON CARE LTD,"2,564.77",PHY LTS 65+,HOMECARE - C&V,2103000781,1000003398
06.09.2019,ADULT SOCIAL CARE,LONDON CARE LTD,"2,581.41",PHY LTS 65+,HOMECARE - C&V,2103000913,1000003398
06.09.2019,ADULT SOCIAL CARE,LONDON CARE LTD,"2,587.06",PHY LTS 65+,HOMECARE - C&V,2103001024,1000003398
06.09.2019,ADULT SOCIAL CARE,LONDON CARE LTD,"2,648.05",PHY LTS 65+,HOMECARE - C&V,2103000747,1000003398
06.09.2019,ADULT SOCIAL CARE,LONDON CARE LTD,"2,650.48",PHY LTS 65+,HOMECARE - C&V,2103000787,1000003398
06.09.2019,ADULT SOCIAL CARE,SAGECARE LTD,"2,667.83",PHY LTS 65+,HOMECARE - C&V,2103000437,1000080924
06.09.2019,ADULT SOCIAL CARE,LONDON CARE LTD,"2,739.66",PHY LTS 65+,HOMECARE - C&V,2103000965,1000003398
06.09.2019,ADULT SOCIAL CARE,LONDON CARE LTD,"2,743.76",PHY LTS 65+,HOMECARE - C&V,2103000847,1000003398
06.09.2019,ADULT SOCIAL CARE,LONDON CARE LTD,"2,831.15",PHY LTS 65+,HOMECARE - C&V,2103000871,1000003398
06.09.2019,ADULT SOCIAL CARE,LONDON CARE LTD,"2,851.92",PHY LTS 65+,HOMECARE - C&V,2103000894,1000003398
06.09.2019,ADULT SOCIAL CARE,LONDON CARE LTD,"2,968.33",PHY LTS 65+,HOMECARE - C&V,2103000699,1000003398
06.09.2019,ADULT SOCIAL CARE,SAGECARE LTD,"3,076.51",PHY LTS 65+,HOMECARE - C&V,2103000383,1000080924
06.09.2019,ADULT SOCIAL CARE,LONDON CARE LTD,"3,296.97",PHY LTS 65+,HOMECARE - C&V,2103000833,1000003398
06.09.2019,ADULT SOCIAL CARE,LONDON CARE LTD,"3,592.89",PHY LTS 65+,HOMECARE - C&V,2103000883,1000003398
06.09.2019,ADULT SOCIAL CARE,SERVESOUL LTD,262.87,PHY LTS 65+,HOMECARE - SPOT,2103000615,1000081503
06.09.2019,ADULT SOCIAL CARE,SERVESOUL LTD,292.08,PHY LTS 65+,HOMECARE - SPOT,2103000632,1000081503
06.09.2019,ADULT SOCIAL CARE,SERVESOUL LTD,308.77,PHY LTS 65+,HOMECARE - SPOT,2103000622,1000081503
06.09.2019,ADULT SOCIAL CARE,SNOWBALL CARE UK LTD,336,PHY LTS 65+,HOMECARE - SPOT,2103000681,1000081483
06.09.2019,ADULT SOCIAL CARE,SERVESOUL LTD,346.32,PHY LTS 65+,HOMECARE - SPOT,2103000605,1000081503
06.09.2019,ADULT SOCIAL CARE,LONDON CARE LTD,362.2,PHY LTS 65+,HOMECARE - SPOT,2103000851,1000003398
06.09.2019,ADULT SOCIAL CARE,SERVESOUL LTD,421.42,PHY LTS 65+,HOMECARE - SPOT,2103000629,1000081503
06.09.2019,ADULT SOCIAL CARE,SERVESOUL LTD,433.94,PHY LTS 65+,HOMECARE - SPOT,2103000642,1000081503
06.09.2019,ADULT SOCIAL CARE,SERVESOUL LTD,467.32,PHY LTS 65+,HOMECARE - SPOT,2103000627,1000081503
06.09.2019,ADULT SOCIAL CARE,CARE DIRECT UK LTD,497,PHY LTS 65+,HOMECARE - SPOT,2103000648,1000066322
06.09.2019,ADULT SOCIAL CARE,CARE DIRECT UK LTD,497,PHY LTS 65+,HOMECARE - SPOT,2103000656,1000066322
06.09.2019,ADULT SOCIAL CARE,CARE DIRECT UK LTD,505.88,PHY LTS 65+,HOMECARE - SPOT,2103000647,1000066322
06.09.2019,ADULT SOCIAL CARE,CARE DIRECT UK LTD,505.88,PHY LTS 65+,HOMECARE - SPOT,2103000660,1000066322
06.09.2019,ADULT SOCIAL CARE,LONDON CARE LTD,507.99,PHY LTS 65+,HOMECARE - SPOT,2103000944,1000003398
06.09.2019,ADULT SOCIAL CARE,SERVESOUL LTD,525.74,PHY LTS 65+,HOMECARE - SPOT,2103000623,1000081503
06.09.2019,ADULT SOCIAL CARE,SERVESOUL LTD,525.74,PHY LTS 65+,HOMECARE - SPOT,2103000638,1000081503
06.09.2019,ADULT SOCIAL CARE,SERVESOUL LTD,559.12,PHY LTS 65+,HOMECARE - SPOT,2103000635,1000081503
06.09.2019,ADULT SOCIAL CARE,CARE DIRECT UK LTD,559.13,PHY LTS 65+,HOMECARE - SPOT,2103000646,1000066322
06.09.2019,ADULT SOCIAL CARE,CARE DIRECT UK LTD,559.13,PHY LTS 65+,HOMECARE - SPOT,2103000652,1000066322
06.09.2019,ADULT SOCIAL CARE,SERVESOUL LTD,579.98,PHY LTS 65+,HOMECARE - SPOT,2103000620,1000081503
06.09.2019,ADULT SOCIAL CARE,SERVESOUL LTD,584.15,PHY LTS 65+,HOMECARE - SPOT,2103000613,1000081503
06.09.2019,ADULT SOCIAL CARE,SERVESOUL LTD,642.57,PHY LTS 65+,HOMECARE - SPOT,2103000603,1000081503
06.09.2019,ADULT SOCIAL CARE,CARE DIRECT UK LTD,701.13,PHY LTS 65+,HOMECARE - SPOT,2103000658,1000066322
06.09.2019,ADULT SOCIAL CARE,CARE DIRECT UK LTD,701.13,PHY LTS 65+,HOMECARE - SPOT,2103000676,1000066322
06.09.2019,ADULT SOCIAL CARE,SNOWBALL CARE UK LTD,912,PHY LTS 65+,HOMECARE - SPOT,2103000672,1000081483
06.09.2019,ADULT SOCIAL CARE,SNOWBALL CARE UK LTD,"1,008.00",PHY LTS 65+,HOMECARE - SPOT,2103000686,1000081483
06.09.2019,ADULT SOCIAL CARE,SAGECARE LTD,"1,111.87",PHY LTS 65+,HOMECARE - SPOT,2103000397,1000080924
06.09.2019,ADULT SOCIAL CARE,SNOWBALL CARE UK LTD,"1,696.00",PHY LTS 65+,HOMECARE - SPOT,2103000666,1000081483
06.09.2019,ADULT SOCIAL CARE,SAGECARE LTD,766.26,PHY STS 65+,HOMECARE - IC,2103000591,1000080924
06.09.2019,ADULT SOCIAL CARE,SIDLOFF ASSOCIATES LTD,522,SAFEGUARDING TEAM,EXTERNAL AGENCIES AND BODIES,5902376886,1000081744
06.09.2019,ADULT SOCIAL CARE,ROMEDICAL LTD,392.75,SAFEGUARDING TEAM,OTHER CONTRACTORS,5902376929,1000076318
06.09.2019,ADULT SOCIAL CARE,ROMEDICAL LTD,395.7,SAFEGUARDING TEAM,OTHER CONTRACTORS,5902376963,1000076318
06.09.2019,ADULT SOCIAL CARE,ROMEDICAL LTD,401.08,SAFEGUARDING TEAM,OTHER CONTRACTORS,5902376932,1000076318
06.09.2019,ADULT SOCIAL CARE,ROMEDICAL LTD,575.89,SAFEGUARDING TEAM,OTHER CONTRACTORS,5902376965,1000076318
06.09.2019,ADULT SOCIAL CARE,RADHA CONSULTING LTD,720.8,SAFEGUARDING TEAM,OTHER CONTRACTORS,5902376633,1000061154
06.09.2019,ADULT SOCIAL CARE,SYKES CHOICE LTD,828.1,SAFEGUARDING TEAM,OTHER CONTRACTORS,5902376972,1000082690
06.09.2019,ADULT SOCIAL CARE,INSPIRE SOCIAL CARE LTD,"1,452.80",SAFEGUARDING TEAM,OTHER CONTRACTORS,5902376956,1000081757
06.09.2019,ADULT SOCIAL CARE,INSPIRE SOCIAL CARE LTD,"1,902.00",SAFEGUARDING TEAM,OTHER CONTRACTORS,5902376938,1000081757
06.09.2019,ADULT SOCIAL CARE,INSPIRE SOCIAL CARE LTD,"2,526.80",SAFEGUARDING TEAM,OTHER CONTRACTORS,5902376949,1000081757
06.09.2019,ADULT SOCIAL CARE,INSPIRE SOCIAL CARE LTD,"2,687.60",SAFEGUARDING TEAM,OTHER CONTRACTORS,5902376954,1000081757
06.09.2019,ADULT SOCIAL CARE,SAGECARE LTD,299.81,SEN LTS 65+,HOMECARE - C&V,2103000593,1000080924
06.09.2019,ADULT SOCIAL CARE,SAGECARE LTD,537.22,SEN LTS 65+,HOMECARE - C&V,2103000495,1000080924
06.09.2019,ADULT SOCIAL CARE,OXFORD BROOKES UNIVERSITY,340,SERVICE DEV MGMT,TRAINING,5902376946,1000005331
06.09.2019,ADULT SOCIAL CARE,SAGECARE LTD,266.4,SOCIAL ISOLATION,HOMECARE - C&V,2103000582,1000080924
06.09.2019,ADULT SOCIAL CARE,SAGECARE LTD,329.95,SOCIAL ISOLATION,HOMECARE - C&V,2103000385,1000080924
06.09.2019,ADULT SOCIAL CARE,LONDON CARE LTD,333.12,SOCIAL ISOLATION,HOMECARE - C&V,2103000860,1000003398
06.09.2019,ADULT SOCIAL CARE,SAGECARE LTD,382.95,SOCIAL ISOLATION,HOMECARE - C&V,2103000456,1000080924
06.09.2019,ADULT SOCIAL CARE,LONDON CARE LTD,441.24,SOCIAL ISOLATION,HOMECARE - C&V,2103000822,1000003398
06.09.2019,ADULT SOCIAL CARE,SAGECARE LTD,466.47,SOCIAL ISOLATION,HOMECARE - C&V,2103000382,1000080924
06.09.2019,ADULT SOCIAL CARE,LONDON CARE LTD,524.48,SOCIAL ISOLATION,HOMECARE - C&V,2103000696,1000003398
06.09.2019,ADULT SOCIAL CARE,LONDON CARE LTD,649.55,SOCIAL ISOLATION,HOMECARE - C&V,2103000704,1000003398
06.09.2019,ADULT SOCIAL CARE,SAGECARE LTD,791.08,SOCIAL ISOLATION,HOMECARE - C&V,2103000575,1000080924
06.09.2019,ADULT SOCIAL CARE,LONDON CARE LTD,878.36,SOCIAL ISOLATION,HOMECARE - C&V,2103001006,1000003398
06.09.2019,ADULT SOCIAL CARE,LONDON CARE LTD,957.78,SOCIAL ISOLATION,HOMECARE - C&V,2103000857,1000003398
06.09.2019,ADULT SOCIAL CARE,LONDON CARE LTD,"1,020.16",SOCIAL ISOLATION,HOMECARE - C&V,2103000991,1000003398
06.09.2019,ADULT SOCIAL CARE,LONDON CARE LTD,"1,328.28",SOCIAL ISOLATION,HOMECARE - C&V,2103000753,1000003398
06.09.2019,ADULT SOCIAL CARE,LONDON CARE LTD,"1,361.39",SOCIAL ISOLATION,HOMECARE - C&V,2103000745,1000003398
06.09.2019,ADULT SOCIAL CARE,SAGECARE LTD,"2,419.06",SOCIAL ISOLATION,HOMECARE - C&V,2103000376,1000080924
06.09.2019,ADULT SOCIAL CARE,SAGECARE LTD,"2,881.04",SOCIAL ISOLATION,HOMECARE - C&V,2103000430,1000080924
06.09.2019,ADULT SOCIAL CARE,LONDON CARE LTD,"2,356.22",SOCIAL ISOLATION,HOMECARE - SPOT,2103001034,1000003398
06.09.2019,ADULT SOCIAL CARE,STREETSCENE ADDICTION RECOVERY LTD,"1,204.00",SUB LTS 18-64,DAYCARE,2103001059,11221787
06.09.2019,ADULT SOCIAL CARE,STREETSCENE ADDICTION RECOVERY LTD,"1,228.00",SUB LTS 18-64,DAYCARE,2103001053,11221787
06.09.2019,ADULT SOCIAL CARE,STREETSCENE ADDICTION RECOVERY LTD,"1,299.43",SUB LTS 18-64,DAYCARE,2103001056,11221787
06.09.2019,ADULT SOCIAL CARE,SERVESOUL LTD,375.53,SUB LTS 18-64,HOMECARE - SPOT,2103000610,1000081503
06.09.2019,ADULT SOCIAL CARE,STREETSCENE ADDICTION RECOVERY LTD,"1,104.00",SUB LTS 18-64,PLACEMENTS - REHAB,2103001058,11221787
06.09.2019,ADULT SOCIAL CARE,STREETSCENE ADDICTION RECOVERY LTD,480,SUB LTS 18-64,RESIDENTIAL CARE,2103001057,11221787
06.09.2019,ADULT SOCIAL CARE,LONDON CARE LTD,266.4,SUB LTS 65+,HOMECARE - C&V,2103000932,1000003398
06.09.2019,ASSET MANAGEMENT,STEPHEN EVANS,255,DISREPAIR,LEGAL FEES & COURT COSTS,2103000308,1000043318
06.09.2019,ASSET MANAGEMENT,ALEX WILLIAMS,306.25,DISREPAIR,LEGAL FEES & COURT COSTS,2103000281,1000082191
06.09.2019,ASSET MANAGEMENT,STEPHEN EVANS,425,DISREPAIR,LEGAL FEES & COURT COSTS,2103000309,1000043318
06.09.2019,ASSET MANAGEMENT,STEPHEN EVANS,510,DISREPAIR,LEGAL FEES & COURT COSTS,2103000311,1000043318
06.09.2019,ASSET MANAGEMENT,STEPHEN EVANS,510,DISREPAIR,LEGAL FEES & COURT COSTS,2103000313,1000043318
06.09.2019,ASSET MANAGEMENT,STEPHEN EVANS,807.5,DISREPAIR,LEGAL FEES & COURT COSTS,2103000315,1000043318
06.09.2019,ASSET MANAGEMENT,DAVID HALL,996,DISREPAIR,LEGAL FEES & COURT COSTS,2103000288,1000059226
06.09.2019,ASSET MANAGEMENT,STEPHEN EVANS,"1,445.00",DISREPAIR,LEGAL FEES & COURT COSTS,2103000310,1000043318
06.09.2019,ASSET MANAGEMENT,STEPHEN EVANS,"1,445.00",DISREPAIR,LEGAL FEES & COURT COSTS,2103000314,1000043318
06.09.2019,CAMBERWELL COMMUNITY COUNCIL,BETHWIN ROAD NEIGHOURHOOD ROAD PLAYGROUND ASSOCIATION,500,FAMILY FESTIVE FUN,GRANT,CHEQUE PAYMENT,CHEQUE PAYMENT
06.09.2019,CENTRAL FUNCTIONS,STANDAGE & CO LTD,"43,113.00",AYLESBURY,SECURITY SERVICES,2103001072,4002817
06.09.2019,CENTRAL FUNCTIONS,STANDAGE & CO LTD,"43,840.00",AYLESBURY,SECURITY SERVICES,2103001071,4002817
06.09.2019,CENTRAL FUNCTIONS,SHERCURITY LTD,"-3,360.00",COMMERCIAL PROPERTIES,LEGAL FEES & COURT COSTS,2103000253,1000067090
06.09.2019,CENTRAL FUNCTIONS,SHERCURITY LTD,"1,188.00",COMMERCIAL PROPERTIES,LEGAL FEES & COURT COSTS,2103000303,1000067090
06.09.2019,CENTRAL FUNCTIONS,SHERCURITY LTD,"3,360.00",COMMERCIAL PROPERTIES,LEGAL FEES & COURT COSTS,2103000301,1000067090
06.09.2019,CENTRAL FUNCTIONS,SHERCURITY LTD,"3,360.00",COMMERCIAL PROPERTIES,LEGAL FEES & COURT COSTS,2103000302,1000067090
06.09.2019,CENTRAL FUNCTIONS,SHERCURITY LTD,"3,360.00",COMMERCIAL PROPERTIES,LEGAL FEES & COURT COSTS,2103000304,1000067090
06.09.2019,CENTRAL FUNCTIONS,SHERCURITY LTD,"3,360.00",COMMERCIAL PROPERTIES,LEGAL FEES & COURT COSTS,2103000305,1000067090
06.09.2019,CENTRAL FUNCTIONS,SHERCURITY LTD,"3,360.00",COMMERCIAL PROPERTIES,LEGAL FEES & COURT COSTS,2103000306,1000067090
06.09.2019,CENTRAL FUNCTIONS,MERLIN DMS LTD,697.77,HOME OWNERSHIP,OFFICE EXPENSES,5902376121,1000062300
06.09.2019,CHIEF EXECUTIVE,KIER CONSTRUCTION LTD,"669,433.14",CAPITAL PS (REGEN),CONSTRUCTION FEES,2103000264,3000001970
06.09.2019,CHIEF EXECUTIVE,ERECT ARCHITECTURE LTD,500,CAPITAL PS (REGEN),CONSTRUCTION FEES - ARCHITECT,5902376984,1000078487
06.09.2019,CHIEF EXECUTIVE,ERECT ARCHITECTURE LTD,596.68,CAPITAL PS (REGEN),CONSTRUCTION FEES - ARCHITECT,5902376984,1000078487
06.09.2019,CHIEF EXECUTIVE,AMR CONSULT LTD,"1,437.50",CAPITAL PS (REGEN),CONSTRUCTION SUB CONTRACT,5902376800,1000080834
06.09.2019,CHIEF EXECUTIVE'S OFFICE,RED R DESIGN,350,BUSINESS SUPPORT,MARKETING & PUBLICITY SERVICES,5902376054,1000035984
06.09.2019,CHIEF EXECUTIVE'S OFFICE,TREE SHEPHERD LTD,"4,125.00",BUSINESS SUPPORT,PROFESSIONAL FEES,5902376885,1000076895
06.09.2019,CHILDREN AND ADULT,FAITHFUL & GOULD,"12,651.00",CAPITAL PS (EDUCATION),CONSTRUCTION,5902376874,1000061390
06.09.2019,CHILDREN AND ADULT,FAITHFUL & GOULD,"7,994.00",CAPITAL PS (EDUCATION),CONSTRUCTION,5902376872,1000061390
06.09.2019,CHILDREN'S SERVICES,ISABELLE GRAVENSTEIN T/A REVIVAL,696,CENTRAL SUPPORT,OTHER PAYMENTS FOR CLIENTS,5902376850,1000027424
06.09.2019,CHILDREN'S SERVICES,TOWNSEND PRIMARY SCHOOL,500,INTERVENTION FUND,MISCELLANEOUS RECHARGES,2103000268,5001000096
06.09.2019,CHILDREN'S SERVICES,CATHEDRAL SCHOOL OF ST SAVIOUR & MARY,500,INTERVENTION FUND,MISCELLANEOUS RECHARGES,2103000270,5001000088
06.09.2019,CHILDREN'S SERVICES,ST JOHNS & ST CLEMENTS CE SCHOOL,500,INTERVENTION FUND,MISCELLANEOUS RECHARGES,2103000274,5001000073
06.09.2019,CHILDREN'S SERVICES,BESSEMER GRANGE PRIMARY SCHOOL,600,INTERVENTION FUND,MISCELLANEOUS RECHARGES,2103000267,5001000009
06.09.2019,CHILDREN'S SERVICES,MICHAEL FARADAY PRIMARY SCHOOL,600,INTERVENTION FUND,MISCELLANEOUS RECHARGES,2103000272,5001000048
06.09.2019,CHILDREN'S SERVICES,ILDERTON PRIMARY SCHOOL,600,INTERVENTION FUND,MISCELLANEOUS RECHARGES,2103000275,5001000037
06.09.2019,CHILDREN'S SERVICES,SOUTHWARK PARK PRIMARY SCHOOL,700,INTERVENTION FUND,MISCELLANEOUS RECHARGES,2103000269,5001000062
06.09.2019,CHILDREN'S SERVICES,SNOWSFIELDS PRIMARY SCHOOL,800,INTERVENTION FUND,MISCELLANEOUS RECHARGES,2103000271,5001000061
06.09.2019,CHILDREN'S SERVICES,HOLLYDALE PRIMARY SCHOOL,800,INTERVENTION FUND,MISCELLANEOUS RECHARGES,2103000273,5001000036
06.09.2019,CHILDREN'S SERVICES,PHOENIX PRIMARY SCHOOL,800,INTERVENTION FUND,MISCELLANEOUS RECHARGES,2103000276,5001000032
06.09.2019,CHILDREN'S SERVICES,ALBION PRIMARY SCHOOL,800,INTERVENTION FUND,MISCELLANEOUS RECHARGES,2103000279,5001000000
06.09.2019,CHILDREN'S SERVICES,ENGLISH MARTYRS RC PRIMARY SCHOOL,800,INTERVENTION FUND,MISCELLANEOUS RECHARGES,2103000280,5001000030
06.09.2019,CHILDREN'S SERVICES,TOWER BRIDGE PRIMARY SCHOOL,900,INTERVENTION FUND,MISCELLANEOUS RECHARGES,2103000265,5001000095
06.09.2019,CHILDREN'S SERVICES,ST JOHNS RC PRIMARY SCHOOL,"1,100.00",INTERVENTION FUND,MISCELLANEOUS RECHARGES,2103000266,5001000075
06.09.2019,CHILDREN'S SERVICES,ST JOSEPHS CATHOLIC SCHOOL,"1,100.00",INTERVENTION FUND,MISCELLANEOUS RECHARGES,2103000277,5001000076
06.09.2019,CHILDREN'S SERVICES,BINDMANS LLP,540,LEGAL,LEGAL FEES & COURT COSTS,2103000320,11285118
06.09.2019,CHILDREN'S SERVICES,EXPERT WITNESS,648.02,LEGAL,LEGAL FEES & COURT COSTS,2103000290,1000062889
06.09.2019,CHILDREN'S SERVICES,BEVERLEY F NUNNERY & CO,839.84,LEGAL,LEGAL FEES & COURT COSTS,2103000283,11009656
06.09.2019,CHILDREN'S SERVICES,BEVERLEY F NUNNERY & CO,"2,168.04",LEGAL,LEGAL FEES & COURT COSTS,2103000282,11009656
06.09.2019,CHILDREN'S SERVICES,TOM RESTALL,375,LEGAL,LEGAL FEES & COURT COSTS,2103000317,1000063020
06.09.2019,CHILDREN'S SERVICES,WILLIAM DEAN,375,LEGAL,LEGAL FEES & COURT COSTS,2103000319,1000070780
06.09.2019,CHILDREN'S SERVICES,OLIVER MILLINGTON,400,LEGAL,LEGAL FEES & COURT COSTS,2103000298,1000051055
06.09.2019,CHILDREN'S SERVICES,DAMIAN WOODWARD-CARLTON,600,LEGAL,LEGAL FEES & COURT COSTS,2103000285,1000059128
06.09.2019,CHILDREN'S SERVICES,JOHN SCHMITT,650,LEGAL,LEGAL FEES & COURT COSTS,2103000296,1000074146
06.09.2019,CHILDREN'S SERVICES,NICHOLAS GOODWIN,800,LEGAL,LEGAL FEES & COURT COSTS,2103000297,1000082473
06.09.2019,CHILDREN'S SERVICES,RICHARD HARRIS,800,LEGAL,LEGAL FEES & COURT COSTS,2103000300,1000075786
06.09.2019,CHILDREN'S SERVICES,EMILY GORDON WALKER,"1,500.00",LEGAL,LEGAL FEES & COURT COSTS,2103000289,1000079792
06.09.2019,CHILDREN'S SERVICES,HUNTERS CONTRACTS LTD,290,REGIONAL ADOPTION AGENCY,FURNITURE PURCHASE & REPAIR,5902377016,1000065904
06.09.2019,CHILDREN'S SERVICES,HUNTERS CONTRACTS LTD,"3,570.00",REGIONAL ADOPTION AGENCY,FURNITURE PURCHASE & REPAIR,5902377016,1000065904
06.09.2019,CHILDREN'S SERVICES,ARC COMMUNITY TRUSTEES,650,SPECIAL GUARDIANSHIP,EXTERNAL AGENCIES AND BODIES,5902376916,1000046206
06.09.2019,CHILDREN'S SERVICES,CHARTWELLS,385,SUMMERHOUSE,CATERING MATERIALS & SUPPLIES,5902377002,1000010625
06.09.2019,CHILDREN'S SERVICES,CHARTWELLS,"1,324.40",SUMMERHOUSE,CATERING MATERIALS & SUPPLIES,5902377015,1000010625
06.09.2019,CHILDREN'S SERVICES,NPOWER LTD,"1,190.44",SUMMERHOUSE,ELECTRICITY,5902377011,1000078994
06.09.2019,CHILDREN'S SERVICES,RICOH UK LTD,272.63,SUMMERHOUSE,PRINTING,5902377000,1000001712
06.09.2019,COMMUNITIES,NUNHEADS VOICE LTD,"4,000.00",EAST CENTRAL,GRANTS,2103001076,1000053009
06.09.2019,COMMUNITIES,SAGECARE LTD,399.6,NO RECOURSE TO PUBLIC FUNDS,HOMECARE - C&V,2103000586,1000080924
06.09.2019,COMMUNITIES,SAGECARE LTD,541.37,NO RECOURSE TO PUBLIC FUNDS,HOMECARE - C&V,2103000589,1000080924
06.09.2019,COMMUNITIES,SAGECARE LTD,566.08,NO RECOURSE TO PUBLIC FUNDS,HOMECARE - C&V,2103000584,1000080924
06.09.2019,COMMUNITIES,SAGECARE LTD,632.96,NO RECOURSE TO PUBLIC FUNDS,HOMECARE - C&V,2103000585,1000080924
06.09.2019,COMMUNITIES,SAGECARE LTD,"1,065.60",NO RECOURSE TO PUBLIC FUNDS,HOMECARE - C&V,2103000588,1000080924
06.09.2019,COMMUNITIES,SAGECARE LTD,"1,598.40",NO RECOURSE TO PUBLIC FUNDS,HOMECARE - C&V,2103000590,1000080924
06.09.2019,COMMUNITIES,CATHERINE ROWLANDS,"1,020.00",NO RECOURSE TO PUBLIC FUNDS,LEGAL FEES & COURT COSTS,2103000284,1000069104
06.09.2019,COMMUNITIES,STYLES HOUSE TMO,"16,385.25",STYLES HOUSE TMO,M&M ALLOWANCE CO-OPS,5902376803,1000072012
06.09.2019,CUSTOMER EXPERIENCE,KENT COUNTY COUNCIL - LASER,462.03,MSHO,ELECTRICITY,5902376977,1000012926
06.09.2019,CUSTOMER EXPERIENCE HGF,VALTECH LTD,359.84,BLUE BADGES,MATERIALS,5902376404,1000082245
06.09.2019,CUSTOMER EXPERIENCE HGF,DAVID HALL,432,HOMELESS & HOUSING OPTIONS MGT,LEGAL FEES & COURT COSTS,2103000286,1000059226
06.09.2019,CUSTOMER EXPERIENCE HGF,KNOWLEDGE EXCHANGE GROUP LTD,455,HOMELESS & HOUSING OPTIONS MGT,TRAINING,5902376945,1000081232
06.09.2019,CUSTOMER EXPERIENCE HGF,SHELTER TRAINING LTD,"31,500.00",HOMELESS & HOUSING OPTIONS MGT,TRAINING,5902376967,1000033177
06.09.2019,CUSTOMER EXPERIENCE HGF,EWEMOVE (HERNE HILL & BRIXTON) LTD,"3,000.00",HOMELESS PROJECTS,GRANTS,5902376771,1000083172
06.09.2019,CUSTOMER EXPERIENCE HGF,SOUTH LONDON ESTATES LTD,"3,000.00",HOMELESS PROJECTS,GRANTS,5902376837,1000046096
06.09.2019,CUSTOMER EXPERIENCE HGF,MSR HOUSING,"1,658.50",NIGHTLY TA (NSC),EXTERNAL AGENCIES AND BODIES,5902376955,1000079359
06.09.2019,CUSTOMER EXPERIENCE HGF,EASYMOVE EA LIMITED,"4,749.20",NIGHTLY TA (NSC),EXTERNAL AGENCIES AND BODIES,5902377005,1000066859
06.09.2019,CUSTOMER EXPERIENCE HGF,EDEN ESTATES LONDON LTD,"27,569.50",NIGHTLY TA (NSC),EXTERNAL AGENCIES AND BODIES,5902376973,1000061217
06.09.2019,CUSTOMER EXPERIENCE HGF,LODGISTICS ESTATES,"2,000.00",PSL PLACEMENTS,EXTERNAL AGENCIES AND BODIES,5902376877,1000080324
06.09.2019,CUSTOMER EXPERIENCE HGF,LODGISTICS ESTATES,"3,660.95",PSL PLACEMENTS,EXTERNAL AGENCIES AND BODIES,5902376875,1000080324
06.09.2019,ENVIRONMENT AND LEISURE,STANBURY BUILDING SERVICES LTD,"1,495.00",CAPITAL PS (LEISURE),CONST'N MAIN CONTRACT - NON CERTIFICATED,2103001070,3000001967
06.09.2019,ENVIRONMENT AND LEISURE,T LOUGHMAN AND CO LIMITED,"3,631.56",CAPITAL PS (LEISURE),CONSTRUCTION FEES  - EXTERNAL,2103001064,4013329
06.09.2019,ENVIRONMENT AND LEISURE,CYCLEHOOP LTD,"2,800.00",CAPITAL PS (LEISURE),CONSTRUCTION SITE COSTS,5902376882,1000057894
06.09.2019,ENVIRONMENT DIRECTORATE,OFFICE DEPOT UK LTD,404.72,CCTV,STATIONERY,5902376891,1109426
06.09.2019,ENVIRONMENT DIRECTORATE,SHELL UK OIL PRODUCTS LTD,251.21,COMMERCIAL VEH CTRL A/C,VEHICLE FUEL,5902376909,1000081254
06.09.2019,ENVIRONMENT DIRECTORATE,SHELL UK OIL PRODUCTS LTD,257.31,COMMERCIAL VEH CTRL A/C,VEHICLE FUEL,5902376957,1000081254
06.09.2019,ENVIRONMENT DIRECTORATE,SHELL UK OIL PRODUCTS LTD,287.19,COMMERCIAL VEH CTRL A/C,VEHICLE FUEL,5902376918,1000081254
06.09.2019,ENVIRONMENT DIRECTORATE,SHELL UK OIL PRODUCTS LTD,332.38,COMMERCIAL VEH CTRL A/C,VEHICLE FUEL,5902376935,1000081254
06.09.2019,ENVIRONMENT DIRECTORATE,SHELL UK OIL PRODUCTS LTD,362.41,COMMERCIAL VEH CTRL A/C,VEHICLE FUEL,5902376934,1000081254
06.09.2019,ENVIRONMENT DIRECTORATE,SHELL UK OIL PRODUCTS LTD,407.29,COMMERCIAL VEH CTRL A/C,VEHICLE FUEL,5902376913,1000081254
06.09.2019,ENVIRONMENT DIRECTORATE,SHELL UK OIL PRODUCTS LTD,421.69,COMMERCIAL VEH CTRL A/C,VEHICLE FUEL,5902376919,1000081254
06.09.2019,ENVIRONMENT DIRECTORATE,SHELL UK OIL PRODUCTS LTD,497.25,COMMERCIAL VEH CTRL A/C,VEHICLE FUEL,5902376930,1000081254
06.09.2019,ENVIRONMENT DIRECTORATE,SHELL UK OIL PRODUCTS LTD,540.2,COMMERCIAL VEH CTRL A/C,VEHICLE FUEL,5902376924,1000081254
06.09.2019,ENVIRONMENT DIRECTORATE,SHELL UK OIL PRODUCTS LTD,800.2,COMMERCIAL VEH CTRL A/C,VEHICLE FUEL,5902376911,1000081254
06.09.2019,ENVIRONMENT DIRECTORATE,SHELL UK OIL PRODUCTS LTD,"1,085.25",COMMERCIAL VEH CTRL A/C,VEHICLE FUEL,5902376914,1000081254
06.09.2019,ENVIRONMENT DIRECTORATE,SHELL UK OIL PRODUCTS LTD,"1,118.78",COMMERCIAL VEH CTRL A/C,VEHICLE FUEL,5902376925,1000081254
06.09.2019,ENVIRONMENT DIRECTORATE,SHELL UK OIL PRODUCTS LTD,"1,319.61",COMMERCIAL VEH CTRL A/C,VEHICLE FUEL,5902376931,1000081254
06.09.2019,ENVIRONMENT DIRECTORATE,SHELL UK OIL PRODUCTS LTD,"1,478.55",COMMERCIAL VEH CTRL A/C,VEHICLE FUEL,5902376933,1000081254
06.09.2019,ENVIRONMENT DIRECTORATE,SHELL UK OIL PRODUCTS LTD,"1,593.79",COMMERCIAL VEH CTRL A/C,VEHICLE FUEL,5902376917,1000081254
06.09.2019,ENVIRONMENT DIRECTORATE,LONDON BOROUGH OF CAMDEN,"2,500.00",EH & TS MANAGER,PROFESSIONAL FEES,5902376870,11234355
06.09.2019,ENVIRONMENT DIRECTORATE,RED R DESIGN,525,HIGHWAYS DEVELOPMENT,MARKETING & PUBLICITY SERVICES,5902375953,1000035984
06.09.2019,ENVIRONMENT DIRECTORATE,OFFICE DEPOT UK LTD,809.42,MANAGEMENT TEAM,STATIONERY,5902376883,1109426
06.09.2019,ENVIRONMENT DIRECTORATE,RED R DESIGN,"1,275.00",PUBLIC CONVENIENCES,OTHER CONTRACTORS,5902376089,1000035984
06.09.2019,ENVIRONMENT DIRECTORATE,SMITH & BYFORD LTD,969,RESIDENTIAL SERVICES,BUILDING R&M,5902376801,11212119
06.09.2019,ENVIRONMENT DIRECTORATE,NPOWER LTD,-388.4,STREET TRADING A/C,ELECTRICITY,5902375386,1000078994
06.09.2019,ENVIRONMENT DIRECTORATE,NPOWER LTD,-386.86,STREET TRADING A/C,ELECTRICITY,5902375376,1000078994
06.09.2019,ENVIRONMENT DIRECTORATE,NPOWER LTD,-311.91,STREET TRADING A/C,ELECTRICITY,5902375008,1000078994
06.09.2019,ENVIRONMENT DIRECTORATE,NPOWER LTD,-279.84,STREET TRADING A/C,ELECTRICITY,5902375076,1000078994
06.09.2019,ENVIRONMENT DIRECTORATE,NPOWER LTD,303.83,STREET TRADING A/C,ELECTRICITY,5902375114,1000078994
06.09.2019,ENVIRONMENT DIRECTORATE,NPOWER LTD,343.19,STREET TRADING A/C,ELECTRICITY,5902375102,1000078994
06.09.2019,EXCHEQUER SERVICES,DSI BILLING SERVICES LTD,"1,942.71",ADMINISTRATIVE SUPPORT,POSTAGES,5902376997,1000058640
06.09.2019,EXCHEQUER SERVICES,DSI BILLING SERVICES LTD,"5,721.02",ADMINISTRATIVE SUPPORT,POSTAGES,5902376996,1000058640
06.09.2019,EXCHEQUER SERVICES,NORTHGATE PUBLIC SERVICES (UK) LTD,"9,000.00",ADMINISTRATIVE SUPPORT,SOFTWARE,5902377024,1000037405
06.09.2019,EXCHEQUER SERVICES,CAPITA BUSINESS SERVICES LTD,"2,064.51",CAPITA,OTHER CONTRACTORS,5902376937,1000049446
06.09.2019,FINANCIAL AND INFORMATION GOVERNANCE,THE LONDON INSTITUTE OF BANKING,495,PROFESSIONAL QUALIFICATIONS,TRAINING,5902375894,1000081510
06.09.2019,HOUSING GENERAL FUND,LIBRA CONSTRUCTION SERVICES LTD,"20,000.00",CAPITAL PS (REGEN),PLANNING & S106 FEES,2103001075,3000000875
06.09.2019,HOUSING HRA,L H BRIDGE LTD,"6,315.00",CAPITAL PS (HRA),CONST'N MAIN CONTRACT - NON CERTIFICATED,2103000263,3000001167
06.09.2019,HOUSING HRA,CALFORD SEADEN LLP,"1,176.00",CAPITAL PS (HRA),CONSTRUCTION FEES  - EXTERNAL,5902377031,1061592
06.09.2019,HOUSING HRA,BAILY  GARNER LLP,"4,066.52",CAPITAL PS (HRA),CONSTRUCTION FEES  - EXTERNAL,5902376974,1000663
06.09.2019,HOUSING HRA,POTTER RAPER LTD,"9,145.95",CAPITAL PS (HRA),CONSTRUCTION FEES  - EXTERNAL,5902376814,1009369
06.09.2019,HOUSING HRA,STANDAGE & CO LTD,745.69,CAPITAL PS (HRA),CONSTRUCTION MAIN CONTRACT -CERTIFICATED,2103001067,4002817
06.09.2019,HOUSING HRA,STANDAGE & CO LTD,"5,367.74",CAPITAL PS (HRA),CONSTRUCTION MAIN CONTRACT -CERTIFICATED,2103001067,4002817
06.09.2019,HOUSING HRA,THOMAS SINDEN CONSTRUCTION,"7,674.85",CAPITAL PS (HRA),CONSTRUCTION MAIN CONTRACT -CERTIFICATED,2103001069,3000000605
06.09.2019,HOUSING HRA,THOMAS SINDEN CONSTRUCTION,"52,114.21",CAPITAL PS (HRA),CONSTRUCTION MAIN CONTRACT -CERTIFICATED,2103001068,3000000605
06.09.2019,HOUSING HRA,ENGIE REGENERATION (APOLLO) LTD,"87,740.88",CAPITAL PS (HRA),CONSTRUCTION MAIN CONTRACT -CERTIFICATED,2103001062,4000449
06.09.2019,HOUSING HRA,ENGIE REGENERATION (APOLLO) LTD,"139,278.18",CAPITAL PS (HRA),CONSTRUCTION MAIN CONTRACT -CERTIFICATED,2103001063,4000449
06.09.2019,HOUSING HRA,ENGIE REGENERATION (APOLLO) LTD,"2,053,351.42",CAPITAL PS (HRA),CONSTRUCTION MAIN CONTRACT -CERTIFICATED,2103000262,4000449
06.09.2019,HOUSING HRA,PURELAKE NEW HOMES LTD,"246,617.32",CAPITAL PS (REGEN),CONSTRUCTION FEES,2103001065,3000002110
06.09.2019,HOUSING HRA,KENT COUNTY COUNCIL - LASER,"19,938.70",RESIDENT SERVICES BUSINESS SUPPORT,ELECTRICITY,6101902467,DIRECT DEBIT PAYMENT
06.09.2019,HOUSING HRA,KENT COUNTY COUNCIL - LASER,"63,923.42",RESIDENT SERVICES BUSINESS SUPPORT,ELECTRICITY,6101902468,DIRECT DEBIT PAYMENT
06.09.2019,INSURANCE FUNDS,JOHNSON AUSTIN LTD,750,PROPERTY RELATED INSURANCE,PROFESSIONAL FEES,5902377001,1000040202
06.09.2019,LAW & DEMOCRACY,LLG LEGAL TRAINING,550,CORPORATE SERVICES,TRAINING,5902376986,1000072374
06.09.2019,LAW & DEMOCRACY,FINANCIAL DATA MANAGEMENT PLC,"18,968.94",EUROPEAN ELECTION,LEGAL FEES & COURT COSTS,2103000292,1000031759
06.09.2019,LEISURE DIRECTORATE,OFFICE DEPOT UK LTD,288.92,CAMBERWELL LIBRARY,STATIONERY,5902376876,1109426
06.09.2019,LEISURE DIRECTORATE,OOMPH WELLNESS TRAINING LTD,"4,500.00",COMMUNITY SPORTS DEVELOPMENT,GRANTS,5902376813,1000081754
06.09.2019,LEISURE DIRECTORATE,OFFICE DEPOT UK LTD,402.21,GROVE VALE LIBRARY,STATIONERY,5902376795,1109426
06.09.2019,LEISURE DIRECTORATE,ISUBSCRIBE LIMITED,833.25,LIBARIES DEVELOPMENT,BOOKS & PUBLICATIONS,5902376838,1000066066
06.09.2019,LEISURE DIRECTORATE,LLOYDS KONECRANES LIMITED,"3,442.00",SDM BUDGET,OTHER R&M,5902376968,1000017240
06.09.2019,LEISURE DIRECTORATE,C S G (USHERS) LTD,"5,000.00",TREES PRINCIPAL ROADS,OTHER CONTRACTORS,5902376824,1000073203
06.09.2019,MODERNISATION HGF,ZALARIS CONSULTING UK LTD,"5,850.00",APPLICATIONS,SOFTWARE,5902376982,1000062505
06.09.2019,MODERNISATION HGF,LEARNING POOL LTD,"15,000.00",CONTRACT COSTS � NON R/C,SUBSCRIPTIONS,5902376200,1000055255
06.09.2019,NEW SOUTHWARK BUILDING SERVICES,OFFICE DEPOT UK LTD,438.4,BUSINESS SUPPORT,STATIONERY,5902376849,1109426
06.09.2019,PLANNING AND TRANSPORT,WAYNE BEGLAN,750,BUM & SUPPORT COSTS,LEGAL FEES & COURT COSTS,2103000318,1000069107
06.09.2019,PLANNING AND TRANSPORT,THE CAMDEN SOCIETY (CATERING),700,PLANNING APPEALS AND INQUIRIES,CATERING MATERIALS & SUPPLIES,5902375979,1000075365
06.09.2019,RESIDENT SERVICES,POSTURITE (UK) LTD,272.86,OPERATIONS/OFFICES ACCOMMODATION,EQUIPMENT PURCHASE & REPAIR,5902376796,11015468
06.09.2019,RESIDENT SERVICES,HARROW GREEN LTD,"8,353.39",OPERATIONS/OFFICES ACCOMMODATION,REMOVAL EXPENSES,5902376859,1000076673
06.09.2019,RESIDENT SERVICES,OFFICE DEPOT UK LTD,276.7,OPERATIONS/OFFICES ACCOMMODATION,STATIONERY,5902376889,1109426
06.09.2019,RESIDENT SERVICES,OFFICE DEPOT UK LTD,556.36,OPERATIONS/OFFICES ACCOMMODATION,STATIONERY,5902376890,1109426
06.09.2019,RESIDENT SERVICES,CASTLE WATER LTD,397.91,PECKHAM,WATER,5902377022,1000078867
06.09.2019,RESIDENT SERVICES,CASTLE WATER LTD,411.67,PECKHAM,WATER,5902376980,1000078867
06.09.2019,RESIDENT SERVICES,CASTLE WATER LTD,841.09,PECKHAM,WATER,5902377027,1000078867
06.09.2019,RESIDENT SERVICES,BRYAN MADAGAN ASSOCIATES LTD,275,SPECIAL INVESTIGATIONS,LEGAL FEES & COURT COSTS,2103000293,1000072045
06.09.2019,RESIDENT SERVICES,DMS PROPERTIES SERVICES LTD,"2,160.00",TA PLACEMENTS,EXTERNAL AGENCIES AND BODIES,5902376966,1000081522
07.09.2019,ADULT SOCIAL CARE,LAMNAO SERVICES LTD,"1,022.50",SAFEGUARDING TEAM,EXTERNAL AGENCIES AND BODIES,5902376887,1000082441
07.09.2019,CHILDREN'S SERVICES,PAGEPRINTERS LTD,782,ASSISSTANT DIRECTOR (CHILDREN),TRAINING,5902376852,1000083132
07.09.2019,ENVIRONMENT DIRECTORATE,FUTURE GARMENTS LTD T/A EUROX,260,MANAGEMENT TEAM,"CLOTHING, UNIFORMS & LAUNDRY",5902376328,1000080983
07.09.2019,ENVIRONMENT DIRECTORATE,BAKER ENGINEERING,251.49,STREET CLEANING-GENERAL,EQUIPMENT PURCHASE & REPAIR,5902376636,1000038205
07.09.2019,EXCHEQUER SERVICES,MRO PEOPLE LTD,"1,700.00",ADMINISTRATIVE SUPPORT,TRAINING,5902376372,1000083017
07.09.2019,FINANCIAL AND INFORMATION GOVERNANCE,BDO LLP,"2,083.33",RISK ADMIN,PROFESSIONAL FEES,5902376207,1000057898
07.09.2019,HOUSING & MODERNISATION,METRO CENTRE LTD,400,VCS GRANTS,OTHER CONTRACTORS,5902376224,1000073797
07.09.2019,HOUSING & MODERNISATION,BLACKFRIARS SETTLEMENT,500,VCS GRANTS,OTHER CONTRACTORS,5902376125,1000071456
07.09.2019,HOUSING & MODERNISATION,AFRO-BRAZILIAN ARTS & CULTURAL EXCHANGE INSTITUTE,600,VCS GRANTS,OTHER CONTRACTORS,5902376140,1000072302
07.09.2019,HOUSING & MODERNISATION,SOUTH LONDON GALLERY,720,VCS GRANTS,OTHER CONTRACTORS,5902376101,11011694
07.09.2019,HOUSING & MODERNISATION,MENTAL FIGHT CLUB,837.5,VCS GRANTS,OTHER CONTRACTORS,5902376113,1000051170
07.09.2019,HOUSING & MODERNISATION,SOUTHWARK EVERY WOMAN'S CENTRE,900,VCS GRANTS,OTHER CONTRACTORS,5902376129,1000042216
07.09.2019,HOUSING & MODERNISATION,ILLUMINATED ARTS,"1,000.00",VCS GRANTS,OTHER CONTRACTORS,5902376109,1000078065
07.09.2019,HOUSING & MODERNISATION,THEATRE PECKHAM,"1,000.00",VCS GRANTS,OTHER CONTRACTORS,5902376130,1071668
07.09.2019,HOUSING HRA,PRB ESTATES LTD,"6,412.00",CAPITAL PS (HRA),CONST'N MAIN CONTRACT - NON CERTIFICATED,2102999282,3000001691
07.09.2019,HOUSING HRA,PROPERTY FACILITIES GROUP PLC,"6,771.10",CAPITAL PS (HRA),CONST'N MAIN CONTRACT - NON CERTIFICATED,2102997632,3000001420
07.09.2019,HOUSING HRA,PRB ESTATES LTD,"6,788.00",CAPITAL PS (HRA),CONST'N MAIN CONTRACT - NON CERTIFICATED,2102999280,3000001691
07.09.2019,HOUSING HRA,PROPERTY FACILITIES GROUP PLC,"7,392.96",CAPITAL PS (HRA),CONST'N MAIN CONTRACT - NON CERTIFICATED,2102997635,3000001420
07.09.2019,HOUSING HRA,PRB ESTATES LTD,"7,595.00",CAPITAL PS (HRA),CONST'N MAIN CONTRACT - NON CERTIFICATED,2102999281,3000001691
07.09.2019,HOUSING HRA,PROPERTY FACILITIES GROUP PLC,"7,875.65",CAPITAL PS (HRA),CONST'N MAIN CONTRACT - NON CERTIFICATED,2102997631,3000001420
07.09.2019,HOUSING HRA,PROPERTY FACILITIES GROUP PLC,"8,420.30",CAPITAL PS (HRA),CONST'N MAIN CONTRACT - NON CERTIFICATED,2102997634,3000001420
07.09.2019,HOUSING HRA,PROPERTY FACILITIES GROUP PLC,"8,467.80",CAPITAL PS (HRA),CONST'N MAIN CONTRACT - NON CERTIFICATED,2102997633,3000001420
07.09.2019,HOUSING HRA,WESTON WILLIAMSON + PARTNERS LLP,"26,394.63",CAPITAL PS (HRA),CONSTRUCTION FEES - ARCHITECT,5902376261,1000046660
07.09.2019,HOUSING HRA,WESTON WILLIAMSON + PARTNERS LLP,"27,669.56",CAPITAL PS (HRA),CONSTRUCTION FEES - ARCHITECT,5902376531,1000046660
07.09.2019,HOUSING HRA,WESTON WILLIAMSON + PARTNERS LLP,"32,161.49",CAPITAL PS (HRA),CONSTRUCTION FEES - ARCHITECT,5902376259,1000046660
07.09.2019,PUBLIC HEALTH,CAMBRIDGE HOUSE & TALBOT,588,HEALTHY WEIGHT,EXTERNAL AGENCIES AND BODIES,5902376999,11248874
07.09.2019,RESIDENT SERVICES,THAMES WATER UTILITIES LTD,"5,715.45",TA HOSTELS,WATER,5902376537,1630755
08.09.2019,ADULT SOCIAL CARE,RADHA CONSULTING LTD,346,SAFEGUARDING TEAM,OTHER CONTRACTORS,5902376632,1000061154
08.09.2019,CHIEF EXECUTIVE'S OFFICE,INDESTINATE LTD,"5,275.00",BUSINESS SUPPORT,CONSULTANTS SERVICES,5902376395,1000083152
08.09.2019,CUSTOMER EXPERIENCE HGF,VALTECH LTD,563.68,BLUE BADGES,MATERIALS,5902376377,1000082245
08.09.2019,DEPT DORMANT AND DEAD CODES,RH WROUGHT IRON,585,PLAY NORTH,OTHER R&M,2103001066,3000000680
08.09.2019,ENVIRONMENT DIRECTORATE,BELL BRUSH COMPANY,379.7,MANAGEMENT TEAM,MATERIALS,5902376205,1259776
08.09.2019,HOUSING HRA,PRB ESTATES LTD,"6,293.00",CAPITAL PS (HRA),CONST'N MAIN CONTRACT - NON CERTIFICATED,2102999284,3000001691
08.09.2019,HOUSING HRA,PRB ESTATES LTD,"6,309.00",CAPITAL PS (HRA),CONST'N MAIN CONTRACT - NON CERTIFICATED,2102999283,3000001691
08.09.2019,HOUSING HRA,PRB ESTATES LTD,"6,454.00",CAPITAL PS (HRA),CONST'N MAIN CONTRACT - NON CERTIFICATED,2102999917,3000001691
08.09.2019,HOUSING HRA,PRB ESTATES LTD,"6,540.00",CAPITAL PS (HRA),CONST'N MAIN CONTRACT - NON CERTIFICATED,2102999918,3000001691
08.09.2019,HOUSING HRA,PRB ESTATES LTD,"6,736.00",CAPITAL PS (HRA),CONST'N MAIN CONTRACT - NON CERTIFICATED,2102999916,3000001691
08.09.2019,HOUSING HRA,PRB ESTATES LTD,"6,741.00",CAPITAL PS (HRA),CONST'N MAIN CONTRACT - NON CERTIFICATED,2102999939,3000001691
08.09.2019,HOUSING HRA,PRB ESTATES LTD,"6,834.00",CAPITAL PS (HRA),CONST'N MAIN CONTRACT - NON CERTIFICATED,2102999938,3000001691
08.09.2019,HOUSING HRA,PRB ESTATES LTD,"6,930.00",CAPITAL PS (HRA),CONST'N MAIN CONTRACT - NON CERTIFICATED,2102999285,3000001691
08.09.2019,REGENERATION,CARD GROUP LTD,"4,587.50",MASTER PLAN-H/WAY & TRANS INTERCHANGE,PROFESSIONAL FEES,5902376425,1000083137
09.09.2019,ADULT SOCIAL CARE,REDACTED PERSONAL DATA,277.3,APPOINTEESHIPS,OTHER PAYMENTS FOR CLIENTS,REDACTED,REDACTED
09.09.2019,ADULT SOCIAL CARE,EDF ENERGY PLC,539.48,MAROON CENTRE,ELECTRICITY,5902377044,1008746
09.09.2019,ADULT SOCIAL CARE,EDF ENERGY PLC,685.63,MAROON CENTRE,ELECTRICITY,5902377046,1008746
09.09.2019,ASSET MANAGEMENT,T BROWN & SONS (HEATING) LTD,"3,615.30",ENG CONTRACTS (NORTH),HEATING -DISTRICT SERVICE (CONTRACT SUM),5902377080,1000040191
09.09.2019,ASSET MANAGEMENT,T BROWN & SONS (HEATING) LTD,"4,160.00",ENG CONTRACTS (NORTH),HEATING -DISTRICT SERVICE (CONTRACT SUM),5902377079,1000040191
09.09.2019,CENTRAL FUNCTIONS,MERLIN DMS LTD,890.04,HOME OWNERSHIP,OFFICE EXPENSES,5902377098,1000062300
09.09.2019,CHIEF EXECUTIVE,PLAYSAFETY LTD,277,CAPITAL PS (REGEN),CONSTRUCTION FEES,5902376560,1000054806
09.09.2019,CHIEF EXECUTIVE,HAYATSU ARCHITECTS LTD,"10,880.00",CAPITAL PS (REGEN),CONSTRUCTION FEES,5902376970,1000082843
09.09.2019,CHIEF EXECUTIVE,GREENHATCH GROUP LTD,"18,445.00",CAPITAL PS (REGEN),CONSTRUCTION FEES - ARCHITECT,5902377142,1000070700
09.09.2019,CHIEF EXECUTIVE,SURREY DOCKS FARM PROVIDENT SOCIETY,"69,127.12",CAPITAL PS (REGEN),CONSTRUCTION MAIN CONTRACT,5902377099,1000000958
09.09.2019,CHIEF EXECUTIVE,TREE SHEPHERD LTD,"2,107.00",CAPITAL PS (REGEN),LAND & BUILDINGS ACQUISITION FEES,5902377107,1000076895
09.09.2019,CHILDREN AND ADULT,JOH DESIGN,"1,113.75",CAPITAL PS (SOC SERV),CONSTRUCTION FEES,5902376787,1000082540
09.09.2019,CHILDREN'S SERVICES,HACKNEY COUNCIL,"2,338.35",INTER AGENCY,EXTERNAL AGENCIES AND BODIES,5902377157,1000071852
09.09.2019,COMMUNITIES,REDACTED PERSONAL DATA,"10,122.00",NO RECOURSE TO PUBLIC FUNDS,ACCOMMODATION CHARGES,REDACTED,REDACTED
09.09.2019,COMMUNITIES,TLK PROPERTY & INVESTMENT LTD,"1,116.00",NO RECOURSE TO PUBLIC FUNDS,ACCOMMODATION CHARGES,5902377141,1000065661
09.09.2019,COMMUNITIES,TURNING POINT,"1,349.56",NO RECOURSE TO PUBLIC FUNDS,ACCOMMODATION CHARGES,5902377154,11321523
09.09.2019,COMMUNITIES,DINARDO SUPPORTS LTD,"1,520.00",NO RECOURSE TO PUBLIC FUNDS,ACCOMMODATION CHARGES,5902377135,1000063093
09.09.2019,COMMUNITIES,SITTARA LTD,"2,418.00",NO RECOURSE TO PUBLIC FUNDS,ACCOMMODATION CHARGES,5902377136,1000080857
09.09.2019,COMMUNITIES,STENFORD PROPERTY LTD,"3,193.00",NO RECOURSE TO PUBLIC FUNDS,ACCOMMODATION CHARGES,5902377058,1000074759
09.09.2019,COMMUNITIES,NATIONWIDE ACCOMMODATION,"3,852.00",NO RECOURSE TO PUBLIC FUNDS,ACCOMMODATION CHARGES,5902377056,1000076112
09.09.2019,COMMUNITIES,NORBURY PROPERTY SERVICES (LONDON) LTD,"4,712.00",NO RECOURSE TO PUBLIC FUNDS,ACCOMMODATION CHARGES,5902377139,1000075566
09.09.2019,COMMUNITIES,A & M PROPERTY AND CONSTRUCTION LTD,"4,716.00",NO RECOURSE TO PUBLIC FUNDS,ACCOMMODATION CHARGES,5902377110,1000014564
09.09.2019,COMMUNITIES,S & G PROPERTIES,"7,913.99",NO RECOURSE TO PUBLIC FUNDS,ACCOMMODATION CHARGES,5902377089,1000005082
09.09.2019,COMMUNITIES,ZFA ACCOMMODATION LTD,"9,747.50",NO RECOURSE TO PUBLIC FUNDS,ACCOMMODATION CHARGES,5902377067,1000082620
09.09.2019,COMMUNITIES,CROMWOOD HOUSING,"10,881.00",NO RECOURSE TO PUBLIC FUNDS,ACCOMMODATION CHARGES,5902377152,1000071450
09.09.2019,COMMUNITIES,RS REAL ESTATE LTD,"12,455.00",NO RECOURSE TO PUBLIC FUNDS,ACCOMMODATION CHARGES,5902377156,1000072485
09.09.2019,COMMUNITIES,LIVING ACCOMODATION LTD,"13,629.00",NO RECOURSE TO PUBLIC FUNDS,ACCOMMODATION CHARGES,5902377113,1000063985
09.09.2019,COMMUNITIES,KINDLY PROPERTIES LTD,"22,069.00",NO RECOURSE TO PUBLIC FUNDS,ACCOMMODATION CHARGES,5902377134,1000060734
09.09.2019,COMMUNITIES,J & M OASIS LTD,"29,284.00",NO RECOURSE TO PUBLIC FUNDS,ACCOMMODATION CHARGES,5902377151,1000072169
09.09.2019,COMMUNITIES,HOMELY HOUSING LETS LTD,"32,053.01",NO RECOURSE TO PUBLIC FUNDS,ACCOMMODATION CHARGES,5902377092,1000050013
09.09.2019,COMMUNITIES,PENIFICENT LTD,450,SOUTHWARK ANTI VIOLENCE UNIT,GRANTS,5902376392,1000083124
09.09.2019,COMMUNITIES,SACRED HEART CATHOLIC SCHOOL,"4,500.00",SYRIAN REFUGEE RESETTLEMENT,GRANTS,5902377150,1000071091
09.09.2019,COMMUNITIES,VALUE PRODUCTS LTD,311.25,TRA HALLS (REPAIRS),BUILDING R&M,5902377164,1000075538
09.09.2019,COMMUNITIES,VALUE PRODUCTS LTD,554,TRA HALLS (REPAIRS),BUILDING R&M,5902377163,1000075538
09.09.2019,CUSTOMER EXPERIENCE HGF,CRUSE BEREAVEMENT CARE,312.5,CORONER'S,CONSULTANTS SERVICES,5902376784,1000061362
09.09.2019,CUSTOMER EXPERIENCE HGF,HOUSING TRAINING & CONSULTANCY LTD,"2,600.00",HOMELESS & HOUSING OPTIONS MGT,TRAINING,5902377059,1000076006
09.09.2019,CUSTOMER EXPERIENCE HGF,FRESHVIEW ESTATES LTD,"1,024.98",HOMELESS PROJECTS,GRANTS,5902377123,1000081189
09.09.2019,CUSTOMER EXPERIENCE HGF,CARIDON LANDLORD SOLUTIONS LTD,"1,299.06",HOMELESS PROJECTS,GRANTS,5902377071,1000080555
09.09.2019,DIRECTOR'S OFFICE,ROI OPERATIONS MANAGEMENT LTD,"7,840.00",CENTRAL COSTS,PROFESSIONAL FEES,5902377126,1000054084
09.09.2019,ENVIRONMENT AND LEISURE,EVERYONE ACTIVE,"3,569.40",CAPITAL PS (LEISURE),CAPITAL GRANTS,5902377060,1000064343
09.09.2019,ENVIRONMENT AND LEISURE,NETWORK RAIL INFRASTRUCTURE LTD,"1,853.00",CAPITAL PS (LEISURE),CONST'N MAIN CONTRACT - NON CERTIFICATED,5902377075,1000053596
09.09.2019,ENVIRONMENT AND LEISURE,PIERCE HILL PROJECT SERVICES LTD,380,CAPITAL PS (LEISURE),CONSTRUCTION FEES  - EXTERNAL,5902377054,1000082971
09.09.2019,ENVIRONMENT AND LEISURE,APR SERVICES LTD,750,CAPITAL PS (LEISURE),CONSTRUCTION FEES  - EXTERNAL,5902377076,1000040465
09.09.2019,ENVIRONMENT AND LEISURE,APR SERVICES LTD,950,CAPITAL PS (LEISURE),CONSTRUCTION FEES  - EXTERNAL,5902377077,1000040465
09.09.2019,ENVIRONMENT AND LEISURE,LDA DESIGN CONSULTING LTD,"12,233.58",CAPITAL PS (LEISURE),CONSTRUCTION FEES - ARCHITECT,5902376539,1000031830
09.09.2019,ENVIRONMENT DIRECTORATE,GREENHAM TRADING LTD,648.88,NON HOUSING GROUNDS,MATERIALS,5902377130,1000006610
09.09.2019,ENVIRONMENT DIRECTORATE,C S G (USHERS) LTD,"1,195.00",NON HOUSING GROUNDS,OTHER CONTRACTORS,5902377050,1000073203
09.09.2019,ENVIRONMENT DIRECTORATE,CROMWELL POLYTHENE LTD,"1,333.68",STREET CLEANING-GENERAL,MATERIALS,5902377045,1000021159
09.09.2019,ENVIRONMENT DIRECTORATE,GLASDON UK LIMITED,"1,861.66",STREET CLEANING-GENERAL,MATERIALS,5902377117,1024073
09.09.2019,ENVIRONMENT DIRECTORATE,TYCO INTEGRATED FIRE & SECURITY,"9,054.00",TOWN CENTRE CCTV,OTHER CONTRACTORS,5902376302,1000077948
09.09.2019,EXCHEQUER SERVICES,GREENCROFT CONSULTING,"3,285.30",ADMINISTRATIVE SUPPORT,OTHER CONTRACTORS,5902376329,1000078147
09.09.2019,EXCHEQUER SERVICES,DSI BILLING SERVICES LTD,"1,248.95",ADMINISTRATIVE SUPPORT,POSTAGES,5902377132,1000058640
09.09.2019,HOUSING,ARMSTRONG YORK,"2,550.00",PAYMENTS CONTROL ACCOUNT-ARMSTRONG YORKE,I-WORLD CONTRACTORS HOLDING ACCOUNT,5902377102,1000058092
09.09.2019,HOUSING HRA,C&C BUILDERS LTD,"4,118.76",CAPITAL PS (HRA),CONST'N MAIN CONTRACT - NON CERTIFICATED,2102999943,3000001986
09.09.2019,HOUSING HRA,C&C BUILDERS LTD,"5,173.12",CAPITAL PS (HRA),CONST'N MAIN CONTRACT - NON CERTIFICATED,2102999945,3000001986
09.09.2019,HOUSING HRA,C&C BUILDERS LTD,"6,009.91",CAPITAL PS (HRA),CONST'N MAIN CONTRACT - NON CERTIFICATED,2102999941,3000001986
09.09.2019,HOUSING HRA,C&C BUILDERS LTD,"6,284.65",CAPITAL PS (HRA),CONST'N MAIN CONTRACT - NON CERTIFICATED,2102999942,3000001986
09.09.2019,HOUSING HRA,C&C BUILDERS LTD,"6,605.28",CAPITAL PS (HRA),CONST'N MAIN CONTRACT - NON CERTIFICATED,2102999944,3000001986
09.09.2019,HOUSING HRA,AJMADAPTIONS LTD,"6,840.00",CAPITAL PS (HRA),CONST'N MAIN CONTRACT - NON CERTIFICATED,2103001127,3000002056
09.09.2019,HOUSING HRA,C&C BUILDERS LTD,"7,164.71",CAPITAL PS (HRA),CONST'N MAIN CONTRACT - NON CERTIFICATED,2102999940,3000001986
09.09.2019,HOUSING HRA,C&C BUILDERS LTD,"7,896.09",CAPITAL PS (HRA),CONST'N MAIN CONTRACT - NON CERTIFICATED,2102999946,3000001986
09.09.2019,HOUSING HRA,JOH DESIGN,277.5,CAPITAL PS (HRA),CONSTRUCTION FEES,5902376787,1000082540
09.09.2019,HOUSING HRA,JOH DESIGN,"3,341.25",CAPITAL PS (HRA),CONSTRUCTION FEES,5902376787,1000082540
09.09.2019,HOUSING HRA,CALFORD SEADEN LLP,"1,075.00",CAPITAL PS (HRA),CONSTRUCTION FEES  - EXTERNAL,5902376641,1061592
09.09.2019,HOUSING HRA,CALFORD SEADEN LLP,"1,176.00",CAPITAL PS (HRA),CONSTRUCTION FEES  - EXTERNAL,5902376283,1061592
09.09.2019,HOUSING HRA,CALFORD SEADEN LLP,"1,470.00",CAPITAL PS (HRA),CONSTRUCTION FEES  - EXTERNAL,5902376279,1061592
09.09.2019,HOUSING HRA,CALFORD SEADEN LLP,"3,687.94",CAPITAL PS (HRA),CONSTRUCTION FEES  - EXTERNAL,5902376556,1061592
09.09.2019,HOUSING HRA,CALFORD SEADEN LLP,"3,852.47",CAPITAL PS (HRA),CONSTRUCTION FEES  - EXTERNAL,5902376649,1061592
09.09.2019,HOUSING HRA,CALFORD SEADEN LLP,"6,251.13",CAPITAL PS (HRA),CONSTRUCTION FEES  - EXTERNAL,5902376545,1061592
09.09.2019,HOUSING HRA,CALFORD SEADEN LLP,"10,520.06",CAPITAL PS (HRA),CONSTRUCTION FEES  - EXTERNAL,5902376646,1061592
09.09.2019,HOUSING HRA,POTTER RAPER LTD,"12,354.44",CAPITAL PS (HRA),CONSTRUCTION FEES  - EXTERNAL,5902377061,1009369
09.09.2019,HOUSING HRA,POTTER RAPER LTD,"18,766.71",CAPITAL PS (HRA),CONSTRUCTION FEES  - EXTERNAL,5902377074,1009369
09.09.2019,HOUSING HRA,MLM CONSULTING ENGINEERS LTD,"5,000.00",CAPITAL PS (REGEN),CONSTRUCTION FEES - LEGAL,5902376456,1000059806
09.09.2019,HOUSING HRA,AB HERITAGE LTD,397.5,CAPITAL PS (REGEN),CONSTRUCTION SITE COSTS,5902376611,1000077344
09.09.2019,HOUSING HRA,AB HERITAGE LTD,555,CAPITAL PS (REGEN),CONSTRUCTION SITE COSTS,5902376610,1000077344
09.09.2019,LEISURE DIRECTORATE,QUADRON SERVICES LIMITED,"1,971.44",CREMATORIUM,BUILDING R&M,5902376841,1000066528
09.09.2019,LEISURE DIRECTORATE,QUADRON SERVICES LIMITED,"2,427.76",CREMATORIUM,BUILDING R&M,5902376841,1000066528
09.09.2019,LEISURE DIRECTORATE,VIVEDIA LIMITED,745,CREMATORIUM,SUBSCRIPTIONS,5902376839,1000064867
09.09.2019,LEISURE DIRECTORATE,CLASSIC NEWS,474.93,JOHN HARVARD LIBRARY,BOOKS & PUBLICATIONS,5902377093,1000042369
09.09.2019,LEISURE DIRECTORATE,NIGEL TWUMASI,300,LIBARIES DEVELOPMENT,FREELANCE SPECIALISTS,5902377119,1000080982
09.09.2019,MODERNISATION HGF,ROYAL MAIL GROUP LTD,"2,747.79",160 TOOLEY ST.,POSTAGES,5902377111,1000008168
09.09.2019,MODERNISATION HGF,ROYAL MAIL GROUP LTD,"2,910.17",160 TOOLEY ST.,POSTAGES,5902377072,1000008168
09.09.2019,MODERNISATION HGF,KANSO FACILITIES MANAGEMENT LTD,"1,210.00",160 TOOLEY ST.,PREMISES CLEANING,5902377090,1000082920
09.09.2019,MODERNISATION HGF,BIFM,255,CFM OPERATIONAL BUDGET,TRAINING,5902377153,1000078202
09.09.2019,NEW BUILD,BAILY  GARNER LLP,"6,895.38",DEVELOPMENT DELIVERY,PROFESSIONAL FEES,5902376519,1000663
09.09.2019,NEW SOUTHWARK BUILDING SERVICES,AKW MEDI-CARE LTD,680.05,SBS AIDS AND ADAPTATIONS,MATERIALS,5902377138,1000047103
09.09.2019,PH DIRECTORS TEAM,VACHERIN LTD,"1,150.00",PH DIRECTOR'S TEAM,HIRE OF ROOMS/HALLS,5902377159,1000079946
09.09.2019,REGENERATION,OPEN COMMUNITIES LTD,400,OKR MASTER PLANNING,PROFESSIONAL FEES,5902377149,1000065800
09.09.2019,REGENERATION,OPEN COMMUNITIES LTD,"2,622.50",OKR MASTER PLANNING,PROFESSIONAL FEES,5902377149,1000065800
09.09.2019,RESIDENT SERVICES,EDF ENERGY PLC,284.43,OPERATIONS/OFFICES ACCOMMODATION,ELECTRICITY,5902377133,1008746
09.09.2019,RESIDENT SERVICES,LETTERBOX4YOU,"1,566.95",TA HOSTELS,EQUIPMENT PURCHASE & REPAIR,5902377047,1000074871
09.09.2019,RESIDENT SERVICES,LONDON TOOLS LIMITED,310,TA HOSTELS,MATERIALS,5902377172,1000003017
09.09.2019,RESIDENT SERVICES,LONDON TOOLS LIMITED,310,TA HOSTELS,MATERIALS,5902377173,1000003017
09.09.2019,RESIDENT SERVICES,RENT CONNECT HOUSING LTD,"1,083.00",TA PLACEMENTS,EXTERNAL AGENCIES AND BODIES,5902377100,1000074815
09.09.2019,RESIDENT SERVICES,SOUTH OF THE RIVER INVESTMENTS LTD,"1,674.00",TA PLACEMENTS,EXTERNAL AGENCIES AND BODIES,5902376950,1000073638
09.09.2019,RESIDENT SERVICES,ZFA ACCOMMODATION LTD,"1,705.00",TA PLACEMENTS,EXTERNAL AGENCIES AND BODIES,5902377104,1000082620
10.09.2019,ADULT SOCIAL CARE,ITL NORTH EAST LTD,335, LD MGMT & SUPPORT,INTERPRETING SERVICES,5902377538,1000082415
10.09.2019,ADULT SOCIAL CARE,NATIONAL AUTISTIC SOCIETY CARE PACK,"1,590.90",LD LTS 18-64,DAYCARE,2103001274,1000020538
10.09.2019,ADULT SOCIAL CARE,NATIONAL AUTISTIC SOCIETY CARE PACK,"2,079.60",LD LTS 18-64,DAYCARE,2103001277,1000020538
10.09.2019,ADULT SOCIAL CARE,NATIONAL AUTISTIC SOCIETY CARE PACK,"3,854.11",LD LTS 18-64,DAYCARE,2103001552,1000020538
10.09.2019,ADULT SOCIAL CARE,MEDACS HOMECARE,301.88,LD LTS 18-64,HOMECARE - C&V,2103001450,11287415
10.09.2019,ADULT SOCIAL CARE,MEDACS HOMECARE,789.21,LD LTS 18-64,HOMECARE - C&V,2103001529,11287415
10.09.2019,ADULT SOCIAL CARE,HEALTH PERSONNEL LTD,"4,595.00",LD LTS 18-64,RESIDENTIAL CARE,2103001281,1000076377
10.09.2019,ADULT SOCIAL CARE,PECULIAR CARE HOMES LTD,430.8,LD LTS 18-64,SUPPORTED LIVING,2103001275,1000076991
10.09.2019,ADULT SOCIAL CARE,CONTACT PROFESSIONALS,456,LD LTS 18-64,SUPPORTED LIVING,2103001546,1000057263
10.09.2019,ADULT SOCIAL CARE,PECULIAR CARE HOMES LTD,"1,077.00",LD LTS 18-64,SUPPORTED LIVING,2103001279,1000076991
10.09.2019,ADULT SOCIAL CARE,REMARK LIVING,"1,104.00",LD LTS 18-64,SUPPORTED LIVING,2103001144,1000081741
10.09.2019,ADULT SOCIAL CARE,CONTACT PROFESSIONALS,"1,489.00",LD LTS 18-64,SUPPORTED LIVING,2103001550,1000057263
10.09.2019,ADULT SOCIAL CARE,MARCUS AND MARCUS LTD,"4,000.00",LD LTS 18-64,SUPPORTED LIVING,2103001280,1000065913
10.09.2019,ADULT SOCIAL CARE,MARCUS AND MARCUS LTD,"17,920.00",LD LTS 18-64,SUPPORTED LIVING,2103001273,1000065913
10.09.2019,ADULT SOCIAL CARE,CHOICE SUPPORT,"6,935.52",LD LTS 65+,SUPPORTED LIVING,2103001562,1104183
10.09.2019,ADULT SOCIAL CARE,MEDACS HOMECARE,698.73,MEM LTS 18-64,HOMECARE - C&V,2103001489,11287415
10.09.2019,ADULT SOCIAL CARE,MEDACS HOMECARE,927.34,MEM LTS 65+,HOMECARE - C&V,2103001474,11287415
10.09.2019,ADULT SOCIAL CARE,MEDACS HOMECARE,987.56,MEM LTS 65+,HOMECARE - C&V,2103001524,11287415
10.09.2019,ADULT SOCIAL CARE,MEDACS HOMECARE,"1,104.26",MEM LTS 65+,HOMECARE - C&V,2103001463,11287415
10.09.2019,ADULT SOCIAL CARE,LONDON CARE LTD,382.96,MEM STS 65+,HOMECARE - IC,2103001253,1000003398
10.09.2019,ADULT SOCIAL CARE,MEDACS HOMECARE,483.12,MH LTS 18-64,HOMECARE - C&V,2103001457,11287415
10.09.2019,ADULT SOCIAL CARE,MEDACS HOMECARE,564.96,MH LTS 18-64,HOMECARE - C&V,2103001473,11287415
10.09.2019,ADULT SOCIAL CARE,MEDACS HOMECARE,685.84,MH LTS 18-64,HOMECARE - C&V,2103001518,11287415
10.09.2019,ADULT SOCIAL CARE,MEDACS HOMECARE,"1,380.10",MH LTS 18-64,HOMECARE - C&V,2103001443,11287415
10.09.2019,ADULT SOCIAL CARE,MEDACS HOMECARE,276.03,MH LTS 65+,HOMECARE - C&V,2103001504,11287415
10.09.2019,ADULT SOCIAL CARE,MEDACS HOMECARE,685.71,MH LTS 65+,HOMECARE - C&V,2103001485,11287415
10.09.2019,ADULT SOCIAL CARE,MEDACS HOMECARE,288.97,PHY LTS 18-64,HOMECARE - C&V,2103001505,11287415
10.09.2019,ADULT SOCIAL CARE,MEDACS HOMECARE,327.84,PHY LTS 18-64,HOMECARE - C&V,2103001512,11287415
10.09.2019,ADULT SOCIAL CARE,MEDACS HOMECARE,332.13,PHY LTS 18-64,HOMECARE - C&V,2103001475,11287415
10.09.2019,ADULT SOCIAL CARE,MEDACS HOMECARE,426.96,PHY LTS 18-64,HOMECARE - C&V,2103001461,11287415
10.09.2019,ADULT SOCIAL CARE,MEDACS HOMECARE,444.28,PHY LTS 18-64,HOMECARE - C&V,2103001526,11287415
10.09.2019,ADULT SOCIAL CARE,MEDACS HOMECARE,457.18,PHY LTS 18-64,HOMECARE - C&V,2103001536,11287415
10.09.2019,ADULT SOCIAL CARE,MEDACS HOMECARE,487.37,PHY LTS 18-64,HOMECARE - C&V,2103001454,11287415
10.09.2019,ADULT SOCIAL CARE,MEDACS HOMECARE,586.64,PHY LTS 18-64,HOMECARE - C&V,2103001510,11287415
10.09.2019,ADULT SOCIAL CARE,MEDACS HOMECARE,595.3,PHY LTS 18-64,HOMECARE - C&V,2103001491,11287415
10.09.2019,ADULT SOCIAL CARE,MEDACS HOMECARE,612.64,PHY LTS 18-64,HOMECARE - C&V,2103001516,11287415
10.09.2019,ADULT SOCIAL CARE,MEDACS HOMECARE,685.7,PHY LTS 18-64,HOMECARE - C&V,2103001448,11287415
10.09.2019,ADULT SOCIAL CARE,MEDACS HOMECARE,"1,130.37",PHY LTS 18-64,HOMECARE - C&V,2103001521,11287415
10.09.2019,ADULT SOCIAL CARE,MEDACS HOMECARE,"3,083.83",PHY LTS 18-64,HOMECARE - C&V,2103001456,11287415
10.09.2019,ADULT SOCIAL CARE,THAMES HOMECARE SERVICE LTD,250.6,PHY LTS 18-64,HOMECARE - SPOT,2103001237,1000079295
10.09.2019,ADULT SOCIAL CARE,THAMES HOMECARE SERVICE LTD,250.6,PHY LTS 18-64,HOMECARE - SPOT,2103001394,1000079295
10.09.2019,ADULT SOCIAL CARE,THAMES HOMECARE SERVICE LTD,286.4,PHY LTS 18-64,HOMECARE - SPOT,2103001391,1000079295
10.09.2019,ADULT SOCIAL CARE,THAMES HOMECARE SERVICE LTD,322.2,PHY LTS 18-64,HOMECARE - SPOT,2103001212,1000079295
10.09.2019,ADULT SOCIAL CARE,THAMES HOMECARE SERVICE LTD,322.2,PHY LTS 18-64,HOMECARE - SPOT,2103001408,1000079295
10.09.2019,ADULT SOCIAL CARE,THAMES HOMECARE SERVICE LTD,358,PHY LTS 18-64,HOMECARE - SPOT,2103001431,1000079295
10.09.2019,ADULT SOCIAL CARE,THAMES HOMECARE SERVICE LTD,380.38,PHY LTS 18-64,HOMECARE - SPOT,2103001209,1000079295
10.09.2019,ADULT SOCIAL CARE,THAMES HOMECARE SERVICE LTD,380.38,PHY LTS 18-64,HOMECARE - SPOT,2103001386,1000079295
10.09.2019,ADULT SOCIAL CARE,SERVESOUL LTD,408.91,PHY LTS 18-64,HOMECARE - SPOT,2103001178,1000081503
10.09.2019,ADULT SOCIAL CARE,THAMES HOMECARE SERVICE LTD,537,PHY LTS 18-64,HOMECARE - SPOT,2103001197,1000079295
10.09.2019,ADULT SOCIAL CARE,THAMES HOMECARE SERVICE LTD,537,PHY LTS 18-64,HOMECARE - SPOT,2103001399,1000079295
10.09.2019,ADULT SOCIAL CARE,THAMES HOMECARE SERVICE LTD,563.85,PHY LTS 18-64,HOMECARE - SPOT,2103001191,1000079295
10.09.2019,ADULT SOCIAL CARE,THAMES HOMECARE SERVICE LTD,563.85,PHY LTS 18-64,HOMECARE - SPOT,2103001434,1000079295
10.09.2019,ADULT SOCIAL CARE,REMARK LIVING,"1,035.00",PHY LTS 18-64,SUPPORTED LIVING,2103001142,1000081741
10.09.2019,ADULT SOCIAL CARE,MEDACS HOMECARE,254.45,PHY LTS 65+,HOMECARE - C&V,2103001442,11287415
10.09.2019,ADULT SOCIAL CARE,MEDACS HOMECARE,258.8,PHY LTS 65+,HOMECARE - C&V,2103001507,11287415
10.09.2019,ADULT SOCIAL CARE,MEDACS HOMECARE,280.38,PHY LTS 65+,HOMECARE - C&V,2103001480,11287415
10.09.2019,ADULT SOCIAL CARE,MEDACS HOMECARE,284.69,PHY LTS 65+,HOMECARE - C&V,2103001476,11287415
10.09.2019,ADULT SOCIAL CARE,MEDACS HOMECARE,301.89,PHY LTS 65+,HOMECARE - C&V,2103001532,11287415
10.09.2019,ADULT SOCIAL CARE,MEDACS HOMECARE,332.1,PHY LTS 65+,HOMECARE - C&V,2103001523,11287415
10.09.2019,ADULT SOCIAL CARE,MEDACS HOMECARE,336.41,PHY LTS 65+,HOMECARE - C&V,2103001533,11287415
10.09.2019,ADULT SOCIAL CARE,MEDACS HOMECARE,349.44,PHY LTS 65+,HOMECARE - C&V,2103001441,11287415
10.09.2019,ADULT SOCIAL CARE,MEDACS HOMECARE,358.01,PHY LTS 65+,HOMECARE - C&V,2103001445,11287415
10.09.2019,ADULT SOCIAL CARE,MEDACS HOMECARE,362.37,PHY LTS 65+,HOMECARE - C&V,2103001447,11287415
10.09.2019,ADULT SOCIAL CARE,MEDACS HOMECARE,414.08,PHY LTS 65+,HOMECARE - C&V,2103001502,11287415
10.09.2019,ADULT SOCIAL CARE,MEDACS HOMECARE,457.22,PHY LTS 65+,HOMECARE - C&V,2103001460,11287415
10.09.2019,ADULT SOCIAL CARE,MEDACS HOMECARE,483.09,PHY LTS 65+,HOMECARE - C&V,2103001458,11287415
10.09.2019,ADULT SOCIAL CARE,MEDACS HOMECARE,487.47,PHY LTS 65+,HOMECARE - C&V,2103001487,11287415
10.09.2019,ADULT SOCIAL CARE,MEDACS HOMECARE,487.51,PHY LTS 65+,HOMECARE - C&V,2103001470,11287415
10.09.2019,ADULT SOCIAL CARE,MEDACS HOMECARE,491.87,PHY LTS 65+,HOMECARE - C&V,2103001451,11287415
10.09.2019,ADULT SOCIAL CARE,MEDACS HOMECARE,534.9,PHY LTS 65+,HOMECARE - C&V,2103001534,11287415
10.09.2019,ADULT SOCIAL CARE,MEDACS HOMECARE,565.21,PHY LTS 65+,HOMECARE - C&V,2103001449,11287415
10.09.2019,ADULT SOCIAL CARE,MEDACS HOMECARE,603.95,PHY LTS 65+,HOMECARE - C&V,2103001520,11287415
10.09.2019,ADULT SOCIAL CARE,MEDACS HOMECARE,603.96,PHY LTS 65+,HOMECARE - C&V,2103001522,11287415
10.09.2019,ADULT SOCIAL CARE,MEDACS HOMECARE,638.51,PHY LTS 65+,HOMECARE - C&V,2103001530,11287415
10.09.2019,ADULT SOCIAL CARE,MEDACS HOMECARE,664.3,PHY LTS 65+,HOMECARE - C&V,2103001513,11287415
10.09.2019,ADULT SOCIAL CARE,MEDACS HOMECARE,679.38,PHY LTS 65+,HOMECARE - C&V,2103001514,11287415
10.09.2019,ADULT SOCIAL CARE,MEDACS HOMECARE,711.7,PHY LTS 65+,HOMECARE - C&V,2103001469,11287415
10.09.2019,ADULT SOCIAL CARE,MEDACS HOMECARE,772.04,PHY LTS 65+,HOMECARE - C&V,2103001453,11287415
10.09.2019,ADULT SOCIAL CARE,MEDACS HOMECARE,789.45,PHY LTS 65+,HOMECARE - C&V,2103001541,11287415
10.09.2019,ADULT SOCIAL CARE,MEDACS HOMECARE,811.02,PHY LTS 65+,HOMECARE - C&V,2103001492,11287415
10.09.2019,ADULT SOCIAL CARE,MEDACS HOMECARE,815.39,PHY LTS 65+,HOMECARE - C&V,2103001468,11287415
10.09.2019,ADULT SOCIAL CARE,MEDACS HOMECARE,828.31,PHY LTS 65+,HOMECARE - C&V,2103001509,11287415
10.09.2019,ADULT SOCIAL CARE,MEDACS HOMECARE,845.33,PHY LTS 65+,HOMECARE - C&V,2103001462,11287415
10.09.2019,ADULT SOCIAL CARE,MEDACS HOMECARE,866.98,PHY LTS 65+,HOMECARE - C&V,2103001471,11287415
10.09.2019,ADULT SOCIAL CARE,MEDACS HOMECARE,875.58,PHY LTS 65+,HOMECARE - C&V,2103001455,11287415
10.09.2019,ADULT SOCIAL CARE,MEDACS HOMECARE,892.89,PHY LTS 65+,HOMECARE - C&V,2103001444,11287415
10.09.2019,ADULT SOCIAL CARE,MEDACS HOMECARE,936.02,PHY LTS 65+,HOMECARE - C&V,2103001535,11287415
10.09.2019,ADULT SOCIAL CARE,MEDACS HOMECARE,949.06,PHY LTS 65+,HOMECARE - C&V,2103001495,11287415
10.09.2019,ADULT SOCIAL CARE,MEDACS HOMECARE,987.84,PHY LTS 65+,HOMECARE - C&V,2103001478,11287415
10.09.2019,ADULT SOCIAL CARE,MEDACS HOMECARE,"1,086.98",PHY LTS 65+,HOMECARE - C&V,2103001494,11287415
10.09.2019,ADULT SOCIAL CARE,MEDACS HOMECARE,"1,134.50",PHY LTS 65+,HOMECARE - C&V,2103001479,11287415
10.09.2019,ADULT SOCIAL CARE,MEDACS HOMECARE,"1,143.24",PHY LTS 65+,HOMECARE - C&V,2103001506,11287415
10.09.2019,ADULT SOCIAL CARE,MEDACS HOMECARE,"1,259.56",PHY LTS 65+,HOMECARE - C&V,2103001467,11287415
10.09.2019,ADULT SOCIAL CARE,MEDACS HOMECARE,"1,514.09",PHY LTS 65+,HOMECARE - C&V,2103001540,11287415
10.09.2019,ADULT SOCIAL CARE,MEDACS HOMECARE,"1,556.99",PHY LTS 65+,HOMECARE - C&V,2103001544,11287415
10.09.2019,ADULT SOCIAL CARE,MEDACS HOMECARE,"1,565.83",PHY LTS 65+,HOMECARE - C&V,2103001525,11287415
10.09.2019,ADULT SOCIAL CARE,MEDACS HOMECARE,"1,742.56",PHY LTS 65+,HOMECARE - C&V,2103001508,11287415
10.09.2019,ADULT SOCIAL CARE,MEDACS HOMECARE,"1,829.03",PHY LTS 65+,HOMECARE - C&V,2103001517,11287415
10.09.2019,ADULT SOCIAL CARE,MEDACS HOMECARE,"2,018.92",PHY LTS 65+,HOMECARE - C&V,2103001490,11287415
10.09.2019,ADULT SOCIAL CARE,LONDON CARE LTD,"2,073.87",PHY LTS 65+,HOMECARE - C&V,2103001257,1000003398
10.09.2019,ADULT SOCIAL CARE,MEDACS HOMECARE,"2,074.78",PHY LTS 65+,HOMECARE - C&V,2103001481,11287415
10.09.2019,ADULT SOCIAL CARE,MEDACS HOMECARE,"2,320.75",PHY LTS 65+,HOMECARE - C&V,2103001493,11287415
10.09.2019,ADULT SOCIAL CARE,MEDACS HOMECARE,"2,407.20",PHY LTS 65+,HOMECARE - C&V,2103001477,11287415
10.09.2019,ADULT SOCIAL CARE,MEDACS HOMECARE,"3,329.55",PHY LTS 65+,HOMECARE - C&V,2103001500,11287415
10.09.2019,ADULT SOCIAL CARE,MEDACS HOMECARE,"3,360.01",PHY LTS 65+,HOMECARE - C&V,2103001496,11287415
10.09.2019,ADULT SOCIAL CARE,SERVESOUL LTD,262.87,PHY LTS 65+,HOMECARE - SPOT,2103001175,1000081503
10.09.2019,ADULT SOCIAL CARE,THAMES HOMECARE SERVICE LTD,264.03,PHY LTS 65+,HOMECARE - SPOT,2103001392,1000079295
10.09.2019,ADULT SOCIAL CARE,THAMES HOMECARE SERVICE LTD,268.5,PHY LTS 65+,HOMECARE - SPOT,2103001195,1000079295
10.09.2019,ADULT SOCIAL CARE,THAMES HOMECARE SERVICE LTD,268.5,PHY LTS 65+,HOMECARE - SPOT,2103001425,1000079295
10.09.2019,ADULT SOCIAL CARE,THAMES HOMECARE SERVICE LTD,272.98,PHY LTS 65+,HOMECARE - SPOT,2103001429,1000079295
10.09.2019,ADULT SOCIAL CARE,SERVESOUL LTD,292.08,PHY LTS 65+,HOMECARE - SPOT,2103001164,1000081503
10.09.2019,ADULT SOCIAL CARE,SERVESOUL LTD,308.77,PHY LTS 65+,HOMECARE - SPOT,2103001155,1000081503
10.09.2019,ADULT SOCIAL CARE,THAMES HOMECARE SERVICE LTD,313.25,PHY LTS 65+,HOMECARE - SPOT,2103001196,1000079295
10.09.2019,ADULT SOCIAL CARE,THAMES HOMECARE SERVICE LTD,313.25,PHY LTS 65+,HOMECARE - SPOT,2103001387,1000079295
10.09.2019,ADULT SOCIAL CARE,THAMES HOMECARE SERVICE LTD,344.58,PHY LTS 65+,HOMECARE - SPOT,2103001193,1000079295
10.09.2019,ADULT SOCIAL CARE,THAMES HOMECARE SERVICE LTD,344.58,PHY LTS 65+,HOMECARE - SPOT,2103001201,1000079295
10.09.2019,ADULT SOCIAL CARE,THAMES HOMECARE SERVICE LTD,344.58,PHY LTS 65+,HOMECARE - SPOT,2103001228,1000079295
10.09.2019,ADULT SOCIAL CARE,THAMES HOMECARE SERVICE LTD,344.58,PHY LTS 65+,HOMECARE - SPOT,2103001405,1000079295
10.09.2019,ADULT SOCIAL CARE,THAMES HOMECARE SERVICE LTD,344.58,PHY LTS 65+,HOMECARE - SPOT,2103001406,1000079295
10.09.2019,ADULT SOCIAL CARE,THAMES HOMECARE SERVICE LTD,344.58,PHY LTS 65+,HOMECARE - SPOT,2103001436,1000079295
10.09.2019,ADULT SOCIAL CARE,SERVESOUL LTD,346.32,PHY LTS 65+,HOMECARE - SPOT,2103001148,1000081503
10.09.2019,ADULT SOCIAL CARE,THAMES HOMECARE SERVICE LTD,407.23,PHY LTS 65+,HOMECARE - SPOT,2103001192,1000079295
10.09.2019,ADULT SOCIAL CARE,THAMES HOMECARE SERVICE LTD,407.23,PHY LTS 65+,HOMECARE - SPOT,2103001383,1000079295
10.09.2019,ADULT SOCIAL CARE,THAMES HOMECARE SERVICE LTD,420.65,PHY LTS 65+,HOMECARE - SPOT,2103001219,1000079295
10.09.2019,ADULT SOCIAL CARE,SERVESOUL LTD,421.42,PHY LTS 65+,HOMECARE - SPOT,2103001160,1000081503
10.09.2019,ADULT SOCIAL CARE,SERVESOUL LTD,433.94,PHY LTS 65+,HOMECARE - SPOT,2103001188,1000081503
10.09.2019,ADULT SOCIAL CARE,SERVESOUL LTD,467.32,PHY LTS 65+,HOMECARE - SPOT,2103001147,1000081503
10.09.2019,ADULT SOCIAL CARE,THAMES HOMECARE SERVICE LTD,483.3,PHY LTS 65+,HOMECARE - SPOT,2103001194,1000079295
10.09.2019,ADULT SOCIAL CARE,THAMES HOMECARE SERVICE LTD,483.3,PHY LTS 65+,HOMECARE - SPOT,2103001215,1000079295
10.09.2019,ADULT SOCIAL CARE,THAMES HOMECARE SERVICE LTD,483.3,PHY LTS 65+,HOMECARE - SPOT,2103001430,1000079295
10.09.2019,ADULT SOCIAL CARE,THAMES HOMECARE SERVICE LTD,483.3,PHY LTS 65+,HOMECARE - SPOT,2103001435,1000079295
10.09.2019,ADULT SOCIAL CARE,THAMES HOMECARE SERVICE LTD,501.2,PHY LTS 65+,HOMECARE - SPOT,2103001214,1000079295
10.09.2019,ADULT SOCIAL CARE,THAMES HOMECARE SERVICE LTD,501.2,PHY LTS 65+,HOMECARE - SPOT,2103001395,1000079295
10.09.2019,ADULT SOCIAL CARE,SERVESOUL LTD,525.74,PHY LTS 65+,HOMECARE - SPOT,2103001179,1000081503
10.09.2019,ADULT SOCIAL CARE,SERVESOUL LTD,525.74,PHY LTS 65+,HOMECARE - SPOT,2103001187,1000081503
10.09.2019,ADULT SOCIAL CARE,SERVESOUL LTD,559.12,PHY LTS 65+,HOMECARE - SPOT,2103001153,1000081503
10.09.2019,ADULT SOCIAL CARE,THAMES HOMECARE SERVICE LTD,563.85,PHY LTS 65+,HOMECARE - SPOT,2103001238,1000079295
10.09.2019,ADULT SOCIAL CARE,THAMES HOMECARE SERVICE LTD,563.85,PHY LTS 65+,HOMECARE - SPOT,2103001244,1000079295
10.09.2019,ADULT SOCIAL CARE,THAMES HOMECARE SERVICE LTD,563.85,PHY LTS 65+,HOMECARE - SPOT,2103001396,1000079295
10.09.2019,ADULT SOCIAL CARE,SERVESOUL LTD,579.98,PHY LTS 65+,HOMECARE - SPOT,2103001166,1000081503
10.09.2019,ADULT SOCIAL CARE,SERVESOUL LTD,584.15,PHY LTS 65+,HOMECARE - SPOT,2103001161,1000081503
10.09.2019,ADULT SOCIAL CARE,MEDACS HOMECARE,616.88,PHY LTS 65+,HOMECARE - SPOT,2103001545,11287415
10.09.2019,ADULT SOCIAL CARE,SERVESOUL LTD,642.57,PHY LTS 65+,HOMECARE - SPOT,2103001159,1000081503
10.09.2019,ADULT SOCIAL CARE,THAMES HOMECARE SERVICE LTD,702.58,PHY LTS 65+,HOMECARE - SPOT,2103001210,1000079295
10.09.2019,ADULT SOCIAL CARE,THAMES HOMECARE SERVICE LTD,702.58,PHY LTS 65+,HOMECARE - SPOT,2103001398,1000079295
10.09.2019,ADULT SOCIAL CARE,THAMES HOMECARE SERVICE LTD,984.5,PHY LTS 65+,HOMECARE - SPOT,2103001242,1000079295
10.09.2019,ADULT SOCIAL CARE,THAMES HOMECARE SERVICE LTD,984.5,PHY LTS 65+,HOMECARE - SPOT,2103001409,1000079295
10.09.2019,ADULT SOCIAL CARE,THAMES HOMECARE SERVICE LTD,"1,029.25",PHY LTS 65+,HOMECARE - SPOT,2103001202,1000079295
10.09.2019,ADULT SOCIAL CARE,THAMES HOMECARE SERVICE LTD,"1,029.25",PHY LTS 65+,HOMECARE - SPOT,2103001411,1000079295
10.09.2019,ADULT SOCIAL CARE,HC-ONE LTD (TOWER BRIDGE CARE HOME),654.62,PHY LTS 65+,PLACEMENTS - RESPITE,2103001282,1000067670
10.09.2019,ADULT SOCIAL CARE,LONDON CARE LTD,328.96,PHY STS 18-64,HOMECARE - IC,2103001269,1000003398
10.09.2019,ADULT SOCIAL CARE,LONDON CARE LTD,349.06,PHY STS 18-64,HOMECARE - IC,2103001247,1000003398
10.09.2019,ADULT SOCIAL CARE,LONDON CARE LTD,661.84,PHY STS 18-64,HOMECARE - IC,2103001255,1000003398
10.09.2019,ADULT SOCIAL CARE,LONDON CARE LTD,283.17,PHY STS 65+,HOMECARE - IC,2103001270,1000003398
10.09.2019,ADULT SOCIAL CARE,LONDON CARE LTD,491.38,PHY STS 65+,HOMECARE - IC,2103001438,1000003398
10.09.2019,ADULT SOCIAL CARE,THAMES HOMECARE SERVICE LTD,751.8,PHY STS 65+,HOMECARE - IC,2103001218,1000079295
10.09.2019,ADULT SOCIAL CARE,THAMES HOMECARE SERVICE LTD,751.8,PHY STS 65+,HOMECARE - IC,2103001390,1000079295
10.09.2019,ADULT SOCIAL CARE,LONDON CARE LTD,"1,085.21",PHY STS 65+,HOMECARE - IC,2103001260,1000003398
10.09.2019,ADULT SOCIAL CARE,LONDON CARE LTD,"1,845.06",PHY STS 65+,HOMECARE - IC,2103001249,1000003398
10.09.2019,ADULT SOCIAL CARE,MEDACS HOMECARE,530.72,SEN LTS 65+,HOMECARE - C&V,2103001501,11287415
10.09.2019,ADULT SOCIAL CARE,MEDACS HOMECARE,802.35,SOCIAL ISOLATION,HOMECARE - C&V,2103001459,11287415
10.09.2019,ADULT SOCIAL CARE,MEDACS HOMECARE,862.85,SOCIAL ISOLATION,HOMECARE - C&V,2103001543,11287415
10.09.2019,ADULT SOCIAL CARE,MEDACS HOMECARE,957.7,SOCIAL ISOLATION,HOMECARE - C&V,2103001498,11287415
10.09.2019,ADULT SOCIAL CARE,THAMES HOMECARE SERVICE LTD,268.5,SOCIAL ISOLATION,HOMECARE - SPOT,2103001203,1000079295
10.09.2019,ADULT SOCIAL CARE,THAMES HOMECARE SERVICE LTD,268.5,SOCIAL ISOLATION,HOMECARE - SPOT,2103001427,1000079295
10.09.2019,ADULT SOCIAL CARE,CONTACT PROFESSIONALS,266,SPECIALIST CARE,SECTION 17 PAYMENTS TO AGENCIES/CARERS,2103001308,1000057263
10.09.2019,ADULT SOCIAL CARE,CONTACT PROFESSIONALS,266,SPECIALIST CARE,SECTION 17 PAYMENTS TO AGENCIES/CARERS,2103001320,1000057263
10.09.2019,ADULT SOCIAL CARE,CONTACT PROFESSIONALS,266,SPECIALIST CARE,SECTION 17 PAYMENTS TO AGENCIES/CARERS,2103001336,1000057263
10.09.2019,ADULT SOCIAL CARE,CONTACT PROFESSIONALS,285,SPECIALIST CARE,SECTION 17 PAYMENTS TO AGENCIES/CARERS,2103001293,1000057263
10.09.2019,ADULT SOCIAL CARE,CONTACT PROFESSIONALS,285,SPECIALIST CARE,SECTION 17 PAYMENTS TO AGENCIES/CARERS,2103001319,1000057263
10.09.2019,ADULT SOCIAL CARE,CONTACT PROFESSIONALS,285,SPECIALIST CARE,SECTION 17 PAYMENTS TO AGENCIES/CARERS,2103001322,1000057263
10.09.2019,ADULT SOCIAL CARE,CONTACT PROFESSIONALS,285,SPECIALIST CARE,SECTION 17 PAYMENTS TO AGENCIES/CARERS,2103001333,1000057263
10.09.2019,ADULT SOCIAL CARE,CONTACT PROFESSIONALS,304,SPECIALIST CARE,SECTION 17 PAYMENTS TO AGENCIES/CARERS,2103001297,1000057263
10.09.2019,ADULT SOCIAL CARE,CONTACT PROFESSIONALS,304,SPECIALIST CARE,SECTION 17 PAYMENTS TO AGENCIES/CARERS,2103001362,1000057263
10.09.2019,ADULT SOCIAL CARE,CONTACT PROFESSIONALS,304,SPECIALIST CARE,SECTION 17 PAYMENTS TO AGENCIES/CARERS,2103001373,1000057263
10.09.2019,ADULT SOCIAL CARE,RESOURCES FOR AUTISM,323,SPECIALIST CARE,SECTION 17 PAYMENTS TO AGENCIES/CARERS,2103001305,1000062540
10.09.2019,ADULT SOCIAL CARE,CONTACT PROFESSIONALS,323,SPECIALIST CARE,SECTION 17 PAYMENTS TO AGENCIES/CARERS,2103001314,1000057263
10.09.2019,ADULT SOCIAL CARE,CONTACT PROFESSIONALS,323,SPECIALIST CARE,SECTION 17 PAYMENTS TO AGENCIES/CARERS,2103001343,1000057263
10.09.2019,ADULT SOCIAL CARE,CONTACT PROFESSIONALS,361,SPECIALIST CARE,SECTION 17 PAYMENTS TO AGENCIES/CARERS,2103001295,1000057263
10.09.2019,ADULT SOCIAL CARE,CONTACT PROFESSIONALS,380,SPECIALIST CARE,SECTION 17 PAYMENTS TO AGENCIES/CARERS,2103001298,1000057263
10.09.2019,ADULT SOCIAL CARE,CONTACT PROFESSIONALS,380,SPECIALIST CARE,SECTION 17 PAYMENTS TO AGENCIES/CARERS,2103001328,1000057263
10.09.2019,ADULT SOCIAL CARE,CONTACT PROFESSIONALS,380,SPECIALIST CARE,SECTION 17 PAYMENTS TO AGENCIES/CARERS,2103001330,1000057263
10.09.2019,ADULT SOCIAL CARE,CONTACT PROFESSIONALS,380,SPECIALIST CARE,SECTION 17 PAYMENTS TO AGENCIES/CARERS,2103001355,1000057263
10.09.2019,ADULT SOCIAL CARE,CONTACT PROFESSIONALS,399,SPECIALIST CARE,SECTION 17 PAYMENTS TO AGENCIES/CARERS,2103001342,1000057263
10.09.2019,ADULT SOCIAL CARE,CONTACT PROFESSIONALS,399,SPECIALIST CARE,SECTION 17 PAYMENTS TO AGENCIES/CARERS,2103001382,1000057263
10.09.2019,ADULT SOCIAL CARE,CONTACT PROFESSIONALS,408.5,SPECIALIST CARE,SECTION 17 PAYMENTS TO AGENCIES/CARERS,2103001325,1000057263
10.09.2019,ADULT SOCIAL CARE,CONTACT PROFESSIONALS,456,SPECIALIST CARE,SECTION 17 PAYMENTS TO AGENCIES/CARERS,2103001324,1000057263
10.09.2019,ADULT SOCIAL CARE,CONTACT PROFESSIONALS,475,SPECIALIST CARE,SECTION 17 PAYMENTS TO AGENCIES/CARERS,2103001312,1000057263
10.09.2019,ADULT SOCIAL CARE,CONTACT PROFESSIONALS,570,SPECIALIST CARE,SECTION 17 PAYMENTS TO AGENCIES/CARERS,2103001287,1000057263
10.09.2019,ADULT SOCIAL CARE,CONTACT PROFESSIONALS,608,SPECIALIST CARE,SECTION 17 PAYMENTS TO AGENCIES/CARERS,2103001335,1000057263
10.09.2019,ADULT SOCIAL CARE,CONTACT PROFESSIONALS,608,SPECIALIST CARE,SECTION 17 PAYMENTS TO AGENCIES/CARERS,2103001380,1000057263
10.09.2019,ADULT SOCIAL CARE,CONTACT PROFESSIONALS,646,SPECIALIST CARE,SECTION 17 PAYMENTS TO AGENCIES/CARERS,2103001356,1000057263
10.09.2019,ADULT SOCIAL CARE,CONTACT PROFESSIONALS,665,SPECIALIST CARE,SECTION 17 PAYMENTS TO AGENCIES/CARERS,2103001304,1000057263
10.09.2019,ADULT SOCIAL CARE,CONTACT PROFESSIONALS,798,SPECIALIST CARE,SECTION 17 PAYMENTS TO AGENCIES/CARERS,2103001361,1000057263
10.09.2019,ADULT SOCIAL CARE,SERVESOUL LTD,375.53,SUB LTS 18-64,HOMECARE - SPOT,2103001177,1000081503
10.09.2019,ADULT SOCIAL CARE,MEDACS HOMECARE,905.89,SUB LTS 18-64,HOMECARE - SPOT,2103001542,11287415
10.09.2019,ADULT SOCIAL CARE,STREETSCENE ADDICTION RECOVERY LTD,"1,104.00",SUB LTS 18-64,PLACEMENTS - REHAB,2103001561,11221787
10.09.2019,ADULT SOCIAL CARE,CONTACT PROFESSIONALS,418,TRANSITIONS 14-18YRS,SECTION 17 PAYMENTS TO AGENCIES/CARERS,2103001317,1000057263
10.09.2019,ADULT SOCIAL CARE,CONTACT PROFESSIONALS,760,TRANSITIONS 14-18YRS,SECTION 17 PAYMENTS TO AGENCIES/CARERS,2103001347,1000057263
10.09.2019,CHIEF EXECUTIVE,HARWOOD BUILDING CONTROL,"1,000.00",CAPITAL PS (REGEN),CONSTRUCTION FEES - ARCHITECT,5902377201,1000082738
10.09.2019,CHIEF EXECUTIVE'S OFFICE,LOCAL GOVERNMENT ASSOCIATION,"1,635.00",MEMBERS EXPENSES,TRAINING,5902377213,1000017363
10.09.2019,CHILDREN'S SERVICES,ITL NORTH EAST LTD,"1,825.77",AIS - PRAC GRP C SET7-9,INTERPRETING SERVICES,5902377533,1000082415
10.09.2019,CHILDREN'S SERVICES,ITL NORTH EAST LTD,"2,397.01",AIS - PRAC GRP C SET7-9,INTERPRETING SERVICES,5902377538,1000082415
10.09.2019,CHILDREN'S SERVICES,ALBION PRIMARY SCHOOL,"186,126.00",ALBION PRIMARY SCHOOL,SCHOOLS CAPITATION,5902377243,5001000000
10.09.2019,CHILDREN'S SERVICES,ALFRED SALTER PRIMARY SCHOOL,"168,893.00",ALFRED SALTER PRIMARY SCHOOL,SCHOOLS CAPITATION,5902377246,5001000005
10.09.2019,CHILDREN'S SERVICES,HOLLY BRYAN ASSOCIATES LTD,"4,800.00",ANALYSTS,PROFESSIONAL FEES,5902377542,1000077962
10.09.2019,CHILDREN'S SERVICES,ANN BERNADT NURSERY SCHOOL,"22,779.00",ANN BERNADT (SUMNER),EARLY YEARS - 3 AND 4 YEAR OLDS,5902377409,5001000085
10.09.2019,CHILDREN'S SERVICES,ANN BERNADT NURSERY SCHOOL,"49,835.00",ANN BERNADT (SUMNER),EARLY YEARS - 3 AND 4 YEAR OLDS,5902377408,5001000085
10.09.2019,CHILDREN'S SERVICES,BELLENDEN PRIMARY SCHOOL,"121,634.00",BELLENDEN PRIMARY SCHOOL,SCHOOLS CAPITATION,5902377248,5001000007
10.09.2019,CHILDREN'S SERVICES,BEORMUND PRIMARY SCHOOL,"70,159.00",BEORMUND PRIMARY SCHOOL,HIGH NEEDS - TOP UP FUNDING,5902377249,5001000008
10.09.2019,CHILDREN'S SERVICES,BESSEMER GRANGE PRIMARY SCHOOL,"242,163.00",BESSEMER GRANGE PRIMARY SCHOOL,SCHOOLS CAPITATION,5902377252,5001000009
10.09.2019,CHILDREN'S SERVICES,BOUCHER C OF E PRIMARY SCHOOL,"94,372.00",BOUTCHER CE PRIMARY SCHOOL,SCHOOLS CAPITATION,5902377254,5001000011
10.09.2019,CHILDREN'S SERVICES,BRUNSWICK PARK PRIMARY SCHOOL,"179,982.00",BRUNSWICK PARK PRIMARY SCHOOL,SCHOOLS CAPITATION,5902377257,5001000013
10.09.2019,CHILDREN'S SERVICES,CAMELOT PRIMARY SCHOOL,"180,677.00",CAMELOT PRIMARY SCHOOL,SCHOOLS CAPITATION,5902377260,5001000014
10.09.2019,CHILDREN'S SERVICES,THE WALK TO FREEDOM LTD,420,CARE GRPS  4 TO 6,OTHER PAYMENTS FOR CLIENTS,5902377521,1000081592
10.09.2019,CHILDREN'S SERVICES,CHARLES DICKENS PRIMARY SCHOOL,"179,835.00",CHARLES DICKENS PRIMARY SCHOOL,SCHOOLS CAPITATION,5902377263,5001000015
10.09.2019,CHILDREN'S SERVICES,CHARLOTTE  SHARMAN PRIMARY SCHOOL,"121,929.00",CHARLOTTE SHARMAN PRIMARY SCHOOL,SCHOOLS CAPITATION,5902377266,5001000016
10.09.2019,CHILDREN'S SERVICES,CHERRY GARDEN SCHOOL,"166,776.00",CHERRY GARDEN PRIMARY SCHOOL,HIGH NEEDS - TOP UP FUNDING,5902377271,5001000020
10.09.2019,CHILDREN'S SERVICES,COBOURG PRIMARY SCHOOL,"161,140.00",COBOURG PRIMARY SCHOOL,SCHOOLS CAPITATION,5902377274,5001000021
10.09.2019,CHILDREN'S SERVICES,COMBER GROVE PRIMARY SCHOOL,"118,961.00",COMBER GROVE PRIMARY SCHOOL,SCHOOLS CAPITATION,5902377277,5001000022
10.09.2019,CHILDREN'S SERVICES,CRAMPTON PRIMARY SCHOOL,"96,362.00",CRAMPTON PRIMARY SCHOOL,SCHOOLS CAPITATION,5902377279,5001000023
10.09.2019,CHILDREN'S SERVICES,CRAWFORD PRIMARY SCHOOL,"234,424.00",CRAWFORD PRIMARY SCHOOL,SCHOOLS CAPITATION,5902377282,5001000024
10.09.2019,CHILDREN'S SERVICES,DOG KENNEL HILL PRIMARY SCHOOL,"170,120.00",DOG KENNEL HILL PRIMARY SCHOOL,SCHOOLS CAPITATION,5902377285,5001000025
10.09.2019,CHILDREN'S SERVICES,DULWICH VILLAGE CE INFANTS SCHOOL,"110,808.00",DULWICH VILLAGE CE INFANTS' SCHOOL,SCHOOLS CAPITATION,5902377287,5001000027
10.09.2019,CHILDREN'S SERVICES,DULWICH WOOD CHILDRENS CENTRE,"29,164.00",DULWICH WOOD NURSERY SCHOOL,EARLY YEARS - 3 AND 4 YEAR OLDS,5902377425,5001000099
10.09.2019,CHILDREN'S SERVICES,DULWICH WOOD CHILDRENS CENTRE,"36,486.00",DULWICH WOOD NURSERY SCHOOL,EARLY YEARS - 3 AND 4 YEAR OLDS,5902377424,5001000099
10.09.2019,CHILDREN'S SERVICES,DULWICH WOOD PRIMARY SCHOOL,"160,951.00",DULWICH WOOD PRIMARY SCHOOL,SCHOOLS CAPITATION,5902377321,5001000042
10.09.2019,CHILDREN'S SERVICES,ENGLISH MARTYRS RC PRIMARY SCHOOL,"145,698.00",ENGLISH MARTYRS RC PRIMARY SCHOOL,SCHOOLS CAPITATION,5902377296,5001000030
10.09.2019,CHILDREN'S SERVICES,EVELINA HOSPITAL SCHOOL,"87,568.00",EVELINA HOSPITAL SCHOOL,HIGH NEEDS - TOP UP FUNDING,5902377297,5001000031
10.09.2019,CHILDREN'S SERVICES,FRIARS PRIMARY SCHOOL,"88,819.00",FRIARS FOUNDATION PRIMARY SCHOOL,SCHOOLS CAPITATION,5902377303,5001000033
10.09.2019,CHILDREN'S SERVICES,GOODRICH PRIMARY SCHOOL,"228,796.00",GOODRICH PRIMARY SCHOOL,SCHOOLS CAPITATION,5902377290,5001000028
10.09.2019,CHILDREN'S SERVICES,GRANGE PRIMARY SCHOOL,"168,331.00",GRANGE PRIMARY SCHOOL,SCHOOLS CAPITATION,5902377293,5001000029
10.09.2019,CHILDREN'S SERVICES,HAYMERLE SCHOOL,"176,963.00",HAYMERLE PRIMARY SCHOOL,HIGH NEEDS - TOP UP FUNDING,5902377325,5001000045
